Workbook

Sheet Standard Inputs (hidden)
A3: Design # | B3: Standard system? | C3: Design flow | D3: Units | E3: Average Flow | F3: Units | G3: Source | H3: UV
B4: user_I | C4: design_flow | D4: df_units_input | E4: average_flow | F4: af_units_input | G4: source_select | H4: uv_select | I4: component_I
A5: 1 | B5: EPA Standard System | C5: 0.03 | D5: MGD | E5: 0.007 | F5: MGD | G5: GW | H5: no | I5: 1
A6: 2 | B6: EPA Standard System | C6: 0.124 | D6: MGD | E6: 0.035 | F6: MGD | G6: GW | H6: no | I6: 1
A7: 3 | B7: EPA Standard System | C7: 0.305 | D7: MGD | E7: 0.094 | F7: MGD | G7: GW | H7: no | I7: 1
A8: 4 | B8: EPA Standard System | C8: 0.74 | D8: MGD | E8: 0.251 | F8: MGD | G8: GW | H8: no | I8: 1
A9: 5 | B9: EPA Standard System | C9: 0.03 | D9: MGD | E9: 0.009 | F9: MGD | G9: SW | H9: no | I9: 1
A10: 6 | B10: EPA Standard System | C10: 0.124 | D10: MGD | E10: 0.039 | F10: MGD | G10: SW | H10: no | I10: 1
A11: 7 | B11: EPA Standard System | C11: 0.305 | D11: MGD | E11: 0.1 | F11: MGD | G11: SW | H11: no | I11: 1
A12: 8 | B12: EPA Standard System | C12: 0.74 | D12: MGD | E12: 0.251 | F12: MGD | G12: SW | H12: no | I12: 1

Sheet INPUT
A1: ="Point-of-Use or Point-of-Entry System Design and Costs (results in "&current_year&" dollars)" -> Point-of-Use or Point-of-Entry System Design and Costs (results in 2020 dollars)
A4: Step 1:
A5: Select a User-Defined System to estimate costs for a single system using site-specific information. The EPA Standard System option is for EPA's use in estimating national costs, although other users might find the designs useful as a starting point. | C5: EPA Standard System | D5: =IF(user=1,"click here -->","") ->  | E5: To User-Defined System Input Page
A7: Step 2:
A8: Choose a contaminant | C8: Arsenic
A9: Step 3:
A10: Choose a treatment technology | C10: POU Adsorptive Media NSF53
A12: Step 4:
A13: Select one of the standard designs at right
A20: Step 5: | F20: ="Results summary ("&current_year&" dollars, see OUTPUT sheet for details)" -> Results summary (2020 dollars, see OUTPUT sheet for details)
A21: (Optional for standard designs) | C21: =IF(AND(C34="Contaminant selection OK",C35="Treatment technology OK",C36="Average flow OK",C37=""),"Input Complete","Input Incomplete -- Check for Error Messages Below") -> Input Complete | F21: ="Direct Capital Cost: "&IF(input_status<>"input complete",input_status,IF(ISERROR(direct_cost),"Calculation error!",TEXT(direct_cost,"$0,0"))) -> Direct Capital Cost: $87,137
A22: Enter or change values in the gold cells below in Step 6. | F22: ="Total Capital Cost: "&IF(input_status<>"input complete",input_status,IF(ISERROR(system_cost),"Calculation error!",TEXT(OUTPUT!C76,"$0,0"))) -> Total Capital Cost: $114,497
F23: ="Annualized Capital Cost: "&IF(input_status<>"Input Complete",input_status,IF(ISERROR(annualized_capital_cost),"Calculation error!",TEXT(annualized_capital_cost,"$0,0")&" per year"&" (over "&discount_period&" years at "&discount_rate*100&"%)")) -> Annualized Capital Cost: $16,302 per year (over 10 years at 7%)
F24: ="Annual O&M Cost: "&IF(input_status<>"input complete",input_status,IF(ISERROR(OM_cost),"Calculation error!",TEXT(OM_cost,"$0,0")&" per year")) -> Annual O&M Cost: $21,236 per year
A25: Step 6: | F25: ="Total Annualized Cost: "&IF(input_status<>"input complete",input_status,IF(ISERROR(annualized_cost),"Calculation error!",TEXT(annualized_cost,"$0,0")&" per year")) -> Total Annualized Cost: $37,538 per year
A26: Inputs | F26: ="Total Household Cost: "&IF(input_status<>"Input Complete",input_status,IF(ISERROR(OUTPUT!J115),"Calculation error!",TEXT(OUTPUT!J115,"$0.00")&" per household per year")) -> Total Household Cost: $326.41 per household per year
A27: Design Flow (system peak flow) | B27: design_flow | C27: 0.124 | D27: MGD
A28: Average System Flow | B28: average_flow | C28: 0.035 | D28: MGD
A29: Water Source | B29: source_select | C29: GW | D29: <-- enter GW or SW
A30: Include UV Disinfection | B30: uv_select | C30: no | D30: <-- enter yes or no
A31: For information:
A32: Service Population (number of households) | B32: hh_stand | C32: =ROUND(IF(source_select="GW",((CHOOSE(df_units,design_flow*1000,design_flow*1440/1000))/0.54992)^(1/0.95538),((CHOOSE(af_units,design_flow*1000,design_flow*1440/1000))/0.59028)^(1/0.94573))/hh_size,0) -> 115
C34: =IF(COUNTIF(contaminant_list,contam_stand)=0,IF(contam_stand="","Please select a target contaminant","Warning: Target contaminant is not valid"),"Contaminant selection OK") -> Contaminant selection OK
C35: =IF(ISERROR(COUNTIF(INDIRECT(contam_stand),"")),"Warning: Invalid target contaminant; unable to evaluate validity of treatment technology",IF(COUNTIF(INDIRECT(contam_stand),treat)=0,IF(treat="","Please select a certified treatment technology","Warning: Treatment technology selected is not certified for target contaminant"),"Treatment technology OK")) -> Treatment technology OK
C36: =IF(df_units=af_units,IF(average_flow>design_flow,"Warning: The average flow should not be greater than the design flow","Average flow OK"),"Warning: Flow units do not match.") -> Average flow OK
C37: =IF(OR(design_flow="",df_units_input="",average_flow="",af_units_input="",source_select="",uv_select=""),"Input Incomplete: enter values for all gold cells above","") -> 
A101: Optional Inputs | C101: Optional input (blue cells)
A102: Component level | C102: mid cost | D102: <-- pick one (note - no difference as of 3/9/06 version)

Sheet User Input
A1: User Defined Point-of-Use or Point-of-Entry System
A3: Step 2:
A4: Choose a contaminant | C4: SOCs
C5: Status: | D5: =IF(COUNTIF(contaminant_list,contam_user)=0,IF(contam_user="","Please select a target contaminant","Warning: Target contaminant is not valid"),"Contaminant selection OK") -> Contaminant selection OK
A6: Step 3:
A7: Choose a treatment technology, and | C7: POU GAC
A8: indicate whether treatment includes UV disinfection. | B8: user_UV | C8: yes
C9: Status: | D9: =IF(ISERROR(COUNTIF(INDIRECT(contam_user),"")),"Warning: Invalid target contaminant; unable to evaluate validity of treatment technology",IF(COUNTIF(INDIRECT(contam_user),user_treat)=0,IF(user_treat="","Please select a certified treatment technology","Warning: Treatment technology selected is not certified for target contaminant"),"Treatment technology OK")) -> Treatment technology OK
A10: Step 4:
A11: Choose a method for entering system size. Then enter the required information in the gold cell(s).
A12: a. Select method for system size input | B12: user_design | C12: average flow
A13: b. Enter average daily system flow in gallons per day, and | B13: user_flow | C13: 8800 | D13: gallons per day | E13: For information:
A14: select a water source. | B14: user_source_select | C14: surface water | E14: ="approx. households: "&Control!D33 -> approx. households: 25
A15: b. Enter number of household connections | B15: user_pop | C15: 50
E16: Results summary (see OUTPUT sheet for details)
A17: Step 5: | C17: =IF(OR(contam_user="",user_treat="",uv_user_select="",user_design=""),"Incomplete input",IF(AND(user_design="average flow",OR(user_flow="",user_source_select="")),"Incomplete input",IF(AND(user_design="household connections",user_pop=""),"Incomplete input","Input Complete"))) -> Input Complete | E17: ="Direct Capital Cost: "&IF(C17="input complete",TEXT(direct_cost,"$0,0"),"Input incomplete") -> Direct Capital Cost: $87,137
A18: Enter Cost Assumptions | E18: ="Total Capital Cost: "&IF(C17="input complete",TEXT(OUTPUT!C76,"$0,0"),"Input incomplete") -> Total Capital Cost: $114,497
A19: To replace the default value for any variable, enter a value (using correct units) in the blank blue cell. | E19: ="Annual O&M Cost: "&IF(C17="input complete",TEXT(OM_cost,"$0,0"),"Input incomplete") -> Annual O&M Cost: $21,236
A20: Items in light gray italics are not applicable given the contaminant and treatment selections. | E20: ="Total $/householdl: "&IF(C17="Input complete",TEXT(OUTPUT!J115,"$0.00"),"Input incomplete") -> Total $/householdl: $326.41
A21: Capital Cost Assumptions
A22: Equipment Purchase | E22: Default Values
A23: Unit cost of POE/POU device without installation | B23: user_unit_cost | D23: $/unit | E23: =VLOOKUP(hh_select,INDIRECT(VLOOKUP(user_treat_select,name_list,3,FALSE)),3) -> 395.2118532
A24: Unit cost of UV system | B24: user_uv_cost | D24: $/unit | E24: =uv*VLOOKUP(hh_select,pou_uv_equipment,3) -> 0
A26: Equipment Installation | E26: Default Values
A27: Wage rate for installation specialist (plumber/electrician) | B27: user_tech_rate | D27: $/hour | E27: =install_rate -> 42.746
A28: Wage rate for system technical and maintenance labor | B28: user_tech_rate | D28: $/hour | E28: =tech_rate -> 33.2651621
A29: Wage rate for scheduling and administrative labor | B29: user_cler_rate | D29: $/hour | E29: =clerical_rate -> 32.03728777
A30: POU/POE installation time | B30: user_install | D30: hours/household | E30: =VLOOKUP('Capital Assumptions'!A7,install_hours,user_treat_select+3,FALSE) -> 2
A31: POU/POE installation scheduling time | D31: hours/household | E31: =VLOOKUP('Capital Assumptions'!A8,install_hours,user_treat_select+3,FALSE) -> 0.5
A32: UV installation time | B32: user_uv_install | D32: hours/household | E32: =uv*VLOOKUP('Capital Assumptions'!A9,install_hours,user_treat_select+3,FALSE) -> 0
A34: Public Education Program | E34: Default Values
A35: Technical Labor to Support Educational Program
A36: Develop technical content for educational materials | B36: user_dev_tech | D36: total hours | E36: =VLOOKUP('Capital Assumptions'!A12,tech_labor,user_treat_select+3,FALSE) -> 10
A37: Develop nitrate health impact information for stakeholders | B37: user_dev_nit | D37: total hours | E37: =nitrate_select*VLOOKUP('Capital Assumptions'!A13,tech_labor,user_treat_select+3,FALSE) -> 0
A38: Prepare for and attend public meetings | B38: user_meet_tech | D38: total hours | E38: =VLOOKUP('Capital Assumptions'!A14,tech_labor,user_treat_select+3,FALSE) -> 2
A39: Post-meeting stakeholder communication | B39: user_post_tech | D39: total hours | E39: =VLOOKUP('Capital Assumptions'!A15,tech_labor,user_treat_select+3,FALSE) -> 2
A41: Clerical Labor to Support Educational Program
A42: Prepare educational materials for distribution | B42: user_dev_cler | D42: total hours | E42: =VLOOKUP('Capital Assumptions'!A16,clerical_labor,user_treat_select+3,FALSE) -> 6
A43: Prepare nitrate health impact information for distribution | B43: user_nitr_cler | D43: total hours | E43: =nitrate_select*VLOOKUP('Capital Assumptions'!A17,clerical_labor,user_treat_select+3,FALSE) -> 0
A44: Prepare for and attend public meetings | B44: user_meet_cler | D44: total hours | E44: =VLOOKUP('Capital Assumptions'!A18,clerical_labor,user_treat_select+3,FALSE) -> 2
A45: Prepare post-meeting materials for distribution | B45: user_post_cler | D45: total hours | E45: =VLOOKUP('Capital Assumptions'!A19,clerical_labor,user_treat_select+3,FALSE) -> 2
A47: Communication Materials for Educational Program
A48: Print flyers announcing public meetings | B48: user_flyers | D48: flyers | E48: =VLOOKUP('Capital Assumptions'!A20,ed_material,user_treat_select+3,FALSE) -> 10
A49: Cost per flyer for printing | D49: $/flyer | E49: =VLOOKUP("Meeting Flyers",printed_material_cost,3,FALSE) -> 1.756666667
A50: Buy ads to announce public meetings | B50: user_ads | D50: ads | E50: =VLOOKUP('Capital Assumptions'!A21,ed_material,user_treat_select+3,FALSE) -> 1
A51: Cost per meeting ad | D51: $/meeting announcement | E51: =VLOOKUP("Meeting Ads",printed_material_cost,3,FALSE) -> 68.875
A52: Print nitrate health impact flyers | B52: user_nitr_flyers | D52: flyers | E52: =nitrate_select*VLOOKUP('Capital Assumptions'!A22,ed_material,user_treat_select+3,FALSE) -> 0
A53: Print handouts for meetings | B53: user_handout | D53: pages/household | E53: =VLOOKUP('Capital Assumptions'!A23,ed_material,user_treat_select+3,FALSE) -> 3
A54: Print inserts for billing mailers | B54: user_mailers | D54: pages/household | E54: =VLOOKUP('Capital Assumptions'!A24,ed_material,user_treat_select+3,FALSE) -> 2
A55: Cost to print handouts and mailers | D55: $/page | E55: =VLOOKUP("Billing Mailers",printed_material_cost,3,FALSE) -> 0.1733333333
A57: First Year Water Quality Sampling | E57: Default Values
A58: Time to take sample during first year | B58: user_samp_time | D58: hours/sample | E58: =VLOOKUP('Capital Assumptions'!A27,initial_sample,user_treat_select+3,FALSE) -> 0.25
A59: Time to schedule sample event at household | B59: user_samp_sched | D59: hours/sample | E59: =VLOOKUP('Capital Assumptions'!A28,initial_sample,user_treat_select+3,FALSE) -> 0
A60: Number of sampling events per household during the first year | B60: user_analysis | D60: samples/household | E60: =VLOOKUP('Capital Assumptions'!A29,initial_sample,user_treat_select+3,FALSE) -> 1
A61: Percent of households sampled during the first year | B61: user_analysis | D61: % households | E61: =VLOOKUP('Capital Assumptions'!A30,initial_sample,user_treat_select+3,FALSE) -> 1
A62: Laboratory analysis fee (target contaminant) | D62: $/sample | E62: =VLOOKUP(contam,lab_analysis_cost,3,FALSE) -> 29.67253825
A63: Laboratory analysis fee (total coliform) | D63: $/sample | E63: =VLOOKUP("Total Coliform",lab_analysis_cost,3,FALSE) -> 28.88127056
A64: Sample shipping cost (bulk) (target contaminant) | D64: $/bulk shipment | E64: =VLOOKUP(Shipping_Category,Shipping_OM,2,FALSE) -> 216.15
A65: Sample shipping cost (bulk) (total coliform) | D65: $/bulk shipment | E65: =VLOOKUP("Coliform",Shipping_OM,2,FALSE) -> 59.8
A67: Indirect Capital Cost Multipliers | D67: Choose Units: | E67: Default Values
A68: Cost to obtain operating permit | B68: user_permitting | D68: % installed equipment cost | E68: =VLOOKUP('Capital Assumptions'!A34,indirect_cost,user_treat_select+3,FALSE) -> 0.03
A69: Cost to conduct pilot test | B69: user_pilot | D69: % installed equipment cost | E69: =VLOOKUP('Capital Assumptions'!A35,indirect_cost,user_treat_select+3,FALSE) -> 0.03
A70: Cost for legal activities (e.g., ordinance changes) | B70: user_legal | D70: % installed equipment cost | E70: =VLOOKUP('Capital Assumptions'!A36,indirect_cost,user_treat_select+3,FALSE) -> 0.03
A71: Cost for engineering activities (e.g., device selection) | B71: user_eng | D71: % installed equipment cost | E71: =VLOOKUP('Capital Assumptions'!A37,indirect_cost,user_treat_select+3,FALSE) -> 0.15
A72: Contingency cost (unknown factors) | B72: user_cont | D72: % installed equipment cost | E72: =VLOOKUP('Capital Assumptions'!A38,indirect_cost,user_treat_select+3,FALSE) -> 0.1
A74: O&M Cost Assumptions
A75: Equipment Maintenance | E75: Default Values
A76: POU/POE maintenance | B76: user_maint | D76: hours/visit | E76: =INDEX(maint_time,1,user_treat_select) -> 0.5
A77: POU/POE replacement frequency | B77: user_repl_freq | D77: visits/household/yr | E77: =INDEX(maint_time,1,user_treat_select) -> 0.5
A78: UV maintenance | B78: user_uv_maint | D78: hours/visit | E78: =uv*INDEX(UV_maint_time,1,user_treat_select) -> 0
A79: UV maintenance frequency | B79: user_uv_freq | D79: visits/household/year | E79: =uv*INDEX(UV_maint_frequency,1,user_treat_select) -> 0
A80: Scheduling time | B80: user_maint_sched | D80: hours/visit | E80: =INDEX(maint_scheduling,1,user_treat_select) -> 0.5
A82: Public Education Program | E82: Default Values
A83: Technical Labor to Support On-Going Education Program Activities
A84: Develop updates to technical information | B84: user_updates_tech | D84: hours | E84: =VLOOKUP('O&M Assumptions'!A12,tech_labor_om,user_treat_select+3,FALSE) -> 12
A85: Develop updates for nitrate health effects | B85: user_nitr_updates_tech | D85: hours | E85: =nitrate_select*VLOOKUP('O&M Assumptions'!A13,tech_labor_om,user_treat_select+3,FALSE) -> 0
A87: Clerical Labor to Support On-Going Education Program Activities
A88: Prepare information updates for distribution | B88: user_info_cler | D88: hours | E88: =VLOOKUP('O&M Assumptions'!A14,clerical_labor_om,user_treat_select+3,FALSE) -> 12
A89: Prepare nitrate information updates for distribution | B89: user_nitr_updates_cler | D89: hours | E89: =nitrate_select*VLOOKUP('O&M Assumptions'!A15,clerical_labor_om,user_treat_select+3,FALSE) -> 0
A91: Communication Materials to Support On-Going Education Program Activities
A92: Nitrate flyers | B92: user_om_flyer | D92: flyers | E92: =nitrate_select*VLOOKUP('O&M Assumptions'!A16,ed_material_om,user_treat_select+3,FALSE) -> 0
A93: Billing mailers | B93: user_om_billing | D93: pages/household | E93: =VLOOKUP('O&M Assumptions'!A17,ed_material_om,user_treat_select+3,FALSE) -> 3
A95: Laboratory Analyses | E95: Default Values
A96: Sampling time | B96: user_om_samp | D96: hrs/sample | E96: =VLOOKUP('O&M Assumptions'!A20,lab_analysis,user_treat_select+3,FALSE) -> 0.25
A97: Sampling scheduling time | B97: user_om_sched | D97: hrs/sample | E97: =VLOOKUP('O&M Assumptions'!A21,lab_analysis,user_treat_select+3,FALSE) -> 0
A98: Analysis samples | B98: user_om_analysis | D98: samples/household/year | E98: =VLOOKUP('O&M Assumptions'!A22,lab_analysis,user_treat_select+3,FALSE) -> 1
A99: Analysis share | B99: user_om_shipping | D99: % households/year | E99: =IF(nitrate_select=1,"100%",VLOOKUP('O&M Assumptions'!A23,lab_analysis,user_treat_select+3,FALSE)) -> 0.333
A101: Parts Replacement | E101: Default Values
A102: To replace default values with user-defined data, enter part names, costs, and replacement frequencies below.
A104: Name of Replacement Part 1 | E104: =INDEX(INDIRECT(VLOOKUP(treat_select,name_list,5,FALSE)),1,1) -> Media Cartridge
A105: Unit Cost of Replacement Part 1 | B105: user_repl1 | D105: $/part | E105: =IF(AND(C104="",OUTPUT!C95>0),VLOOKUP(OUTPUT!B95,INDIRECT(VLOOKUP(treat_select,name_list,4,FALSE)),3,FALSE),0) -> 120.1783993
A106: Replacement Frequency | B106: user_repl1_freq | D106: times/household/yr | E106: =INDEX(INDIRECT(VLOOKUP(treat_select,name_list,5,FALSE)),1,2) -> 1
A108: Name of Replacement Part 2 | E108: =INDEX(INDIRECT(VLOOKUP(treat_select,name_list,5,FALSE)),2,1) -> NA
A109: Unit Cost of Replacement Part 2 | B109: user_repl2 | D109: $/part | E109: =IF(AND(C108="",OUTPUT!C96>0),VLOOKUP(OUTPUT!B96,INDIRECT(VLOOKUP(treat_select,name_list,4,FALSE)),3,FALSE),0) -> 0
A110: Replacement Frequency | B110: user_repl2_freq | D110: times/household/yr | E110: =INDEX(INDIRECT(VLOOKUP(treat_select,name_list,5,FALSE)),2,2) -> 0
A112: Name of Replacement Part 3 | E112: =INDEX(INDIRECT(VLOOKUP(treat_select,name_list,5,FALSE)),3,1) -> NA
A113: Unit Cost of Replacement Part 3 | B113: user_repl3 | D113: $/part | E113: =IF(AND(C112="",OUTPUT!C97>0),VLOOKUP(OUTPUT!B97,INDIRECT(VLOOKUP(treat_select,name_list,4,FALSE)),3,FALSE),0) -> 0
A114: Replacement Frequency | B114: user_repl3_freq | D114: times/household/yr | E114: =INDEX(INDIRECT(VLOOKUP(treat_select,name_list,5,FALSE)),3,2) -> 0
A116: Name of Replacement Part 4 | E116: =INDEX(INDIRECT(VLOOKUP(treat_select,name_list,5,FALSE)),4,1) -> NA
A117: Unit Cost of Replacement Part 4 | B117: user_repl4 | D117: $/part | E117: =IF(AND(C116="",OUTPUT!C98>0),VLOOKUP(OUTPUT!B98,INDIRECT(VLOOKUP(treat_select,name_list,4,FALSE)),3,FALSE),0) -> 0
A118: Replacement Frequency | B118: user_repl4_freq | D118: times/household/yr | E118: =INDEX(INDIRECT(VLOOKUP(treat_select,name_list,5,FALSE)),4,2) -> 0
A120: Replacement UV Lamp | B120: user_uv_lamp | D120: $/part | E120: =uv*IF(OUTPUT!C7="POU",VLOOKUP(OUTPUT!B99,pou_uv_parts,3,FALSE),VLOOKUP(OUTPUT!B99,poe_uv_parts,3,FALSE)) -> 0
A121: Replacement Frequency | B121: user_uv_lamp_freq | D121: times/yr | E121: =uv*IF(OUTPUT!C7="POU",INDEX(pou_uv_replace,1,2),INDEX(poe_uv_replace,1,2)) -> 0
A122: Replacement UV Quartz Sleeve | B122: user_uv_sleeve_freq | D122: $/part | E122: =uv*IF(OUTPUT!C7="POU",VLOOKUP(OUTPUT!B100,pou_uv_parts,3,FALSE),VLOOKUP(OUTPUT!B100,poe_uv_parts,3,FALSE)) -> 0
A123: Replacement Frequency | B123: user_uv_sleeve | D123: times/yr | E123: =uv*IF(OUTPUT!C7="POU",INDEX(pou_uv_replace,2,2),INDEX(poe_uv_replace,2,2)) -> 0

Sheet OUTPUT
A1: OUTPUT SUMMARY
B2: Parameter | C2: Value
B3: System Description | G3: column not used | H3: column not used | M3: Valid inputs: | N3: =IF(contam_stand="",FALSE,TRUE) -> TRUE | O3: =IF(treat="",FALSE,TRUE) -> TRUE | P3: =IF(COUNTIF(contaminant_list,contam_stand)=0,IF(contam_stand="",TRUE,FALSE),TRUE) -> TRUE | Q3: =IF(ISERROR(COUNTIF(INDIRECT(contam_stand),TRUE)),FALSE,IF(COUNTIF(INDIRECT(contam_stand),treat)=0,IF(treat="",TRUE,FALSE),TRUE)) -> TRUE | R3: =IF(average_flow>design_flow,FALSE,TRUE) -> TRUE
B4: Households Served | C4: =hh_select -> 115
B5: Contaminant | C5: =contam -> Arsenic
B6: Treatment Technology | C6: =IF(user=1,user_treat,treat) -> POU Adsorptive Media NSF53
B7: Treatment Location | C7: =LEFT(IF(user=1,user_treat,treat),3) -> POU
B8: UV Treatment | C8: =IF(user=1,uv_user_select,uv_select) -> no
B9: System Size Category | C9: =IF(design_flow<1,1,IF(design_flow<10,2,3)) -> 1 | D9: 1 indicates small system, 2 indicates medium, 3 indicates large
B10: ="Resulting Costs (in year "&TEXT(current_year,0)&" dollars)" -> Resulting Costs (in year 2020 dollars)
B11: Direct Capital Cost | C11: =IF(input_status<>"input complete","Action required",IF(ISERROR(direct_cost),"Calculation error!",direct_cost)) -> 87136.74053 | D11: =IF(input_status<>"input complete","Check INPUT sheet for errors","") -> 
B12: Add-on Cost | C12: =IF(input_status<>"input complete","Action required",IF(ISERROR(addon_cost),"Calculation error!",addon_cost)) -> 0
B13: Indirect Capital Cost | C13: =IF(input_status<>"input complete","Action required",IF(ISERROR(indirect_cost_add),"Calculation error!",indirect_cost_add)) -> 27360.4713
B14: Total Capital Cost | C14: =IF(input_status<>"input complete","Action required",IF(ISERROR(system_cost),"Calculation error!",system_cost)) -> 114497
B15: ="Annualized Capital Costs (per year over "&discount_period&" years at "&discount_rate*100&"%)" -> Annualized Capital Costs (per year over 10 years at 7%) | C15: =IF(input_status<>"input complete","Action required",IF(ISERROR(annualized_capital_cost),"Calculation error!",annualized_capital_cost)) -> 16301.82709
B16: Annual O&M Cost (per year) | C16: =IF(input_status<>"input complete","Action required",IF(ISERROR(OM_cost),"Calculation error!",OM_cost)) -> 21235.84995
B17: ="Total Annualized Cost (per year)" -> Total Annualized Cost (per year) | C17: =IF(input_status<>"input complete","Action required",IF(ISERROR(annualized_cost),"Calculation error!",annualized_cost)) -> 37537.67704
B18: Per 1,000 gallons average flow | C18: =IF(input_status<>"input complete","Action required",IF(ISERROR(J114),"Calculation error!",J114)) -> 3.932705819
B19: Per household per year | C19: =IF(input_status<>"input complete","Action required",IF(ISERROR(J115),"Calculation error!",J115)) -> 326.414583
A21: Direct Capital Costs | C21: Design | G21: Size used in estimate | I21: Unit Cost | J21: Total Cost | K21: Useful Life
A22: WBS # | B22: Item | C22: Quantity | E22: Frequency | L22: Use?
A23: 1 | B23: Installed Treatment Equipment | N23: Low | O23: Typical | P23: High | Q23: Low | R23: Typical | S23: High | T23: Low | U23: Typical | V23: High
A24: 1.1 | B24: POU/POE Unit Purchase | C24: =IF(treat_select=1,0,1) -> 1 | D24: unit/household | E24: =hh_select -> 115 | F24: households | I24: =VLOOKUP($E24,INDIRECT(VLOOKUP(treat_select,name_list,3,FALSE)),3) -> 598.2456553 | J24: =I24*C24*E24 -> 68798.25036 | K24: =VLOOKUP($E24,INDIRECT(VLOOKUP(treat_select,name_list,3,FALSE)),5) -> 10 | L24: 1 | M24: =$B$23&" - "&B24 -> Installed Treatment Equipment - POU/POE Unit Purchase | N24: 1 | O24: 1 | P24: 1 | Q24: 1 | R24: 1 | S24: 1 | T24: 1 | U24: 1 | V24: 1
A25: 1.2 | B25: POU/POE Installation | C25: =VLOOKUP(B25,install_hours,treat_select+3,FALSE) -> 2 | D25: hours/household | E25: =hh_select -> 115 | F25: households | I25: =IF(user=1,IF(ISBLANK(user_install_rate),install_rate,user_install_rate),install_rate) -> 42.746 | J25: =I25*C25*E25 -> 9831.58 | K25: =VLOOKUP($E25,INDIRECT(VLOOKUP(treat_select,name_list,3,FALSE)),4) -> 10 | L25: 1 | M25: =$B$23&" - "&B25 -> Installed Treatment Equipment - POU/POE Installation | N25: 1 | O25: 1 | P25: 1 | Q25: 1 | R25: 1 | S25: 1 | T25: 1 | U25: 1 | V25: 1
A26: 1.3 | B26: Scheduling Time | C26: =VLOOKUP(B26,install_hours,treat_select+3,FALSE) -> 0.5 | D26: hours/household | E26: =hh_select -> 115 | F26: households | I26: =IF(user=1,IF(ISBLANK(user_cler_rate),clerical_rate,user_cler_rate),clerical_rate) -> 32.03728777 | J26: =I26*C26*E26 -> 1842.144047 | K26: =K28 -> 0 | M26: =$B$23&" - "&B26 -> Installed Treatment Equipment - Scheduling Time | N26: 1 | O26: 1 | P26: 1 | Q26: 1 | R26: 1 | S26: 1 | T26: 1 | U26: 1 | V26: 1
A27: 1.4 | B27: UV Purchase | C27: =uv -> 0 | D27: unit/household | E27: =uv*hh_select -> 0 | F27: households | I27: =uv*IF(user=1,IF(user_uv_cost="",IF(C7="POU",VLOOKUP(hh_select,pou_uv_equipment,3),VLOOKUP(hh_select,poe_uv_equipment,3)),user_uv_cost),IF(C7="POU",VLOOKUP(hh_select,pou_uv_equipment,3),VLOOKUP(hh_select,poe_uv_equipment,3))) -> 0 | J27: =I27*C27*E27 -> 0 | K27: =uv*IF(user=1,IF(user_uv_cost="",VLOOKUP(hh_select,pou_uv_equipment,5),VLOOKUP(hh_select,user_uv_equipment,5)),VLOOKUP(hh_select,pou_uv_equipment,5)) -> 0 | M27: =$B$23&" - "&B27 -> Installed Treatment Equipment - UV Purchase | N27: 1 | O27: 1 | P27: 1 | Q27: 1 | R27: 1 | S27: 1 | T27: 1 | U27: 1 | V27: 1
A28: 1.5 | B28: UV Installation | C28: =uv*VLOOKUP(B28,install_hours,treat_select+3,FALSE) -> 0 | D28: hours/household | E28: =uv*hh_select -> 0 | F28: households | I28: =uv*IF(user=1,IF(ISBLANK(user_install_rate),install_rate,user_install_rate),install_rate) -> 0 | J28: =I28*C28*E28 -> 0 | K28: =K27 -> 0 | M28: =$B$23&" - "&B28 -> Installed Treatment Equipment - UV Installation | N28: 1 | O28: 1 | P28: 1 | Q28: 1 | R28: 1 | S28: 1 | T28: 1 | U28: 1 | V28: 1
A29: 2 | B29: Public Education
A30: 2.1 | B30: Technical Labor
A31: 2.1.1 | B31: Develop materials | C31: =VLOOKUP(B31,tech_labor,treat_select+3,FALSE) -> 10 | D31: hours | I31: =IF(user=1,IF(ISBLANK(user_tech_rate),tech_rate,user_tech_rate),tech_rate) -> 33.2651621 | J31: =I31*C31 -> 332.651621 | K31: N/A | L31: 1 | M31: =$B$29&" - "&$B$30&" - "&B31 -> Public Education - Technical Labor - Develop materials | N31: 1 | O31: 1 | P31: 1 | Q31: 1 | R31: 1 | S31: 1 | T31: 1 | U31: 1 | V31: 1
A32: 2.1.2 | B32: Nitrate health effects | C32: =nitrate_select*VLOOKUP(B32,tech_labor,treat_select+3,FALSE) -> 0 | D32: hours | I32: =IF(user=1,IF(ISBLANK(user_tech_rate),tech_rate,user_tech_rate),tech_rate) -> 33.2651621 | J32: =I32*C32 -> 0 | K32: N/A | M32: =$B$29&" - "&$B$30&" - "&B32 -> Public Education - Technical Labor - Nitrate health effects | N32: 1 | O32: 1 | P32: 1 | Q32: 1 | R32: 1 | S32: 1 | T32: 1 | U32: 1 | V32: 1
A33: 2.1.3 | B33: Meetings | C33: =VLOOKUP(B33,tech_labor,treat_select+3,FALSE) -> 2 | D33: hours | I33: =IF(user=1,IF(ISBLANK(user_tech_rate),tech_rate,user_tech_rate),tech_rate) -> 33.2651621 | J33: =I33*C33 -> 66.5303242 | K33: N/A | L33: 1 | M33: =$B$29&" - "&$B$30&" - "&B33 -> Public Education - Technical Labor - Meetings | N33: 1 | O33: 1 | P33: 1 | Q33: 1 | R33: 1 | S33: 1 | T33: 1 | U33: 1 | V33: 1
A34: 2.1.4 | B34: Post-meeting | C34: =VLOOKUP(B34,tech_labor,treat_select+3,FALSE) -> 2 | D34: hours | I34: =IF(user=1,IF(ISBLANK(user_tech_rate),tech_rate,user_tech_rate),tech_rate) -> 33.2651621 | J34: =I34*C34 -> 66.5303242 | K34: N/A | L34: 1 | M34: =$B$29&" - "&$B$30&" - "&B34 -> Public Education - Technical Labor - Post-meeting | N34: 1 | O34: 1 | P34: 1 | Q34: 1 | R34: 1 | S34: 1 | T34: 1 | U34: 1 | V34: 1
A35: 2.2 | B35: Clerical Labor
A36: 2.2.1 | B36: Develop materials | C36: =VLOOKUP(B36,clerical_labor,treat_select+3,FALSE) -> 6 | D36: hours | I36: =IF(user=1,IF(ISBLANK(user_cler_rate),clerical_rate,user_cler_rate),clerical_rate) -> 32.03728777 | J36: =I36*C36 -> 192.2237266 | K36: N/A | L36: 1 | M36: =$B$29&" - "&$B$35&" - "&B36 -> Public Education - Clerical Labor - Develop materials | N36: 1 | O36: 1 | P36: 1 | Q36: 1 | R36: 1 | S36: 1 | T36: 1 | U36: 1 | V36: 1
A37: 2.2.2 | B37: Nitrate health effects | C37: =nitrate_select*VLOOKUP(B37,clerical_labor,treat_select+3,FALSE) -> 0 | D37: hours | I37: =IF(user=1,IF(ISBLANK(user_cler_rate),clerical_rate,user_cler_rate),clerical_rate) -> 32.03728777 | J37: =I37*C37 -> 0 | K37: N/A | M37: =$B$29&" - "&$B$35&" - "&B37 -> Public Education - Clerical Labor - Nitrate health effects | N37: 1 | O37: 1 | P37: 1 | Q37: 1 | R37: 1 | S37: 1 | T37: 1 | U37: 1 | V37: 1
A38: 2.2.3 | B38: Meetings | C38: =VLOOKUP(B38,clerical_labor,treat_select+3,FALSE) -> 2 | D38: hours | I38: =IF(user=1,IF(ISBLANK(user_cler_rate),clerical_rate,user_cler_rate),clerical_rate) -> 32.03728777 | J38: =I38*C38 -> 64.07457553 | K38: N/A | L38: 1 | M38: =$B$29&" - "&$B$35&" - "&B38 -> Public Education - Clerical Labor - Meetings | N38: 1 | O38: 1 | P38: 1 | Q38: 1 | R38: 1 | S38: 1 | T38: 1 | U38: 1 | V38: 1
A39: 2.2.4 | B39: Post-meeting | C39: =VLOOKUP(B39,clerical_labor,treat_select+3,FALSE) -> 2 | D39: hours | I39: =IF(user=1,IF(ISBLANK(user_cler_rate),clerical_rate,user_cler_rate),clerical_rate) -> 32.03728777 | J39: =I39*C39 -> 64.07457553 | K39: N/A | L39: 1 | M39: =$B$29&" - "&$B$35&" - "&B39 -> Public Education - Clerical Labor - Post-meeting | N39: 1 | O39: 1 | P39: 1 | Q39: 1 | R39: 1 | S39: 1 | T39: 1 | U39: 1 | V39: 1
A40: 2.3 | B40: Printed Material
A41: 2.3.1 | B41: Meeting flyers | C41: =VLOOKUP(B41,ed_material,treat_select+3,FALSE) -> 10 | D41: flyers | I41: =IF(user=1,IF(ISBLANK(user_flyer_cost),VLOOKUP($B41,printed_material_cost,3,FALSE),user_flyer_cost),VLOOKUP($B41,printed_material_cost,3,FALSE)) -> 1.756666667 | J41: =I41*C41 -> 17.56666667 | K41: =VLOOKUP($B41,printed_material_cost,5,FALSE) -> N/A | L41: 1 | M41: =$B$29&" - "&$B$40&" - "&B41 -> Public Education - Printed Material - Meeting flyers | N41: 1 | O41: 1 | P41: 1 | Q41: 1 | R41: 1 | S41: 1 | T41: 1 | U41: 1 | V41: 1
A42: 2.3.2 | B42: Meeting ads | C42: =VLOOKUP(B42,ed_material,treat_select+3,FALSE) -> 1 | D42: ads | I42: =IF(user=1,IF(ISBLANK(user_ad_cost),VLOOKUP($B42,printed_material_cost,3,FALSE),user_ad_cost),VLOOKUP($B42,printed_material_cost,3,FALSE)) -> 68.875 | J42: =I42*C42 -> 68.875 | K42: =VLOOKUP($B42,printed_material_cost,5,FALSE) -> N/A | L42: 1 | M42: =$B$29&" - "&$B$40&" - "&B42 -> Public Education - Printed Material - Meeting ads | N42: 1 | O42: 1 | P42: 1 | Q42: 1 | R42: 1 | S42: 1 | T42: 1 | U42: 1 | V42: 1
A43: 2.3.3 | B43: Nitrate awareness flyers | C43: =nitrate_select*VLOOKUP(B43,ed_material,treat_select+3,FALSE) -> 0 | D43: flyers | I43: =IF(user=1,IF(ISBLANK(user_flyer_cost),VLOOKUP($B43,printed_material_cost,3,FALSE),user_flyer_cost),VLOOKUP($B43,printed_material_cost,3,FALSE)) -> 1.756666667 | J43: =I43*C43 -> 0 | K43: =VLOOKUP($B43,printed_material_cost,5,FALSE) -> N/A | M43: =$B$29&" - "&$B$40&" - "&B43 -> Public Education - Printed Material - Nitrate awareness flyers | N43: 1 | O43: 1 | P43: 1 | Q43: 1 | R43: 1 | S43: 1 | T43: 1 | U43: 1 | V43: 1
A44: 2.3.4 | B44: Meeting handouts | C44: =VLOOKUP(B44,ed_material,treat_select+3,FALSE) -> 3 | D44: pages/household | E44: =hh_select -> 115 | F44: households | I44: =IF(user=1,IF(ISBLANK(user_print_cost),VLOOKUP($B44,printed_material_cost,3,FALSE),user_print_cost),VLOOKUP($B44,printed_material_cost,3,FALSE)) -> 0.1733333333 | J44: =I44*E44*C44 -> 59.8 | K44: =VLOOKUP($B44,printed_material_cost,5,FALSE) -> N/A | L44: 1 | M44: =$B$29&" - "&$B$40&" - "&B44 -> Public Education - Printed Material - Meeting handouts | N44: 1 | O44: 1 | P44: 1 | Q44: 1 | R44: 1 | S44: 1 | T44: 1 | U44: 1 | V44: 1
A45: 2.3.5 | B45: Billing mailers | C45: =VLOOKUP(B45,ed_material,treat_select+3,FALSE) -> 2 | D45: pages/household | E45: =hh_select -> 115 | F45: households | I45: =IF(user=1,IF(ISBLANK(user_print_cost),VLOOKUP($B45,printed_material_cost,3,FALSE),user_print_cost),VLOOKUP($B45,printed_material_cost,3,FALSE)) -> 0.1733333333 | J45: =I45*E45*C45 -> 39.86666667 | K45: =VLOOKUP($B45,printed_material_cost,5,FALSE) -> N/A | L45: 1 | M45: =$B$29&" - "&$B$40&" - "&B45 -> Public Education - Printed Material - Billing mailers | N45: 1 | O45: 1 | P45: 1 | Q45: 1 | R45: 1 | S45: 1 | T45: 1 | U45: 1 | V45: 1
A46: 3 | B46: Initial Year Monitoring 1
A47: 3.1 | B47: Sampling time | C47: =VLOOKUP(B47,initial_sample,treat_select+3,FALSE) -> 0.25 | D47: hours/household | E47: =hh_select-IF(nitrate_select=1,hh_select,ROUND(hh_select*VLOOKUP("Frequency",lab_analysis,treat_select+3,FALSE),0)) -> 77 | F47: households | I47: =IF(user=1,IF(ISBLANK(user_tech_rate),tech_rate,user_tech_rate),tech_rate) -> 33.2651621 | J47: =I47*C47*E47 -> 640.3543704 | K47: N/A | M47: =$B$46&" - "&B47 -> Initial Year Monitoring 1 - Sampling time | N47: 1 | O47: 1 | P47: 1 | Q47: 1 | R47: 1 | S47: 1 | T47: 1 | U47: 1 | V47: 1
A48: 3.2 | B48: Sampling scheduling time | C48: =VLOOKUP(B48,initial_sample,treat_select+3,FALSE) -> 0 | D48: hours/household | E48: =hh_select-IF(nitrate_select=1,hh_select,ROUND(hh_select*VLOOKUP("Frequency",lab_analysis,treat_select+3,FALSE),0)) -> 77 | F48: households | I48: =IF(user=1,IF(ISBLANK(user_cler_rate),clerical_rate,user_cler_rate),clerical_rate) -> 32.03728777 | J48: =I48*C48*E48 -> 0 | K48: N/A | M48: =$B$46&" - "&B48 -> Initial Year Monitoring 1 - Sampling scheduling time | N48: 1 | O48: 1 | P48: 1 | Q48: 1 | R48: 1 | S48: 1 | T48: 1 | U48: 1 | V48: 1
A49: 3.3 | B49: Analysis | C49: =VLOOKUP(B49,initial_sample,treat_select+3,FALSE) -> 1 | D49: samples/household | E49: =hh_select-IF(nitrate_select=1,hh_select,ROUND(hh_select*VLOOKUP("Frequency",lab_analysis,treat_select+3,FALSE),0)) -> 77 | F49: households | I49: =IF(user=1,IF(ISBLANK(user_lab_cost),VLOOKUP($C5,lab_analysis_cost,3,FALSE),user_lab_cost),VLOOKUP($C5,lab_analysis_cost,3,FALSE)) -> 29.67253825 | J49: =I49*C49*E49 -> 2284.785445 | K49: N/A | L49: 1 | M49: =$B$46&" - "&B49 -> Initial Year Monitoring 1 - Analysis | N49: 1 | O49: 1 | P49: 1 | Q49: 1 | R49: 1 | S49: 1 | T49: 1 | U49: 1 | V49: 1
A50: 3.4 | B50: Analysis (total coliform) | C50: =C49 -> 1 | D50: =D49 -> samples/household | E50: =hh_select-IF(nitrate_select=1,hh_select,ROUND(hh_select*VLOOKUP("Frequency",lab_analysis,treat_select+3,FALSE),0)) -> 77 | F50: =F49 -> households | I50: =IF(user=1,IF(ISBLANK(user_tc_cost),VLOOKUP("Total coliform",lab_analysis_cost,3,FALSE),user_tc_cost),VLOOKUP("Total coliform",lab_analysis_cost,3,FALSE)) -> 28.88127056 | J50: =I50*C50*E50 -> 2223.857833 | K50: N/A | L50: 1 | M50: =$B$46&" - "&B50 -> Initial Year Monitoring 1 - Analysis (total coliform) | N50: 1 | O50: 1 | P50: 1 | Q50: 1 | R50: 1 | S50: 1 | T50: 1 | U50: 1 | V50: 1
A51: 3.5 | B51: Shipping | C51: =C49+C50 -> 2 | D51: samples/household | E51: =hh_select-IF(nitrate_select=1,hh_select,ROUND(hh_select*VLOOKUP("Frequency",lab_analysis,treat_select+3,FALSE),0)) -> 77 | F51: households | J51: =IF(E49>0,IF(AND(user=1,user_shipping>0),user_shipping,VLOOKUP(Shipping_Category,Shipping_Capital,2,FALSE)),0)+IF(C50>0,IF(AND(user=1,user_shipping_coliform>0),user_shipping_coliform,VLOOKUP("Coliform",Shipping_Capital,2,FALSE)),0) -> 543.575 | K51: N/A | L51: 1 | M51: =$B$46&" - "&B51 -> Initial Year Monitoring 1 - Shipping | N51: 1 | O51: 1 | P51: 1 | Q51: 1 | R51: 1 | S51: 1 | T51: 1 | U51: 1 | V51: 1 | X51: 10
A52: Note 1. The initial year monitoring cost estimates take into account the annual monitoring cost estimates that will overlap during the first year by netting out the O&M cost.
A54: Direct Costs | C54: Amount ($)
B55: Installed Treatment Equipment | C55: =SUM($J$24:$J$28) -> 80471.9744
B56: Public Education Costs | C56: =SUM($J$31:$J$45) -> 972.1934804
B57: Initial Year Monitoring Costs | C57: =SUM($J$47:$J$51) -> 5692.572649
B58: Total Direct Costs | C58: =SUM(C55:C57) -> 87136.74053
A60: Add-On Costs | C60: 0 | E60: Additional cost added to Total Capital Costs (Indirect Cost multipliers not applied).
A62: Indirect Costs
B63: Item | C63: Amount ($) | D63: Amount (%) | E63: Guidance on Estimating Cost
B64: Permitting | C64: =IF(AND(user=1,'User Input'!D68="$ fixed cost"),VLOOKUP(B64,indirect_cost,treat_select+3,FALSE),D64*$C$55) -> 2414.159232 | D64: =IF(AND(user=1,'User Input'!D68="$ fixed cost"),"--",VLOOKUP(B64,indirect_cost,treat_select+3,FALSE)) -> 0.03 | E64: Apply percentage to installed equipment only (not public education or initial sampling costs)
B65: Pilot Testing | C65: =IF(AND(user=1,'User Input'!D69="$ fixed cost"),VLOOKUP(B65,indirect_cost,treat_select+3,FALSE),D65*$C$55) -> 2414.159232 | D65: =IF(AND(user=1,'User Input'!D69="$ fixed cost"),"--",VLOOKUP(B65,indirect_cost,treat_select+3,FALSE)) -> 0.03 | E65: Apply percentage to installed equipment only (not public education or initial sampling costs)
B66: Legal | C66: =IF(AND(user=1,'User Input'!D70="$ fixed cost"),VLOOKUP(B66,indirect_cost,treat_select+3,FALSE),D66*$C$55) -> 2414.159232 | D66: =IF(AND(user=1,'User Input'!D70="$ fixed cost"),"--",VLOOKUP(B66,indirect_cost,treat_select+3,FALSE)) -> 0.03 | E66: Apply percentage to installed equipment only (not public education or initial sampling costs)
B67: Engineering | C67: =IF(AND(user=1,'User Input'!D71="$ fixed cost"),VLOOKUP(B67,indirect_cost,treat_select+3,FALSE),D67*$C$55) -> 12070.79616 | D67: =IF(AND(user=1,'User Input'!D71="$ fixed cost"),"--",VLOOKUP(B67,indirect_cost,treat_select+3,FALSE)) -> 0.15 | E67: Apply percentage to installed equipment only (not public education or initial sampling costs)
B68: Contingency | C68: =IF(AND(user=1,'User Input'!D72="$ fixed cost"),VLOOKUP(B68,indirect_cost,treat_select+3,FALSE),D68*$C$55) -> 8047.19744 | D68: =IF(AND(user=1,'User Input'!D72="$ fixed cost"),"--",VLOOKUP(B68,indirect_cost,treat_select+3,FALSE)) -> 0.1 | E68: Apply percentage to installed equipment only (not public education or initial sampling costs)
B69: Total Indirect Costs | C69: =SUM(C64:C68) -> 27360.4713
B70: Placeholder | C70: 0
A71: Total Capital Costs
B72: Assumption | C72: Value | D72: Guidance
B73: City Index for Total Capital Cost | C73: 1 | D73: User adjustable. Can be used to adjust estimated costs to be more reflective of a specific geographical location
C75: Amount ($)
B76: Total Capital Costs | C76: =(direct_cost*(1+indirect_cost_mult)+addon_cost+indirect_cost_add)*city_index -> 114497.2118
B77: Total Capital Costs (Rounded) | C77: =ROUND(C76,0) -> 114497
A79: Operating and Maintenance Costs
B80: Assumption | C80: Value | D80: Guidance
B81: City Index for Total O&M Cost | C81: 1 | D81: User adjustable. Can be used to adjust estimated costs to be more reflective of a specific geographical location
B83: Item | C83: Quantity | E83: Frequency | I83: Unit Cost | J83: Total Cost
B84: Labor
B85: Technical Labor
B86: POU/POE Maintenance | C86: =INDEX(maint_time,1,treat_select) -> 0.5 | D86: hours/household | E86: =INDEX(maint_frequency,1,treat_select)*hh_select -> 115 | F86: household visits/year | I86: =IF(user=1,IF(ISBLANK(user_tech_rate),tech_rate,user_tech_rate),tech_rate) -> 33.2651621 | J86: =I86*E86*C86 -> 1912.746821 | L86: 1
B87: UV Maintenance | C87: =uv*INDEX(UV_maint_time,1,treat_select) -> 0 | D87: hours/household | E87: =uv*INDEX(UV_maint_frequency,1,treat_select)*hh_select -> 0 | F87: household visits/year | I87: =uv*IF(user=1,IF(ISBLANK(user_tech_rate),tech_rate,user_tech_rate),tech_rate) -> 0 | J87: =I87*E87*C87 -> 0 | L87: 1
B88: Information updates | C88: =VLOOKUP(B88,tech_labor_om,treat_select+3,FALSE) -> 12 | D88: hours/year | I88: =IF(user=1,IF(ISBLANK(user_tech_rate),tech_rate,user_tech_rate),tech_rate) -> 33.2651621 | J88: =I88*C88 -> 399.1819452 | L88: 1
B89: Nitrate information updates | C89: =nitrate_select*VLOOKUP(B89,tech_labor_om,treat_select+3,FALSE) -> 0 | D89: hours/year | I89: =nitrate_select*IF(user=1,IF(ISBLANK(user_tech_rate),tech_rate,user_tech_rate),tech_rate) -> 0 | J89: =I89*C89 -> 0 | L89: 1
B90: Clerical Labor
B91: Maintenance Scheduling | C91: =INDEX(maint_scheduling,1,treat_select) -> 0.5 | D91: hours/household | E91: =INDEX(maint_frequency,1,treat_select)*hh_select -> 115 | F91: household visits/year | I91: =IF(user=1,IF(ISBLANK(user_cler_rate),clerical_rate,user_cler_rate),clerical_rate) -> 32.03728777 | J91: =I91*E91*C91 -> 1842.144047 | L91: 1
B92: Information updates | C92: =VLOOKUP(B92,clerical_labor_om,treat_select+3,FALSE) -> 12 | D92: hours/year | I92: =IF(user=1,IF(ISBLANK(user_cler_rate),clerical_rate,user_cler_rate),clerical_rate) -> 32.03728777 | J92: =I92*C92 -> 384.4474532 | L92: 1
B93: Nitrate information updates | C93: =nitrate_select*VLOOKUP(B93,clerical_labor_om,treat_select+3,FALSE) -> 0 | D93: hours/year | I93: =nitrate_select*IF(user=1,IF(ISBLANK(user_cler_rate),clerical_rate,user_cler_rate),clerical_rate) -> 0 | J93: =I93*C93 -> 0 | L93: 1
B94: Materials
B95: =IF(AND(user=1,'User Input'!C104>0),'User Input'!C104,INDEX(INDIRECT(VLOOKUP(treat_select,name_list,5,FALSE)),1,1)) -> Media Cartridge | C95: =IF(AND(user=1,'User Input'!C106>0),'User Input'!C106,INDEX(INDIRECT(VLOOKUP(treat_select,name_list,5,FALSE)),1,2)) -> 1 | D95: units/household | E95: =IF(C95>0,hh_select,0) -> 115 | F95: households/year | I95: =IF(AND(user=1,'User Input'!C105>0),'User Input'!C105,IF(C95>0,VLOOKUP(B95,INDIRECT(VLOOKUP(treat_select,name_list,4,FALSE)),3,FALSE),0)) -> 120.1783993 | J95: =I95*E95*C95 -> 13820.51591 | L95: 1
B96: =IF(AND(user=1,'User Input'!C108>0),'User Input'!C108,INDEX(INDIRECT(VLOOKUP(treat_select,name_list,5,FALSE)),2,1)) -> NA | C96: =IF(AND(user=1,'User Input'!C110>0),'User Input'!C110,INDEX(INDIRECT(VLOOKUP(treat_select,name_list,5,FALSE)),2,2)) -> 0 | D96: units/household | E96: =IF(C96>0,hh_select,0) -> 0 | F96: households/year | I96: =IF(AND(user=1,'User Input'!C109>0),'User Input'!C109,IF(C96>0,VLOOKUP(B96,INDIRECT(VLOOKUP(treat_select,name_list,4,FALSE)),3,FALSE),0)) -> 0 | J96: 0 | L96: 1
B97: =IF(AND(user=1,'User Input'!C112>0),'User Input'!C112,INDEX(INDIRECT(VLOOKUP(treat_select,name_list,5,FALSE)),3,1)) -> NA | C97: =IF(AND(user=1,'User Input'!C114>0),'User Input'!C114,INDEX(INDIRECT(VLOOKUP(treat_select,name_list,5,FALSE)),3,2)) -> 0 | D97: units/household | E97: 0 | F97: households/year | I97: =IF(AND(user=1,'User Input'!C113>0),'User Input'!C113,IF(C97>0,VLOOKUP(B97,INDIRECT(VLOOKUP(treat_select,name_list,4,FALSE)),3,FALSE),0)) -> 0 | J97: 0 | L97: 1
B98: =IF(AND(user=1,'User Input'!C116>0),'User Input'!C116,INDEX(INDIRECT(VLOOKUP(treat_select,name_list,5,FALSE)),4,1)) -> NA | C98: =IF(AND(user=1,'User Input'!C118>0),'User Input'!C118,INDEX(INDIRECT(VLOOKUP(treat_select,name_list,5,FALSE)),4,2)) -> 0 | D98: units/household | E98: 0 | F98: households/year | I98: =IF(AND(user=1,'User Input'!C117>0),'User Input'!C117,IF(C98>0,VLOOKUP(B98,INDIRECT(VLOOKUP(treat_select,name_list,4,FALSE)),3,FALSE),0)) -> 0 | J98: 0 | L98: 1
B99: =INDEX(pou_uv_replace,1,1) -> UV Lamp | C99: =uv*IF(AND(user=1,user_uv_lamp_freq>0),user_uv_lamp_freq,IF(C7="POU",INDEX(pou_uv_replace,1,2),INDEX(poe_uv_replace,1,2))) -> 0 | D99: units/household | E99: 0 | F99: households/year | I99: =uv*IF(AND(user=1,user_uv_lamp>0),user_uv_lamp,IF(C7="POU",VLOOKUP(B99,pou_uv_parts,3,FALSE),VLOOKUP(B99,poe_uv_parts,3,FALSE))) -> 0 | J99: 0 | L99: 1
B100: =INDEX(pou_uv_replace,2,1) -> UV Quartz Sleeve | C100: =uv*IF(AND(user=1,user_uv_sleeve>0),user_uv_sleeve,IF(C7="POU",INDEX(pou_uv_replace,2,2),INDEX(poe_uv_replace,2,2))) -> 0 | D100: units/household | E100: 0 | F100: households/year | I100: =uv*IF(AND(user=1,user_uv_sleeve_freq>0),user_uv_sleeve_freq,IF(C7="POU",VLOOKUP(B100,pou_uv_parts,3,FALSE),VLOOKUP(B100,poe_uv_parts,3,FALSE))) -> 0 | J100: 0 | L100: 1
B101: Nitrate awareness flyers | C101: =nitrate_select*VLOOKUP(B101,ed_material_om,treat_select+3,FALSE) -> 0 | D101: flyers/year | I101: =nitrate_select*IF(user=1,IF(ISBLANK(user_flyer_cost),VLOOKUP($B101,printed_material_cost,3,FALSE),user_flyer_cost),VLOOKUP($B101,printed_material_cost,3,FALSE)) -> 0 | J101: =I101*C101 -> 0 | L101: 1
B102: Billing mailers | C102: =VLOOKUP(B102,ed_material_om,treat_select+3,FALSE) -> 3 | D102: pages/household | E102: 115 | F102: households/year | I102: =IF(user=1,IF(ISBLANK(user_print_cost),VLOOKUP($B102,printed_material_cost,3,FALSE),user_print_cost),VLOOKUP($B102,printed_material_cost,3,FALSE)) -> 0.1733333333 | J102: =I102*E102*C102 -> 59.8 | L102: 1
B103: Laboratory Analysis
B104: Sampling time | C104: =VLOOKUP(B104,lab_analysis,treat_select+3,FALSE) -> 0.25 | D104: hours/household | E104: =IF(nitrate_select=1,hh_select,ROUND(hh_select*VLOOKUP("Frequency",lab_analysis,treat_select+3,FALSE),0)) -> 38 | F104: households/year | I104: =IF(user=1,IF(ISBLANK(user_tech_rate),tech_rate,user_tech_rate),tech_rate) -> 33.2651621 | J104: =I104*E104*C104 -> 316.0190399 | L104: 1
B105: Sampling scheduling time | C105: =VLOOKUP(B105,lab_analysis,treat_select+3,FALSE) -> 0 | D105: hours/household | E105: =IF(nitrate_select=1,hh_select,ROUND(hh_select*VLOOKUP("Frequency",lab_analysis,treat_select+3,FALSE),0)) -> 38 | F105: households/year | I105: =IF(user=1,IF(ISBLANK(user_cler_rate),clerical_rate,user_cler_rate),clerical_rate) -> 32.03728777 | J105: =I105*E105*C105 -> 0 | L105: 1
B106: Analysis | C106: =VLOOKUP(B106,lab_analysis,treat_select+3,FALSE) -> 1 | D106: samples/household | E106: =IF(nitrate_select=1,hh_select,ROUND(hh_select*VLOOKUP("Frequency",lab_analysis,treat_select+3,FALSE),0)) -> 38 | F106: households/year | I106: =IF(AND(user=1,user_lab_cost>0),user_lab_cost,VLOOKUP(C5,lab_analysis_cost,3,FALSE)) -> 29.67253825 | J106: =I106*E106*C106 -> 1127.556453 | L106: 1
B107: Analysis (total coliform) | C107: =C106 -> 1 | D107: samples/household | E107: =E106 -> 38 | F107: households/year | I107: =IF(AND(user=1,user_tc_cost>0),user_tc_cost,VLOOKUP("Total coliform",lab_analysis_cost,3,FALSE)) -> 28.88127056 | J107: =I107*E107*C107 -> 1097.488281
B108: Shipping | C108: =C106 -> 1 | D108: samples/household | E108: =IF(nitrate_select=1,hh_select,ROUND(hh_select*VLOOKUP("Frequency",lab_analysis,treat_select+3,FALSE),0)) -> 38 | F108: households/year | J108: =IF(E106>0,IF(AND(user=1,user_shipping>0),user_shipping,VLOOKUP(Shipping_Category,Shipping_OM,2,FALSE)),0)+IF(C107>0,IF(AND(user=1,user_shipping_coliform>0),user_shipping_coliform,VLOOKUP("Coliform",Shipping_OM,2,FALSE)),0) -> 275.95 | L108: 1
A110: Total O&M costs | J110: =SUM(J86:J109)*OM_City_Index -> 21235.84995
A112: ="Annualized Capital Costs (per year over "&discount_period&" years at "&discount_rate*100&"% discount rate)" -> Annualized Capital Costs (per year over 10 years at 7% discount rate) | J112: =PMT(discount_rate,discount_period,-$C$76) -> 16301.82709
A113: Total Annualized Costs = Annualized Capital Costs + O&M costs | J113: =$J$110+J112 -> 37537.67704
A114: Average Unit Cost ($/kgal, based on average production equivalent for centralized treatment) | J114: =J113/average_annual_production -> 3.932705819
A115: Average Annual Cost per Household | J115: =J113/hh_select -> 326.414583
D150: 0

Sheet Control
B1: To add new contaminants, insert into this table a column after the last column with data in it and before the yellow column. Then, highlight the list of treatment technologies and insert a range name using the contaminant's name.
B2: To add certified technologies for a contaminant, insert into this table a row between the last row with data in it and the yellow row, and copy a POU or POE technology name from Table 2.
B3: This will preserve the range names used in the input sheet and validity checks.
B4: Table 1. Treatment Technologies Certified to Remove a Contaminant
B5: Radium | C5: Arsenic | D5: SOCs | E5: Nitrate | F5: Barium | G5: Cadmium | H5: Chromium | I5: Copper | J5: Fluoride | K5: Mercury | L5: VOCs | M5: Perchlorate | N5: PFAS
B6: POU Reverse Osmosis | C6: POU Adsorptive Media NSF53 | D6: POU GAC | E6: POU Reverse Osmosis | F6: POU Reverse Osmosis | G6: POU Reverse Osmosis | H6: POU Reverse Osmosis | I6: POU GAC | J6: POU Reverse Osmosis | K6: POU GAC | L6: POU GAC | M6: POU Reverse Osmosis | N6: POU Reverse Osmosis
B7: POU RO Rental | C7: POU Reverse Osmosis | E7: POU RO Rental | F7: POU RO Rental | G7: POU RO Rental | H7: POU RO Rental | I7: POU Reverse Osmosis | J7: POU RO Rental
B8: POE Cation Exchange | C8: POU RO Rental | F8: POE Cation Exchange | I8: POU RO Rental
B11: Table 2. Range Name Control Table
B12: Treatment Technology | C12: Technology Number | E12: Equipment price range | F12: Parts price range | G12: Replacement frequency range
B13: POU RO Rental | C13: 1 | E13: pou_rorental_equipment | F13: pou_rorental_parts | G13: pou_rorental_replace
B14: POU Adsorptive Media NSF53 | C14: 2 | E14: pou_ads_nsf53_equipment | F14: pou_ads_nsf53_parts | G14: pou_ads_nsf53_replace | V14: 1 | W14: =(1388+V14*488.5)/V14 -> 1876.5 | X14: =(0.08558*V14^1.0584)/1000 -> 8.558e-05 | Y14: =PMT(7%,10,-(1388+V14*488.5))/(X14*1000*365) -> 8.553124494
B15: POU Anion Exchange | C15: 3 | E15: pou_ax_equipment | F15: pou_ax_parts | G15: pou_ax_replace | V15: 2 | W15: =(1388+V15*488.5)/V15 -> 1182.5 | X15: =(0.08558*V15^1.0584)/1000 -> 0.0001782306658 | Y15: =PMT(7%,10,-(1388+V15*488.5))/(X15*1000*365) -> 5.176035214
B16: POU Cation Exchange | C16: 4 | E16: pou_cx_equipment | F16: pou_cx_parts | G16: pou_cx_replace | V16: 3 | W16: 951.1666667 | X16: 0.000273752074 | Y16: 4.066014897
B17: POU GAC | C17: 5 | E17: pou_gac_equipment | F17: pou_gac_parts | G17: pou_gac_replace | V17: 4 | W17: 835.5 | X17: 0.0003711868456 | Y17: 3.512063628
B18: POU Reverse Osmosis | C18: 6 | E18: pou_ro_equipment | F18: pou_ro_parts | G18: pou_ro_replace | V18: 5 | W18: 766.1 | X18: 0.0004700695665 | Y18: 3.178643619
B19: POE Adsorptive Media | C19: 7 | E19: poe_ads_equipment | F19: poe_ads_parts | G19: poe_ads_replace | V19: 6 | W19: 719.8333333 | X19: 0.0005701216923 | Y19: 2.955045316
B20: POE Anion Exchange | C20: 8 | E20: poe_ax_equipment | F20: poe_ax_parts | G20: poe_ax_replace | V20: 7 | W20: 686.7857143 | X20: 0.0006711568819 | Y20: 2.794111623
B21: POE Cation Exchange | C21: 9 | E21: poe_cx_equipment | F21: poe_cx_parts | G21: poe_cx_replace | V21: 8 | W21: 662 | X21: 0.000773041349 | Y21: 2.672352593
B22: POE Aeration | C22: 10 | E22: poe_aer_equipment | F22: poe_aer_parts | G22: poe_aer_replace | V22: 9 | W22: 642.7222222 | X22: 0.0008756741997 | Y22: 2.576746994
B23: POE GAC with Auto-Backwash | C23: 11 | E23: poe_gac_bw_equipment | F23: poe_gac_bw_parts | G23: poe_gac_bw_replace | V23: 10 | W23: 627.3 | X23: 0.0009789765345 | Y23: 2.499490625
B24: POE GAC w/out Auto-Backwash | C24: 12 | E24: poe_gac_equipment | F24: poe_gac_parts | G24: poe_gac_replace | V24: 20 | W24: 557.9 | X24: 0.002038836639 | Y24: 2.134776603
B25: User Define | C25: 13 | E25: user_equipment | F25: =VLOOKUP(user_treat_select,name_list,4,FALSE) -> pou_gac_parts | G25: =VLOOKUP(user_treat_select,name_list,5,FALSE) -> pou_gac_replace | V25: 30 | W25: 534.7666667 | X25: 0.003131536068 | Y25: 1.998373547
V26: 40 | W26: 523.2 | X26: 0.004246123063 | Y26: 1.922576619
B27: Control Section (selects range values based on design approach) | V27: 50 | W27: 516.26 | X27: 0.005377273606 | Y27: 1.872513052
B28: Selected User mode | C28: user | D28: =IF(user_I="User-Defined System",1,"") ->  | V28: 60 | W28: 511.6333333 | X28: 0.006521801338 | Y28: 1.836077561
B29: Selected Contaminant | C29: contam | D29: =IF(user=1,contam_user,contam_stand) -> Arsenic | V29: 80 | W29: 505.85 | X29: 0.008843063109 | Y29: 1.78507934
B30: Selected Treatment Column | C30: treat_select | D30: =IF(user=1,13,VLOOKUP(treat,system_assign,2,FALSE)) -> 2 | V30: 90 | W30: 503.9222222 | X30: 0.01001711257 | Y30: 1.766086507
B31: Selected Component Level | C31: component_level | D31: =IF(component_level_I="high cost",2,IF(component_level_I="mid cost",1,"")) -> 1 | V31: 100 | W31: 502.38 | X31: 0.01119882046 | Y31: 1.749881204
B32: If User Defined, Default Column | C32: user_treat_select | D32: =VLOOKUP(user_treat,system_assign,2,FALSE) -> 5 | V32: 110 | W32: 501.1181818 | X32: 0.012387461 | Y32: 1.735797474
B33: Households for user input sheet | D33: =ROUND(IF(user_design="average flow",IF(user_source_select="ground water",(((user_flow/1000)/(0.08558))^(1/1.0584)),(((user_flow/1000)/(0.14004))^(1/0.99703)))/hh_size,user_pop),0) -> 25 | V33: 125 | W33: 499.604 | X33: 0.01418214234 | Y33: 1.717681296
B34: Households from selected mode (rounded) | C34: hh_select | D34: =ROUND(IF(user=1,D33,hh_stand),0) -> 115 | V34: 150 | W34: 497.7533333 | X34: 0.01720074552 | Y34: 1.69319381
B35: Design flow units | C35: df_units | D35: =IF(user=1,"",IF(INPUT!D27="MGD",1,2)) -> 1 | E35: 1=million gallons per day; 2=gallons per minute
B36: Average flow units | C36: af_units | D36: =IF(user=1,"",IF(INPUT!D28="MGD",1,2)) -> 1 | E36: 1=million gallons per day; 2=gallons per minute
B37: Shipping Category | C37: Shipping_Category | D37: =VLOOKUP(contam,Shipping_Choices,2,FALSE) -> IOCs
C39: uv | D39: =IF(user=1,IF(uv_user_select="yes",1,0),IF(uv_select="yes",1,0)) -> 0 | V39: 175 | W39: 496.4314286 | X39: 0.02024900804 | Y39: 1.673563021
C40: nitrate_select | D40: =IF(contam="nitrate",1,0) -> 0
C42: average_annual_production | D42: =hh_select*IF(hh_select<500,83000,IF(hh_select<3300,85000,89000))/1000 -> 9545 | E42: kgal/year
C43: average_flow_production | D43: =average_annual_production/365/1000 -> 0.02615068493 | E43: mgd
D45: Min Number Households | E45: Max Number Households | F45: Avg. Unit Cost | G45: Useful Life (large) | H45: Useful Life (small)
C46: user_equipment | D46: 0 | E46: 1000 | F46: =IF(user_unit_cost="",VLOOKUP(hh_select,INDIRECT(VLOOKUP(user_treat_select,name_list,3,FALSE)),3),user_unit_cost) -> 395.2118532 | G46: 10 | H46: 10
C47: user_uv_equipment | D47: 0 | E47: 1000 | F47: =IF(user_uv_cost="0",VLOOKUP(hh_select,pou_uv_equipment,3),user_uv_cost) -> 0 | G47: 10 | H47: 10
B50: Treatment Technology | C50: Treatment Shipping Category
B51: Radium | C51: Radionuclides
B52: Arsenic | C52: IOCs
B53: SOCs | C53: SOCs
B54: Nitrate | C54: IOCs
B55: Barium | C55: IOCs
B56: Cadmium | C56: IOCs
B57: Chromium | C57: IOCs
B58: Copper | C58: IOCs
B59: Fluoride | C59: IOCs
B60: Lead | C60: IOCs
B61: Mercury | C61: IOCs
B62: VOCs | C62: VOCs
B63: Perchlorate | C63: SOCs
B64: PFAS | C64: SOCs

Sheet Price Tables
A1: Price Tables
A2: Instructions: Do not revise information in gray cells. Enter price data in yellow cells only. Copy formulas as needed.
A3: POU and POE Device Prices
A4: Price Tables for NSF-approved devices. Mention of a vendor or product does not constitute an endorsement.
B5: POU RO Rental Equipment
B6: Number Households | C6: Number Households | D6: Avg. Unit Cost | E6: Useful Life (large) | F6: Useful Life (small) | G6: Original Vendor Quote | H6: Quote+Inst | I6: Quote+Inst+Trans | J6: Year of Original Quote | K6: Adjusted Cost, including installation and transportation | L6: Source | M6: Installation Multiplier | N6: Unit cost | O6: Unit cost + Inst | P6: Unit cost+Inst+Trans | Q6: Year | R6: Adjusted Cost, including installation and transportation | S6: Source | T6: Installation Multiplier | U6: Unit cost | V6: Unit cost + Inst | W6: Unit cost+Inst+Trans | X6: Year | Y6: Adjusted Cost, including installation and transportation | Z6: Source | AA6: Installation Multiplier | AB6: Unit cost | AC6: Unit cost + Inst | AD6: Unit cost+Inst+Trans | AE6: Year | AF6: Adjusted Cost, including installation and transportation | AG6: Source | AH6: Installation Multiplier | AI6: Unit cost | AJ6: Unit cost + Inst | AK6: Unit cost+Inst+Trans | AL6: Year | AM6: Adjusted Cost, including installation and transportation | AN6: Source | AO6: Installation multiplier | AP6: Unit cost | AQ6: Unit cost + Inst | AR6: Unit cost+Inst+Trans | AS6: Year | AT6: Adjusted Cost, including installation and transportation | AU6: Source | AV6: Installation multiplier | BA6: Vendor 1 | BB6: Vendor 2 | BC6: Vendor 3 | BD6: Vendor 4 | BE6: Vendor 5 | BF6: Vendor 6
A7: pou_rorental_equipment | B7: 0 | C7: 4 | D7: 0 | E7: 10 | F7: 10 | M7: 1 | BA7: =IF(L7="Source",L7,IF(ISBLANK(L7),"","Vendor 1")) ->  | BB7: =IF(S7="Source",S7,IF(ISBLANK(S7),"","Vendor 2")) ->  | BC7: =IF(Z7="Source",Z7,IF(ISBLANK(Z7),"","Vendor 3")) ->  | BD7: =IF(AG7="Source",AG7,IF(ISBLANK(AG7),"","Vendor 4")) ->  | BE7: =IF(AN7="Source",AN7,IF(ISBLANK(AN7),"","Vendor 5")) ->  | BF7: =IF(AU7="Source",AU7,IF(ISBLANK(AU7),"","Vendor 6")) -> 
B8: 5 | C8: 15 | D8: 0 | E8: 10 | F8: 10 | M8: 1 | BA8: =IF(L8="Source",L8,IF(ISBLANK(L8),"","Vendor 1")) ->  | BB8: =IF(S8="Source",S8,IF(ISBLANK(S8),"","Vendor 2")) ->  | BC8: =IF(Z8="Source",Z8,IF(ISBLANK(Z8),"","Vendor 3")) ->  | BD8: =IF(AG8="Source",AG8,IF(ISBLANK(AG8),"","Vendor 4")) ->  | BE8: =IF(AN8="Source",AN8,IF(ISBLANK(AN8),"","Vendor 5")) ->  | BF8: =IF(AU8="Source",AU8,IF(ISBLANK(AU8),"","Vendor 6")) -> 
B9: 16 | C9: 24 | D9: 0 | E9: 10 | F9: 10 | M9: =$M$67 -> 1
B10: 25 | C10: 50 | D10: 0 | E10: 10 | F10: 10 | M10: =$M$67 -> 1
B11: 51 | C11: 100 | D11: 0 | E11: 10 | F11: 10 | M11: =$M$67 -> 1
B12: 101 | C12: 500 | D12: 0 | E12: 10 | F12: 10 | M12: =$M$67 -> 1
B13: 501 | C13: 1000 | D13: 0 | E13: 10 | F13: 10 | M13: =$M$67 -> 1
B14: POU RO Rental Annual O&M Expense
A15: pou_rorental_parts | B15: Annual Rental Cost | D15: =IF(AVERAGE(K15,R15,Y15,AF15,AM15,AT15)=0,"contact vendor",AVERAGE(K15,R15,Y15,AF15,AM15,AT15)) -> 344.4845643 | E15: N/A | F15: N/A | G15: =24.95*12 -> 299.4 | H15: =G15*M15 -> 299.4 | I15: =H15 -> 299.4 | J15: 2011 | K15: =I15*VLOOKUP(J15,cci_table,3,FALSE) -> 344.4845643 | L15: Cost Less Water Systems, 4-stage RO system rental rate ($24.95/mo). Prices online; accessed 2-1-11 (www.costlesswater.com). | M15: 1 | BA15: Vendor 1
B17: POU Adsorptive Media NSF53 Equipment
B18: Number Households | C18: Number Households | D18: Avg. Unit Cost | E18: Useful Life (large) | F18: Useful Life (small) | G18: Original Vendor Quote | H18: Quote+Inst | I18: Quote+Inst+Trans | J18: Year of Original Quote | K18: Adjusted Cost, including installation and transportation | L18: Source | M18: Installation Multiplier | N18: Unit cost | O18: Unit cost + Inst | P18: Unit cost+Inst+Trans | Q18: Year | R18: Adjusted Cost, including installation and transportation | S18: Source | T18: Installation Multiplier | U18: Unit cost | V18: Unit cost + Inst | W18: Unit cost+Inst+Trans | X18: Year | Y18: Adjusted Cost, including installation and transportation | Z18: Source | AA18: Installation Multiplier | AB18: Unit cost | AC18: Unit cost + Inst | AD18: Unit cost+Inst+Trans | AE18: Year | AF18: Adjusted Cost, including installation and transportation | AG18: Source | AH18: Installation Multiplier | AI18: Unit cost | AJ18: Unit cost + Inst | AK18: Unit cost+Inst+Trans | AL18: Year | AM18: Adjusted Cost, including installation and transportation | AN18: Source | AO18: Installation Multiplier | AP18: Unit cost | AQ18: Unit cost + Inst | AR18: Unit cost+Inst+Trans | AS18: Year | AT18: Adjusted Cost, including installation and transportation | AU18: Source | AV18: Installation multiplier | BA18: Source | BB18: Source | BC18: Source | BD18: Source | BE18: Source | BF18: Source
A19: pou_ads_nsf53_equipment | B19: 0 | C19: 4 | D19: =IF(AVERAGE(K19,R19,Y19,AF19,AM19,AT19)=0,"contact vendor",AVERAGE(K19,R19,Y19,AF19,AM19,AT19)) -> 598.2456553 | E19: 10 | F19: 10 | G19: 519.95 | H19: =G19*M19 -> 519.95 | I19: =H19 -> 519.95 | J19: 2011 | K19: =I19*VLOOKUP(J19,cci_table,3,FALSE) -> 598.2456553 | L19: Multi Pure MP880SB, Multi-Pure Drinking Water 2-15-11 | M19: 1 | BA19: Vendor 1
B20: 5 | C20: 15 | D20: 598.2456553 | E20: 10 | F20: 10 | G20: 519.95 | H20: 519.95 | I20: =H20 -> 519.95 | J20: 2011 | K20: 598.2456553 | L20: Multi Pure MP880SB, Multi-Pure Drinking Water 2-15-11 | M20: 1 | BA20: Vendor 1
B21: 16 | C21: 24 | D21: 598.2456553 | E21: 10 | F21: 10 | G21: 519.95 | H21: 519.95 | I21: 519.95 | J21: 2011 | K21: 598.2456553 | L21: Multi Pure MP880SB, Multi-Pure Drinking Water 2-15-11 | M21: =$M$67 -> 1 | BA21: Vendor 1
B22: 25 | C22: 50 | D22: 598.2456553 | E22: 10 | F22: 10 | G22: 519.95 | H22: 519.95 | I22: 519.95 | J22: 2011 | K22: 598.2456553 | L22: Multi Pure MP880SB, Multi-Pure Drinking Water 2-15-11 | M22: =$M$67 -> 1 | BA22: Vendor 1
B23: 51 | C23: 100 | D23: 598.2456553 | E23: 10 | F23: 10 | G23: 519.95 | H23: 519.95 | I23: 519.95 | J23: 2011 | K23: 598.2456553 | L23: Multi Pure MP880SB, Multi-Pure Drinking Water 2-15-11 | M23: =$M$67 -> 1 | BA23: Vendor 1
B24: 101 | C24: 500 | D24: 598.2456553 | E24: 10 | F24: 10 | G24: 519.95 | H24: 519.95 | I24: 519.95 | J24: 2011 | K24: 598.2456553 | L24: Multi Pure MP880SB, Multi-Pure Drinking Water 2-15-11 | M24: =$M$67 -> 1 | BA24: Vendor 1
B25: 501 | C25: 1000 | D25: 598.2456553 | E25: 10 | F25: 10 | G25: 519.95 | H25: 519.95 | I25: 519.95 | J25: 2011 | K25: 598.2456553 | L25: Multi Pure MP880SB, Multi-Pure Drinking Water 2-15-11 | M25: =$M$67 -> 1 | BA25: Vendor 1
B26: POU Adsorptive Media NSF53 Replacement Parts
A27: pou_ads_nsf53_parts | B27: Media Cartridge | D27: =IF(AVERAGE(K27,R27,Y27,AF27,AM27,AT27)=0,"contact vendor",AVERAGE(K27,R27,Y27,AF27,AM27,AT27)) -> 120.1783993 | E27: N/A | F27: N/A | G27: 104.45 | H27: =G27*M27 -> 104.45 | I27: =H27 -> 104.45 | J27: 2011 | K27: =I27*VLOOKUP(J27,cci_table,3,FALSE) -> 120.1783993 | L27: Multi Pure CB11As, replacement cartridge for MP880SB, Multi-Pure Drinking Water 2-15-11 | M27: 1 | BA27: Vendor 1
B29: POU Anion Exchange Equipment
B30: Number Households | C30: Number Households | D30: Avg. Unit Cost | E30: Useful Life (large) | F30: Useful Life (small) | G30: Original Vendor Quote | H30: Quote+Inst | I30: Quote+Inst+Trans | J30: Year of Original Quote | K30: Adjusted Cost, including installation and transportation | L30: Source | M30: Installation Multiplier | N30: Unit cost | O30: Unit cost + Inst | P30: Unit cost+Inst+Trans | Q30: Year | R30: Adjusted Cost, including installation and transportation | S30: Source | T30: Installation Multiplier | U30: Unit cost | V30: Unit cost + Inst | W30: Unit cost+Inst+Trans | X30: Year | Y30: Adjusted Cost, including installation and transportation | Z30: Source | AA30: Installation Multiplier | AB30: Unit cost | AC30: Unit cost + Inst | AD30: Unit cost+Inst+Trans | AE30: Year | AF30: Adjusted Cost, including installation and transportation | AG30: Source | AH30: Installation Multiplier | AI30: Unit cost | AJ30: Unit cost + Inst | AK30: Unit cost+Inst+Trans | AL30: Year | AM30: Adjusted Cost, including installation and transportation | AN30: Source | AO30: Installation Multiplier | AP30: Unit cost | AQ30: Unit cost + Inst | AR30: Unit cost+Inst+Trans | AS30: Year | AT30: Adjusted Cost, including installation and transportation | AU30: Source | AV30: Installation multiplier | BA30: Source | BB30: Source | BC30: Source | BD30: Source | BE30: Source | BF30: Source
A31: pou_ax_equipment | B31: 0 | C31: 4 | D31: 0 | E31: 10 | F31: 10 | G31: 0 | M31: 1
B32: 5 | C32: 15 | D32: 0 | E32: 10 | F32: 10 | G32: 0 | M32: 1
B33: 16 | C33: 24 | D33: 0 | E33: 10 | F33: 10 | G33: 0 | M33: 1
B34: 25 | C34: 50 | D34: 0 | E34: 10 | F34: 10 | G34: 0 | M34: 1
B35: 51 | C35: 100 | D35: 0 | E35: 10 | F35: 10 | G35: 0 | M35: 1
B36: 101 | C36: 500 | D36: 0 | E36: 10 | F36: 10 | G36: 0 | M36: 1
B37: 501 | C37: 1000 | D37: 0 | E37: 10 | F37: 10 | G37: 0 | M37: 1
B38: POU Anion Exchange Replacement Parts
A39: pou_ax_parts | B39: Sediment Pre-Filter | D39: 0 | E39: N/A | F39: N/A | G39: 0 | M39: 1
B41: POU Cation Exchange Equipment
B42: Number Households | C42: Number Households | D42: Avg. Unit Cost | E42: Useful Life (large) | F42: Useful Life (small) | G42: Original Vendor Quote | H42: Quote+Inst | I42: Quote+Inst+Trans | J42: Year of Original Quote | K42: Adjusted Cost, including installation and transportation | L42: Source | M42: Installation Multiplier | N42: Unit cost | O42: Unit cost + Inst | P42: Unit cost+Inst+Trans | Q42: Year | R42: Adjusted Cost, including installation and transportation | S42: Source | T42: Installation Multiplier | U42: Unit cost | V42: Unit cost + Inst | W42: Unit cost+Inst+Trans | X42: Year | Y42: Adjusted Cost, including installation and transportation | Z42: Source | AA42: Installation Multiplier | AB42: Unit cost | AC42: Unit cost + Inst | AD42: Unit cost+Inst+Trans | AE42: Year | AF42: Adjusted Cost, including installation and transportation | AG42: Source | AH42: Installation Multiplier | AI42: Unit cost | AJ42: Unit cost + Inst | AK42: Unit cost+Inst+Trans | AL42: Year | AM42: Adjusted Cost, including installation and transportation | AN42: Source | AO42: Installation Multiplier | AP42: Unit cost | AQ42: Unit cost + Inst | AR42: Unit cost+Inst+Trans | AS42: Year | AT42: Adjusted Cost, including installation and transportation | AU42: Source | AV42: Installation multiplier | BA42: Source | BB42: Source | BC42: Source | BD42: Source | BE42: Source | BF42: Source
A43: pou_cx_equipment | B43: 0 | C43: 4 | D43: 0 | E43: 10 | F43: 10 | M43: 1
B44: 5 | C44: 15 | D44: 0 | E44: 10 | F44: 10 | M44: 1
B45: 16 | C45: 24 | D45: 0 | E45: 10 | F45: 10 | M45: =$M$67 -> 1
B46: 25 | C46: 50 | D46: 0 | E46: 10 | F46: 10 | M46: =$M$67 -> 1
B47: 51 | C47: 100 | D47: 0 | E47: 10 | F47: 10 | M47: =$M$67 -> 1
B48: 101 | C48: 500 | D48: 0 | E48: 10 | F48: 10 | M48: =$M$67 -> 1
B49: 501 | C49: 1000 | D49: 0 | E49: 10 | F49: 10 | M49: =$M$67 -> 1
B50: POU Cation Exchange Replacement Parts
A51: pou_cx_parts | B51: Item | D51: 0 | E51: N/A | F51: N/A | M51: 1
B53: POU Granular Activated Carbon Equipment
B54: Number Households | C54: Number Households | D54: Avg. Unit Cost | E54: Useful Life (large) | F54: Useful Life (small) | G54: Original Vendor Quote | H54: Quote+Inst | I54: Quote+Inst+Trans | J54: Year of Original Quote | K54: Adjusted Cost, including installation and transportation | L54: Source | M54: Installation Multiplier | N54: Unit cost | O54: Unit cost + Inst | P54: Unit cost+Inst+Trans | Q54: Year | R54: Adjusted Cost, including installation and transportation | S54: Source | T54: Installation Multiplier | U54: Unit cost | V54: Unit cost + Inst | W54: Unit cost+Inst+Trans | X54: Year | Y54: Adjusted Cost, including installation and transportation | Z54: Source | AA54: Installation Multiplier | AB54: Unit cost | AC54: Unit cost + Inst | AD54: Unit cost+Inst+Trans | AE54: Year | AF54: Adjusted Cost, including installation and transportation | AG54: Source | AH54: Installation Multiplier | AI54: Unit cost | AJ54: Unit cost + Inst | AK54: Unit cost+Inst+Trans | AL54: Year | AM54: Adjusted Cost, including installation and transportation | AN54: Source | AO54: Installation Multiplier | AP54: Unit cost | AQ54: Unit cost + Inst | AR54: Unit cost+Inst+Trans | AS54: Year | AT54: Adjusted Cost, including installation and transportation | AU54: Source | AV54: Installation multiplier | BA54: Source | BB54: Source | BC54: Source | BD54: Source | BE54: Source | BF54: Source
A55: pou_gac_equipment | B55: 0 | C55: 4 | D55: =IF(AVERAGE(K55,R55,Y55,AF55,AM55,AT55)=0,"contact vendor",AVERAGE(K55,R55,Y55,AF55,AM55,AT55)) -> 395.2118532 | E55: 10 | F55: 10 | G55: 349 | H55: =G55*M55 -> 349 | I55: =H55 -> 349 | J55: 2011 | K55: =I55*VLOOKUP(J55,cci_table,3,FALSE) -> 401.5534834 | L55: Alloy Safe (www.alloysafe.com) Everpure H-1200 Water Filtration System, Model EV9282-00. Prices online, accessed on 2/2/11. | M55: 1 | N55: 389.95 | O55: =N55*T55 -> 389.95 | P55: =O55 -> 389.95 | Q55: 2011 | R55: =P55*VLOOKUP(Q55,cci_table,3,FALSE) -> 448.6698592 | S55: Super Water (www.superwater.com) Everpure H-1200 Water Filtration System, Model EV9282-00. Prices online, accessed on 2/2/11. | T55: 1 | U55: 379.99 | V55: =U55*AA55 -> 379.99 | W55: =V55 -> 379.99 | X55: 2011 | Y55: =W55*VLOOKUP(X55,cci_table,3,FALSE) -> 437.210052 | Z55: Big Brand Water Filter (www.bigbrandwater.com) Everpure H-1200 Water Filtration System, Model EV9282-00. Prices online, accessed on 2/2/11. | AA55: 1 | AB55: 298 | AC55: =AB55*AH55 -> 298 | AD55: =AC55 -> 298 | AE55: 2011 | AF55: =AD55*VLOOKUP(AE55,cci_table,3,FALSE) -> 342.873748 | AG55: Aqua Pure Filters (www.aquapurefilters.com). Aqua Pure Drinking Water System, Model AP-DWS1000. Prices online; accessed on 2/2/11. | AH55: 1 | AI55: 298 | AJ55: =AI55*AO55 -> 298 | AK55: =AJ55 -> 298 | AL55: 2011 | AM55: =AK55*VLOOKUP(AL55,cci_table,3,FALSE) -> 342.873748 | AN55: Filter Fast (www.filterfast.com). Aqua Pure Drinking Water System, Model AP-DWS1000. Prices online; accessed on 2/2/11. | AO55: 1 | AP55: 345.99 | AQ55: =AP55*AV55 -> 345.99 | AR55: =AQ55 -> 345.99 | AS55: 2011 | AT55: =AR55*VLOOKUP(AS55,cci_table,3,FALSE) -> 398.0902284 | AU55: eFilter Water (www.efilterwater.com). Aqua Pure Drinking Water System, Model AP-DWS1000. Prices online; accessed on 2/2/11. | AV55: 1 | BA55: Vendor 1 | BB55: Vendor 2 | BC55: Vendor 3 | BD55: Vendor 4 | BE55: Vendor 5 | BF55: Vendor 6
B56: 5 | C56: 15 | D56: 395.2118532 | E56: 10 | F56: 10 | G56: 349 | H56: 349 | I56: =H56 -> 349 | J56: 2011 | K56: 401.5534834 | L56: Alloy Safe (www.alloysafe.com) Everpure H-1200 Water Filtration System, Model EV9282-00. Prices online, accessed on 2/2/11. | M56: 1 | N56: 389.95 | O56: 389.95 | P56: =O56 -> 389.95 | Q56: 2011 | R56: 448.6698592 | S56: Super Water (www.superwater.com) Everpure H-1200 Water Filtration System, Model EV9282-00. Prices online, accessed on 2/2/11. | T56: 1 | U56: 379.99 | V56: 379.99 | W56: =V56 -> 379.99 | X56: 2011 | Y56: 437.210052 | Z56: Big Brand Water Filter (www.bigbrandwater.com) Everpure H-1200 Water Filtration System, Model EV9282-00. Prices online, accessed on 2/2/11. | AA56: 1 | AB56: 298 | AC56: 298 | AD56: =AC56 -> 298 | AE56: 2011 | AF56: 342.873748 | AG56: Aqua Pure Filters (www.aquapurefilters.com). Aqua Pure Drinking Water System, Model AP-DWS1000. Prices online; accessed on 2/2/11. | AH56: 1 | AI56: 298 | AJ56: 298 | AK56: =AJ56 -> 298 | AL56: 2011 | AM56: 342.873748 | AN56: Filter Fast (www.filterfast.com). Aqua Pure Drinking Water System, Model AP-DWS1000. Prices online; accessed on 2/2/11. | AO56: 1 | AP56: 345.99 | AQ56: =AP56*AV56 -> 345.99 | AR56: =AQ56 -> 345.99 | AS56: 2011 | AT56: 398.0902284 | AU56: eFilter Water (www.efilterwater.com). Aqua Pure Drinking Water System, Model AP-DWS1000. Prices online; accessed on 2/2/11. | AV56: 1 | BA56: Vendor 1 | BB56: Vendor 2 | BC56: Vendor 3 | BD56: Vendor 4 | BE56: Vendor 5 | BF56: Vendor 6
B57: 16 | C57: 24 | D57: 395.2118532 | E57: 10 | F57: 10 | G57: 349 | H57: 349 | I57: 349 | J57: 2011 | K57: 401.5534834 | L57: Alloy Safe (www.alloysafe.com) Everpure H-1200 Water Filtration System, Model EV9282-00. Prices online, accessed on 2/2/11. | M57: =$M$67 -> 1 | N57: 389.95 | O57: 389.95 | P57: 389.95 | Q57: 2011 | R57: 448.6698592 | S57: Super Water (www.superwater.com) Everpure H-1200 Water Filtration System, Model EV9282-00. Prices online, accessed on 2/2/11. | T57: 1 | U57: 379.99 | V57: 379.99 | W57: 379.99 | X57: 2011 | Y57: 437.210052 | Z57: Big Brand Water Filter (www.bigbrandwater.com) Everpure H-1200 Water Filtration System, Model EV9282-00. Prices online, accessed on 2/2/11. | AA57: =$M$67 -> 1 | AB57: 298 | AC57: 298 | AD57: 298 | AE57: 2011 | AF57: 342.873748 | AG57: Aqua Pure Filters (www.aquapurefilters.com). Aqua Pure Drinking Water System, Model AP-DWS1000. Prices online; accessed on 2/2/11. | AH57: =$M$67 -> 1 | AI57: 298 | AJ57: 298 | AK57: 298 | AL57: 2011 | AM57: 342.873748 | AN57: Filter Fast (www.filterfast.com). Aqua Pure Drinking Water System, Model AP-DWS1000. Prices online; accessed on 2/2/11. | AO57: =$M$67 -> 1 | AP57: 345.99 | AQ57: 345.99 | AR57: 345.99 | AS57: 2011 | AT57: 398.0902284 | AU57: eFilter Water (www.efilterwater.com). Aqua Pure Drinking Water System, Model AP-DWS1000. Prices online; accessed on 2/2/11. | AV57: 1 | BA57: Vendor 1 | BB57: Vendor 2 | BC57: Vendor 3 | BD57: Vendor 4 | BE57: Vendor 5 | BF57: Vendor 6
B58: 25 | C58: 50 | D58: 395.2118532 | E58: 10 | F58: 10 | G58: 349 | H58: 349 | I58: 349 | J58: 2011 | K58: 401.5534834 | L58: Alloy Safe (www.alloysafe.com) Everpure H-1200 Water Filtration System, Model EV9282-00. Prices online, accessed on 2/2/11. | M58: =$M$67 -> 1 | N58: 389.95 | O58: 389.95 | P58: 389.95 | Q58: 2011 | R58: 448.6698592 | S58: Super Water (www.superwater.com) Everpure H-1200 Water Filtration System, Model EV9282-00. Prices online, accessed on 2/2/11. | T58: 1 | U58: 379.99 | V58: 379.99 | W58: 379.99 | X58: 2011 | Y58: 437.210052 | Z58: Big Brand Water Filter (www.bigbrandwater.com) Everpure H-1200 Water Filtration System, Model EV9282-00. Prices online, accessed on 2/2/11. | AA58: =$M$67 -> 1 | AB58: 298 | AC58: 298 | AD58: 298 | AE58: 2011 | AF58: 342.873748 | AG58: Aqua Pure Filters (www.aquapurefilters.com). Aqua Pure Drinking Water System, Model AP-DWS1000. Prices online; accessed on 2/2/11. | AH58: =$M$67 -> 1 | AI58: 298 | AJ58: 298 | AK58: 298 | AL58: 2011 | AM58: 342.873748 | AN58: Filter Fast (www.filterfast.com). Aqua Pure Drinking Water System, Model AP-DWS1000. Prices online; accessed on 2/2/11. | AO58: =$M$67 -> 1 | AP58: 345.99 | AQ58: 345.99 | AR58: =AQ58 -> 345.99 | AS58: 2011 | AT58: 398.0902284 | AU58: eFilter Water (www.efilterwater.com). Aqua Pure Drinking Water System, Model AP-DWS1000. Prices online; accessed on 2/2/11. | AV58: 1 | BA58: Vendor 1 | BB58: Vendor 2 | BC58: Vendor 3 | BD58: Vendor 4 | BE58: Vendor 5 | BF58: Vendor 6
B59: 51 | C59: 100 | D59: 395.2118532 | E59: 10 | F59: 10 | G59: 349 | H59: 349 | I59: 349 | J59: 2011 | K59: 401.5534834 | L59: Alloy Safe (www.alloysafe.com) Everpure H-1200 Water Filtration System, Model EV9282-00. Prices online, accessed on 2/2/11. | M59: =$M$67 -> 1 | N59: 389.95 | O59: 389.95 | P59: 389.95 | Q59: 2011 | R59: 448.6698592 | S59: Super Water (www.superwater.com) Everpure H-1200 Water Filtration System, Model EV9282-00. Prices online, accessed on 2/2/11. | T59: 1 | U59: 379.99 | V59: 379.99 | W59: 379.99 | X59: 2011 | Y59: 437.210052 | Z59: Big Brand Water Filter (www.bigbrandwater.com) Everpure H-1200 Water Filtration System, Model EV9282-00. Prices online, accessed on 2/2/11. | AA59: =$M$67 -> 1 | AB59: 298 | AC59: 298 | AD59: 298 | AE59: 2011 | AF59: 342.873748 | AG59: Aqua Pure Filters (www.aquapurefilters.com). Aqua Pure Drinking Water System, Model AP-DWS1000. Prices online; accessed on 2/2/11. | AH59: =$M$67 -> 1 | AI59: 298 | AJ59: 298 | AK59: 298 | AL59: 2011 | AM59: 342.873748 | AN59: Filter Fast (www.filterfast.com). Aqua Pure Drinking Water System, Model AP-DWS1000. Prices online; accessed on 2/2/11. | AO59: =$M$67 -> 1 | AP59: 345.99 | AQ59: 345.99 | AR59: 345.99 | AS59: 2011 | AT59: 398.0902284 | AU59: eFilter Water (www.efilterwater.com). Aqua Pure Drinking Water System, Model AP-DWS1000. Prices online; accessed on 2/2/11. | AV59: 1 | BA59: Vendor 1 | BB59: Vendor 2 | BC59: Vendor 3 | BD59: Vendor 4 | BE59: Vendor 5 | BF59: Vendor 6
B60: 101 | C60: 500 | D60: 395.2118532 | E60: 10 | F60: 10 | G60: 349 | H60: 349 | I60: 349 | J60: 2011 | K60: 401.5534834 | L60: Alloy Safe (www.alloysafe.com) Everpure H-1200 Water Filtration System, Model EV9282-00. Prices online, accessed on 2/2/11. | M60: =$M$67 -> 1 | N60: 389.95 | O60: 389.95 | P60: 389.95 | Q60: 2011 | R60: 448.6698592 | S60: Super Water (www.superwater.com) Everpure H-1200 Water Filtration System, Model EV9282-00. Prices online, accessed on 2/2/11. | T60: 1 | U60: 379.99 | V60: 379.99 | W60: 379.99 | X60: 2011 | Y60: 437.210052 | Z60: Big Brand Water Filter (www.bigbrandwater.com) Everpure H-1200 Water Filtration System, Model EV9282-00. Prices online, accessed on 2/2/11. | AA60: =$M$67 -> 1 | AB60: 298 | AC60: 298 | AD60: 298 | AE60: 2011 | AF60: 342.873748 | AG60: Aqua Pure Filters (www.aquapurefilters.com). Aqua Pure Drinking Water System, Model AP-DWS1000. Prices online; accessed on 2/2/11. | AH60: =$M$67 -> 1 | AI60: 298 | AJ60: 298 | AK60: 298 | AL60: 2011 | AM60: 342.873748 | AN60: Filter Fast (www.filterfast.com). Aqua Pure Drinking Water System, Model AP-DWS1000. Prices online; accessed on 2/2/11. | AO60: =$M$67 -> 1 | AP60: 345.99 | AQ60: 345.99 | AR60: 345.99 | AS60: 2011 | AT60: 398.0902284 | AU60: eFilter Water (www.efilterwater.com). Aqua Pure Drinking Water System, Model AP-DWS1000. Prices online; accessed on 2/2/11. | AV60: 1 | BA60: Vendor 1 | BB60: Vendor 2 | BC60: Vendor 3 | BD60: Vendor 4 | BE60: Vendor 5 | BF60: Vendor 6
B61: 501 | C61: 1000 | D61: 395.2118532 | E61: 10 | F61: 10 | G61: 349 | H61: 349 | I61: 349 | J61: 2011 | K61: 401.5534834 | L61: Alloy Safe (www.alloysafe.com) Everpure H-1200 Water Filtration System, Model EV9282-00. Prices online, accessed on 2/2/11. | M61: =$M$67 -> 1 | N61: 389.95 | O61: 389.95 | P61: 389.95 | Q61: 2011 | R61: 448.6698592 | S61: Super Water (www.superwater.com) Everpure H-1200 Water Filtration System, Model EV9282-00. Prices online, accessed on 2/2/11. | T61: 1 | U61: 379.99 | V61: 379.99 | W61: 379.99 | X61: 2011 | Y61: 437.210052 | Z61: Big Brand Water Filter (www.bigbrandwater.com) Everpure H-1200 Water Filtration System, Model EV9282-00. Prices online, accessed on 2/2/11. | AA61: =$M$67 -> 1 | AB61: 298 | AC61: 298 | AD61: 298 | AE61: 2011 | AF61: 342.873748 | AG61: Aqua Pure Filters (www.aquapurefilters.com). Aqua Pure Drinking Water System, Model AP-DWS1000. Prices online; accessed on 2/2/11. | AH61: =$M$67 -> 1 | AI61: 298 | AJ61: 298 | AK61: 298 | AL61: 2011 | AM61: 342.873748 | AN61: Filter Fast (www.filterfast.com). Aqua Pure Drinking Water System, Model AP-DWS1000. Prices online; accessed on 2/2/11. | AO61: =$M$67 -> 1 | AP61: 345.99 | AQ61: 345.99 | AR61: 345.99 | AS61: 2011 | AT61: 398.0902284 | AU61: eFilter Water (www.efilterwater.com). Aqua Pure Drinking Water System, Model AP-DWS1000. Prices online; accessed on 2/2/11. | AV61: 1 | BA61: Vendor 1 | BB61: Vendor 2 | BC61: Vendor 3 | BD61: Vendor 4 | BE61: Vendor 5 | BF61: Vendor 6
B62: POU Granular Activated Carbon Replacement Parts
A63: pou_gac_parts | B63: Media Cartridge | D63: =IF(AVERAGE(K63,R63,Y63,AF63,AM63,AT63)=0,"contact vendor",AVERAGE(K63,R63,Y63,AF63,AM63,AT63)) -> 187.8142731 | E63: N/A | F63: N/A | G63: 236.24 | H63: =G63*M63 -> 236.24 | I63: =H63 -> 236.24 | J63: 2011 | K63: =I63*VLOOKUP(J63,cci_table,3,FALSE) -> 271.813739 | L63: Alloy Safe (www.alloysafe.com) Replacement filter cartridge set, Model EV9282-01, for Everpure H-1200 Water Filtration System, Model EV9282-00. Prices online, accessed on 2/2/11. | M63: 1 | N63: 193.95 | O63: 193.95 | P63: 193.95 | Q63: 2011 | R63: 223.155582 | S63: Super Water (www.superwater.com) Replacement filter cartridge set, model EV9282-01, for Everpure H-1200 Water Filtration System, Model EV9282-00. Prices online, accessed on 2/2/11. | T63: 1 | U63: 169.99 | V63: =U63*AA63 -> 169.99 | W63: =V63 -> 169.99 | X63: 2011 | Y63: =W63*VLOOKUP(X63,cci_table,3,FALSE) -> 195.5876122 | Z63: Big Brand Water Filter (www.bigbrandwater.com) Everpure H-1200 Water Filtration System, Model EV9282-00. Prices online, accessed on 2/2/11. | AA63: 1 | AB63: 96 | AC63: =AB63*AH63 -> 96 | AD63: =AC63 -> 96 | AE63: 2011 | AF63: =AD63*VLOOKUP(AE63,cci_table,3,FALSE) -> 110.4559725 | AG63: Aqua Pure Filters (www.aquapurefilters.com). Replacement filter cartridge set, model AP-DW 80/90, for Aqua Pure Drinking Water System, Model AP-DWS1000. Prices online; accessed on 2/2/11. | AH63: 1 | AI63: 96 | AJ63: =AI63*AO63 -> 96 | AK63: 96 | AL63: 2011 | AN63: Filter Fast (www.filterfast.com). Replacement filter cartridge set, model AP-DW 80/90, for Aqua Pure Drinking Water System, Model AP-DWS1000. Prices online; accessed on 2/2/11. | AO63: 1 | AP63: 119.99 | AQ63: =AP63*AV63 -> 119.99 | AR63: =AQ63 -> 119.99 | AS63: 2011 | AT63: 138.0584598 | AU63: eFilter Water (www.efilterwater.com). Replacement filter cartridge set, model AP-DW 80/90, for Aqua Pure Drinking Water System, Model AP-DWS1000. Prices online; accessed on 2/2/11. | AV63: 1 | BA63: Vendor 1 | BB63: Vendor 2 | BC63: Vendor 3 | BD63: Vendor 4 | BE63: Vendor 5 | BF63: Vendor 6
B65: POU Reverse Osmosis Equipment
B66: Number Households | C66: Number Households | D66: Avg. Unit Cost | E66: Useful Life (large) | F66: Useful Life (small) | G66: Original Vendor Quote | H66: Quote+Inst | I66: Quote+Inst+Trans | J66: Year of Original Quote | K66: Adjusted Cost, including installation and transportation | L66: Source | M66: Installation Multiplier | N66: Unit cost | O66: Unit cost + Inst | P66: Unit cost+Inst+Trans | Q66: Year | R66: Adjusted Cost, including installation and transportation | S66: Source | T66: Installation Multiplier | U66: Unit cost | V66: Unit cost + Inst | W66: Unit cost+Inst+Trans | X66: Year | Y66: Adjusted Cost, including installation and transportation | Z66: Source | AA66: Installation Multiplier | AB66: Unit cost | AC66: Unit cost + Inst | AD66: Unit cost+Inst+Trans | AE66: Year | AF66: Adjusted Cost, including installation and transportation | AG66: Source | AH66: Installation Multiplier | AI66: Unit cost | AJ66: Unit cost + Inst | AK66: Unit cost+Inst+Trans | AL66: Year | AM66: Adjusted Cost, including installation and transportation | AN66: Source | AO66: Installation Multiplier | AP66: Unit cost | AQ66: Unit cost + Inst | AR66: Unit cost+Inst+Trans | AS66: Year | AT66: Adjusted Cost, including installation and transportation | AU66: Source | AV66: Installation multiplier | BA66: Source | BB66: Source | BC66: Source | BD66: Source | BE66: Source | BF66: Source
A67: pou_ro_equipment | B67: 0 | C67: 4 | D67: =IF(AVERAGE(K67,R67,Y67,AF67,AM67,AT67)=0,"contact vendor",AVERAGE(K67,R67,Y67,AF67,AM67,AT67)) -> 211.6266667 | E67: 10 | F67: 10 | G67: 179.99 | H67: =G67*M67 -> 179.99 | I67: =H67 -> 179.99 | J67: 2021 | K67: =I67*VLOOKUP(J67,cci_table,3,FALSE) -> 179.99 | L67: Express Water RO5DX Five-Stage RO System, 50 GPD (www.expresswater.com). Called and verififed certified for PFAS under NSF 58, as website has not been updated to reflect most recent testing. | M67: 1 | N67: 194.89 | O67: =N67*T67 -> 194.89 | P67: =O67 -> 194.89 | Q67: 2021 | R67: =P67*VLOOKUP(Q67,cci_table,3,FALSE) -> 194.89 | S67: ISPRING RCC7 5-Stage 75GPD RO System (www.homedepot.com). NSF certified in 2019 after the addition of PFAS chemicals to the standard according to Nick L. with iSpring . | T67: 1 | U67: 260 | V67: =U67*AA67 -> 260 | W67: =V67 -> 260 | X67: 2021 | Y67: =W67*VLOOKUP(X67,cci_table,3,FALSE) -> 260 | Z67: APEC Water Systems, 5-Stage 50 GPD RO System - ROES-50 (www.freedrinkingwater.com). Specifically lists PFOA and PFOS on model, NSF 58 certified through WQA. Confirmed NSF 58 2019 here: https://www.wqa.org/find-products/ctl/detail/mid/1054/cid/apec_water_systems/sid/5 | AA67: 1 | BA67: Vendor 1 | BB67: Vendor 2 | BC67: Vendor 3
B68: 5 | C68: 15 | D68: =IF(AVERAGE(K68,R68,Y68,AF68,AM68,AT68)=0,"contact vendor",AVERAGE(K68,R68,Y68,AF68,AM68,AT68)) -> 211.6266667 | E68: 10 | F68: 10 | G68: 179.99 | H68: =G68*M68 -> 179.99 | I68: =H68 -> 179.99 | J68: 2021 | K68: 179.99 | L68: Express Water RO5DX Five-Stage RO System, 50 GPD (www.expresswater.com). Called and verififed certified for PFAS under NSF 58, as website has not been updated to reflect most recent testing. | M68: 1 | N68: 194.89 | O68: 194.89 | P68: =O68 -> 194.89 | Q68: 2021 | R68: 194.89 | S68: ISPRING RCC7 5-Stage 75GPD RO System (www.homedepot.com). NSF certified in 2019 after the addition of PFAS chemicals to the standard according to Nick L. with iSpring . | T68: 1 | U68: 260 | V68: 260 | W68: =V68 -> 260 | X68: 2021 | Y68: 260 | Z68: APEC Water Systems, 5-Stage 50 GPD RO System - ROES-50 (www.freedrinkingwater.com). Specifically lists PFOA and PFOS on model, NSF 58 certified through WQA. Confirmed NSF 58 2019 here: https://www.wqa.org/find-products/ctl/detail/mid/1054/cid/apec_water_systems/sid/5 | AA68: 1 | BA68: Vendor 1 | BB68: Vendor 2 | BC68: Vendor 3
B69: 16 | C69: 24 | D69: 211.6266667 | E69: 10 | F69: 10 | G69: 179.99 | H69: 179.99 | I69: 179.99 | J69: 2021 | K69: 179.99 | L69: Express Water RO5DX Five-Stage RO System, 50 GPD (www.expresswater.com). Called and verififed certified for PFAS under NSF 58, as website has not been updated to reflect most recent testing. | M69: 1 | N69: 194.89 | O69: 194.89 | P69: 194.89 | Q69: 2021 | R69: 194.89 | S69: ISPRING RCC7 5-Stage 75GPD RO System (www.homedepot.com). NSF certified in 2019 after the addition of PFAS chemicals to the standard according to Nick L. with iSpring . | T69: 1 | U69: 260 | V69: 260 | W69: 260 | X69: 2021 | Y69: 260 | Z69: APEC Water Systems, 5-Stage 50 GPD RO System - ROES-50 (www.freedrinkingwater.com). Specifically lists PFOA and PFOS on model, NSF 58 certified through WQA. Confirmed NSF 58 2019 here: https://www.wqa.org/find-products/ctl/detail/mid/1054/cid/apec_water_systems/sid/5 | AA69: 1 | BA69: Vendor 1 | BB69: Vendor 2 | BC69: Vendor 3
B70: 25 | C70: 50 | D70: 211.6266667 | E70: 10 | F70: 10 | G70: 179.99 | H70: 179.99 | I70: 179.99 | J70: 2021 | K70: 179.99 | L70: Express Water RO5DX Five-Stage RO System, 50 GPD (www.expresswater.com). Called and verififed certified for PFAS under NSF 58, as website has not been updated to reflect most recent testing. | M70: 1 | N70: 194.89 | O70: 194.89 | P70: 194.89 | Q70: 2021 | R70: 194.89 | S70: ISPRING RCC7 5-Stage 75GPD RO System (www.homedepot.com). NSF certified in 2019 after the addition of PFAS chemicals to the standard according to Nick L. with iSpring . | T70: 1 | U70: 260 | V70: 260 | W70: 260 | X70: 2021 | Y70: 260 | Z70: APEC Water Systems, 5-Stage 50 GPD RO System - ROES-50 (www.freedrinkingwater.com). Specifically lists PFOA and PFOS on model, NSF 58 certified through WQA. Confirmed NSF 58 2019 here: https://www.wqa.org/find-products/ctl/detail/mid/1054/cid/apec_water_systems/sid/5 | AA70: =$M$67 -> 1 | BA70: Vendor 1 | BB70: Vendor 2 | BC70: Vendor 3
B71: 51 | C71: 100 | D71: 211.6266667 | E71: 10 | F71: 10 | G71: 179.99 | H71: 179.99 | I71: 179.99 | J71: 2021 | K71: 179.99 | L71: Express Water RO5DX Five-Stage RO System, 50 GPD (www.expresswater.com). Called and verififed certified for PFAS under NSF 58, as website has not been updated to reflect most recent testing. | M71: 1 | N71: 194.89 | O71: 194.89 | P71: 194.89 | Q71: 2021 | R71: 194.89 | S71: ISPRING RCC7 5-Stage 75GPD RO System (www.homedepot.com). NSF certified in 2019 after the addition of PFAS chemicals to the standard according to Nick L. with iSpring . | T71: 1 | U71: 260 | V71: 260 | W71: 260 | X71: 2021 | Y71: 260 | Z71: APEC Water Systems, 5-Stage 50 GPD RO System - ROES-50 (www.freedrinkingwater.com). Specifically lists PFOA and PFOS on model, NSF 58 certified through WQA. Confirmed NSF 58 2019 here: https://www.wqa.org/find-products/ctl/detail/mid/1054/cid/apec_water_systems/sid/5 | AA71: =$M$67 -> 1 | BA71: Vendor 1 | BB71: Vendor 2 | BC71: Vendor 3
B72: 101 | C72: 500 | D72: 211.6266667 | E72: 10 | F72: 10 | G72: 179.99 | H72: 179.99 | I72: 179.99 | J72: 2021 | K72: 179.99 | L72: Express Water RO5DX Five-Stage RO System, 50 GPD (www.expresswater.com). Called and verififed certified for PFAS under NSF 58, as website has not been updated to reflect most recent testing. | M72: 1 | N72: 194.89 | O72: 194.89 | P72: 194.89 | Q72: 2021 | R72: 194.89 | S72: ISPRING RCC7 5-Stage 75GPD RO System (www.homedepot.com). NSF certified in 2019 after the addition of PFAS chemicals to the standard according to Nick L. with iSpring . | T72: 1 | U72: 260 | V72: 260 | W72: 260 | X72: 2021 | Y72: 260 | Z72: APEC Water Systems, 5-Stage 50 GPD RO System - ROES-50 (www.freedrinkingwater.com). Specifically lists PFOA and PFOS on model, NSF 58 certified through WQA. Confirmed NSF 58 2019 here: https://www.wqa.org/find-products/ctl/detail/mid/1054/cid/apec_water_systems/sid/5 | AA72: =$M$67 -> 1 | BA72: =IF(L72="Source",L72,IF(ISBLANK(L72),"","Vendor 1")) -> Vendor 1 | BB72: =IF(S72="Source",S72,IF(ISBLANK(S72),"","Vendor 2")) -> Vendor 2 | BC72: =IF(Z72="Source",Z72,IF(ISBLANK(Z72),"","Vendor 3")) -> Vendor 3 | BD72: =IF(AG72="Source",AG72,IF(ISBLANK(AG72),"","Vendor 4")) ->  | BE72: =IF(AN72="Source",AN72,IF(ISBLANK(AN72),"","Vendor 5")) ->  | BF72: =IF(AU72="Source",AU72,IF(ISBLANK(AU72),"","Vendor 6")) -> 
B73: 501 | C73: 1000 | D73: 211.6266667 | E73: 10 | F73: 10 | G73: 179.99 | H73: 179.99 | I73: 179.99 | J73: 2021 | K73: 179.99 | L73: Express Water RO5DX Five-Stage RO System, 50 GPD (www.expresswater.com). Called and verififed certified for PFAS under NSF 58, as website has not been updated to reflect most recent testing. | M73: 1 | N73: 194.89 | O73: 194.89 | P73: 194.89 | Q73: 2021 | R73: 194.89 | S73: ISPRING RCC7 5-Stage 75GPD RO System (www.homedepot.com). NSF certified in 2019 after the addition of PFAS chemicals to the standard according to Nick L. with iSpring . | T73: 1 | U73: 260 | V73: 260 | W73: 260 | X73: 2021 | Y73: 260 | Z73: APEC Water Systems, 5-Stage 50 GPD RO System - ROES-50 (www.freedrinkingwater.com). Specifically lists PFOA and PFOS on model, NSF 58 certified through WQA. Confirmed NSF 58 2019 here: https://www.wqa.org/find-products/ctl/detail/mid/1054/cid/apec_water_systems/sid/5 | AA73: =$M$67 -> 1 | BA73: Vendor 1 | BB73: Vendor 2 | BC73: Vendor 3
B74: POU Reverse Osmosis Replacement Parts
A75: pou_ro_parts | B75: Sediment Pre-Filter | D75: =IF(AVERAGE(K75,R75,Y75,AF75,AM75,AT75)=0,"contact vendor",AVERAGE(K75,R75,Y75,AF75,AM75,AT75)) -> 9.633333333 | E75: N/A | F75: N/A | G75: 9.99 | H75: 9.99 | I75: 9.99 | J75: 2021 | K75: 9.99 | L75: Express Water 5 Micron Sediment Filter, 6 month replacement | M75: 1 | N75: 8.92 | O75: =N75*T75 -> 8.92 | P75: =O75 -> 8.92 | Q75: 2021 | R75: =P75*VLOOKUP(Q75,cci_table,3,FALSE) -> 8.92 | S75: ISPRING FP15 Sediment Filter, 6-12 month replacement | T75: 1 | U75: 9.99 | V75: =U75*AA75 -> 9.99 | W75: =V75 -> 9.99 | X75: 2021 | Y75: =W75*VLOOKUP(X75,cci_table,3,FALSE) -> 9.99 | Z75: APEC Water Systems, FP15 Sediment Filter, 6-12 month replacement | AA75: 1 | BA75: Vendor 1 | BB75: Vendor 2 | BC75: Vendor 3
B76: Pre-GAC Filter Cartridge | D76: =IF(AVERAGE(K76,R76,Y76,AF76,AM76,AT76)=0,"contact vendor",AVERAGE(K76,R76,Y76,AF76,AM76,AT76)) -> 16.47 | E76: N/A | F76: N/A | G76: 24.99 | H76: 24.99 | I76: 24.99 | J76: 2021 | K76: 24.99 | L76: Express Water GAC Pre-filter, 6 month replacement, SKU# FLTGAC0501 | M76: 1 | N76: 10.47 | O76: =N76*T76 -> 10.47 | P76: =O76 -> 10.47 | Q76: 2021 | R76: =P76*VLOOKUP(Q76,cci_table,3,FALSE) -> 10.47 | S76: ISPRING FG15 GAC Filter, 6-12 month replacement | T76: 1 | U76: 13.95 | V76: =U76*AA76 -> 13.95 | W76: =V76 -> 13.95 | X76: 2021 | Y76: =W76*VLOOKUP(X76,cci_table,3,FALSE) -> 13.95 | Z76: APEC Water Systems, FG15 GAC Filter, 6-12 month replacement | AA76: 1 | BA76: Vendor 1 | BB76: Vendor 2 | BC76: Vendor 3
B77: Post-GAC Filter Cartridge | D77: =IF(AVERAGE(K77,R77,Y77,AF77,AM77,AT77)=0,"contact vendor",AVERAGE(K77,R77,Y77,AF77,AM77,AT77)) -> 12.14333333 | E77: N/A | F77: N/A | G77: 12.99 | H77: 12.99 | I77: 12.99 | J77: 2021 | K77: 12.99 | L77: Express Water GAC Post-filter, 6 month replacement, SKU# FLTIN01PKQ | M77: 1 | N77: 10.45 | O77: =N77*T77 -> 10.45 | P77: =O77 -> 10.45 | Q77: 2021 | R77: =P77*VLOOKUP(Q77,cci_table,3,FALSE) -> 10.45 | S77: ISPRING FT15 Pst final filter 12 month replacement | T77: 1 | U77: 12.99 | V77: =U77*AA77 -> 12.99 | W77: =V77 -> 12.99 | X77: 2021 | Y77: =W77*VLOOKUP(X77,cci_table,3,FALSE) -> 12.99 | Z77: APEC Water Systems, FT15 Pst final filter 12 month replacement | AA77: 1 | BA77: Vendor 1 | BB77: Vendor 2 | BC77: Vendor 3
B78: RO Membrane | D78: =IF(AVERAGE(K78,R78,Y78,AF78,AM78,AT78)=0,"contact vendor",AVERAGE(K78,R78,Y78,AF78,AM78,AT78)) -> 31.49333333 | E78: N/A | F78: N/A | G78: 19.99 | H78: 19.99 | I78: 19.99 | J78: 2021 | K78: 19.99 | L78: Express Water 50 GPD RO Membrane; recommended replacement every 12 months. SKU# FLTMEME50 | M78: 1 | N78: 29.49 | O78: =N78*T78 -> 29.49 | P78: =O78 -> 29.49 | Q78: 2021 | R78: =P78*VLOOKUP(Q78,cci_table,3,FALSE) -> 29.49 | S78: ISPRING MC7 1-3 year replacement | T78: 1 | U78: 45 | V78: =U78*AA78 -> 45 | W78: =V78 -> 45 | X78: 2021 | Y78: =W78*VLOOKUP(X78,cci_table,3,FALSE) -> 45 | Z78: APEC Water Systems, MC7 1-3 year replacement | AA78: =$M$67 -> 1 | BA78: Vendor 1 | BB78: Vendor 2 | BC78: Vendor 3
B80: POU Ultraviolet Equipment
B81: Number Households | C81: Number Households | D81: Avg. Unit Cost | E81: Useful Life (large) | F81: Useful Life (small) | G81: Original Vendor Quote | H81: Quote+Inst | I81: Quote+Inst+Trans | J81: Year of Original Quote | K81: Adjusted Cost, including installation and transportation | L81: Source | M81: Installation Multiplier | N81: Unit cost | O81: Unit cost + Inst | P81: Unit cost+Inst+Trans | Q81: Year | R81: Adjusted Cost, including installation and transportation | S81: Source | T81: Installation Multiplier | U81: Unit cost | V81: Unit cost + Inst | W81: Unit cost+Inst+Trans | X81: Year | Y81: Adjusted Cost, including installation and transportation | Z81: Source | AA81: Installation Multiplier | AB81: Unit cost | AC81: Unit cost + Inst | AD81: Unit cost+Inst+Trans | AE81: Year | AF81: Adjusted Cost, including installation and transportation | AG81: Source | AH81: Installation Multiplier | AI81: Unit cost | AJ81: Unit cost + Inst | AK81: Unit cost+Inst+Trans | AL81: Year | AM81: Adjusted Cost, including installation and transportation | AN81: Source | AO81: Installation Multiplier | AP81: Unit cost | AQ81: Unit cost + Inst | AR81: Unit cost+Inst+Trans | AS81: Year | AT81: Adjusted Cost, including installation and transportation | AU81: Source | AV81: Installation multiplier | BA81: Source | BB81: Source | BC81: Source | BD81: Source | BE81: Source | BF81: Source
A82: pou_uv_equipment | B82: 0 | C82: 4 | D82: =IF(AVERAGE(K82,R82,Y82,AF82,AM82,AT82)=0,"contact vendor",AVERAGE(K82,R82,Y82,AF82,AM82,AT82)) -> 1364.398771 | E82: 10 | F82: 10 | G82: 1059 | H82: =G82*M82 -> 1059 | I82: =H82 -> 1059 | J82: 2011 | K82: =I82*VLOOKUP(J82,cci_table,3,FALSE) -> 1218.467447 | L82: RO Water Systems, Inc. (www.rosystems.com). Sterilight Platinum NSF Certified UV Systems, Model SPV-200, 2.6 gpm. Prices online; accessed on 2/3/11. | M82: 1 | N82: 1128 | O82: =N82*T82 -> 1128 | P82: =O82 -> 1128 | Q82: 2011 | R82: =P82*VLOOKUP(Q82,cci_table,3,FALSE) -> 1297.857677 | S82: Excel Water Technologies Inc.(www.excelwater.com). Sterilight Platinum NSF Certified UV Systems, Model SPV-2.5, 2.5 gpm. Prices online; ccessed 2/2/11. | T82: 1 | U82: 1165.13 | V82: =U82*AA82 -> 1165.13 | W82: =V82 -> 1165.13 | X82: 2011 | Y82: =W82*VLOOKUP(X82,cci_table,3,FALSE) -> 1340.578826 | Z82: Freshwater Systems (www.freshwatersystems.com). Sterilight Platinum NSF Certified UV Systems, Model SPV-200, 2.6 gpm. Prices online; accessed 2/3/11. | AA82: 1 | AB82: 1391.2 | AC82: =AB82*AH82 -> 1391.2 | AD82: =AC82 -> 1391.2 | AE82: 2011 | AF82: =AD82*VLOOKUP(AE82,cci_table,3,FALSE) -> 1600.691135 | AG82: Home water Purifiers and Filters (www.home-water-purifiers-and-filters.com). Sterilight Platinum NSF Certified UV Systems, Model SPV-200, 2.6 gpm. Prices online; accessed 2/3/11. | AH82: 1 | BA82: Vendor 1 | BB82: Vendor 2 | BC82: Vendor 3 | BD82: Vendor 4
B83: 5 | C83: 15 | D83: 1364.398771 | E83: 10 | F83: 10 | G83: 1059 | H83: =G83*M83 -> 1059 | I83: 1059 | J83: 2011 | K83: 1218.467447 | L83: RO Water Systems, Inc. (www.rosystems.com). Sterilight Platinum NSF Certified UV Systems, Model SPV-200, 2.6 gpm. Prices online; accessed on 2/3/11. | M83: 1 | N83: 1128 | O83: =N83*T83 -> 1128 | P83: =O83 -> 1128 | Q83: 2011 | R83: =P83*VLOOKUP(Q83,cci_table,3,FALSE) -> 1297.857677 | S83: Excel Water Technologies Inc.(www.excelwater.com). Sterilight Platinum NSF Certified UV Systems, Model SPV-2.5, 2.5 gpm. Prices online; ccessed 2/2/11. | T83: 1 | U83: 1165.13 | V83: =U83*AA83 -> 1165.13 | W83: =V83 -> 1165.13 | X83: 2011 | Y83: 1340.578826 | Z83: Freshwater Systems (www.freshwatersystems.com). Sterilight Platinum NSF Certified UV Systems, Model SPV-200, 2.6 gpm. Prices online; accessed 2/3/11. | AA83: 1 | AB83: 1391.2 | AC83: =AB83*AH83 -> 1391.2 | AD83: =AC83 -> 1391.2 | AE83: 2011 | AF83: 1600.691135 | AG83: Home water Purifiers and Filters (www.home-water-purifiers-and-filters.com). Sterilight Platinum NSF Certified UV Systems, Model SPV-200, 2.6 gpm. Prices online; accessed 2/3/11. | AH83: 1 | BA83: Vendor 1 | BB83: Vendor 2 | BC83: Vendor 3 | BD83: Vendor 4
B84: 16 | C84: 24 | D84: 1364.398771 | E84: 10 | F84: 10 | G84: 1059 | H84: =G84 -> 1059 | I84: 1059 | J84: 2011 | K84: 1218.467447 | L84: RO Water Systems, Inc. (www.rosystems.com). Sterilight Platinum NSF Certified UV Systems, Model SPV-200, 2.6 gpm. Prices online; accessed on 2/3/11. | M84: =$M$67 -> 1 | N84: 1128 | O84: 1128 | P84: 1128 | Q84: 2011 | R84: 1297.857677 | S84: Excel Water Technologies Inc.(www.excelwater.com). Sterilight Platinum NSF Certified UV Systems, Model SPV-2.5, 2.5 gpm. Prices online; ccessed 2/2/11. | T84: 1 | U84: 1165.13 | V84: 1165.13 | W84: 1165.13 | X84: 2011 | Y84: 1340.578826 | Z84: Freshwater Systems (www.freshwatersystems.com). Sterilight Platinum NSF Certified UV Systems, Model SPV-200, 2.6 gpm. Prices online; accessed 2/3/11. | AA84: 1 | AB84: 1391.2 | AC84: 1391.2 | AD84: 1391.2 | AE84: 2011 | AF84: 1600.691135 | AG84: Home water Purifiers and Filters (www.home-water-purifiers-and-filters.com). Sterilight Platinum NSF Certified UV Systems, Model SPV-200, 2.6 gpm. Prices online; accessed 2/3/11. | AH84: 1 | BA84: Vendor 1 | BB84: Vendor 2 | BC84: Vendor 3 | BD84: Vendor 4
B85: 25 | C85: 50 | D85: 1364.398771 | E85: 10 | F85: 10 | G85: 1059 | H85: =G85 -> 1059 | I85: 1059 | J85: 2011 | K85: 1218.467447 | L85: RO Water Systems, Inc. (www.rosystems.com). Sterilight Platinum NSF Certified UV Systems, Model SPV-200, 2.6 gpm. Prices online; accessed on 2/3/11. | M85: =$M$67 -> 1 | N85: 1128 | O85: 1128 | P85: 1128 | Q85: 2011 | R85: 1297.857677 | S85: Excel Water Technologies Inc.(www.excelwater.com). Sterilight Platinum NSF Certified UV Systems, Model SPV-2.5, 2.5 gpm. Prices online; ccessed 2/2/11. | T85: 1 | U85: 1165.13 | V85: 1165.13 | W85: 1165.13 | X85: 2011 | Y85: 1340.578826 | Z85: Freshwater Systems (www.freshwatersystems.com). Sterilight Platinum NSF Certified UV Systems, Model SPV-200, 2.6 gpm. Prices online; accessed 2/3/11. | AA85: 1 | AB85: 1391.2 | AC85: 1391.2 | AD85: 1391.2 | AE85: 2011 | AF85: 1600.691135 | AG85: Home water Purifiers and Filters (www.home-water-purifiers-and-filters.com). Sterilight Platinum NSF Certified UV Systems, Model SPV-200, 2.6 gpm. Prices online; accessed 2/3/11. | AH85: 1 | BA85: Vendor 1 | BB85: Vendor 2 | BC85: Vendor 3 | BD85: Vendor 4
B86: 51 | C86: 100 | D86: 1364.398771 | E86: 10 | F86: 10 | G86: 1059 | H86: =G86 -> 1059 | I86: 1059 | J86: 2011 | K86: 1218.467447 | L86: RO Water Systems, Inc. (www.rosystems.com). Sterilight Platinum NSF Certified UV Systems, Model SPV-200, 2.6 gpm. Prices online; accessed on 2/3/11. | M86: =$M$67 -> 1 | N86: 1128 | O86: 1128 | P86: 1128 | Q86: 2011 | R86: 1297.857677 | S86: Excel Water Technologies Inc.(www.excelwater.com). Sterilight Platinum NSF Certified UV Systems, Model SPV-2.5, 2.5 gpm. Prices online; ccessed 2/2/11. | T86: 1 | U86: 1165.13 | V86: 1165.13 | W86: 1165.13 | X86: 2011 | Y86: 1340.578826 | Z86: Freshwater Systems (www.freshwatersystems.com). Sterilight Platinum NSF Certified UV Systems, Model SPV-200, 2.6 gpm. Prices online; accessed 2/3/11. | AA86: 1 | AB86: 1391.2 | AC86: 1391.2 | AD86: 1391.2 | AE86: 2011 | AF86: 1600.691135 | AG86: Home water Purifiers and Filters (www.home-water-purifiers-and-filters.com). Sterilight Platinum NSF Certified UV Systems, Model SPV-200, 2.6 gpm. Prices online; accessed 2/3/11. | AH86: 1 | BA86: Vendor 1 | BB86: Vendor 2 | BC86: Vendor 3 | BD86: Vendor 4
B87: 101 | C87: 500 | D87: 1364.398771 | E87: 10 | F87: 10 | G87: 1059 | H87: =G87 -> 1059 | I87: 1059 | J87: 2011 | K87: 1218.467447 | L87: RO Water Systems, Inc. (www.rosystems.com). Sterilight Platinum NSF Certified UV Systems, Model SPV-200, 2.6 gpm. Prices online; accessed on 2/3/11. | M87: =$M$67 -> 1 | N87: 1128 | O87: 1128 | P87: 1128 | Q87: 2011 | R87: 1297.857677 | S87: Excel Water Technologies Inc.(www.excelwater.com). Sterilight Platinum NSF Certified UV Systems, Model SPV-2.5, 2.5 gpm. Prices online; ccessed 2/2/11. | T87: 1 | U87: 1165.13 | V87: 1165.13 | W87: 1165.13 | X87: 2011 | Y87: 1340.578826 | Z87: Freshwater Systems (www.freshwatersystems.com). Sterilight Platinum NSF Certified UV Systems, Model SPV-200, 2.6 gpm. Prices online; accessed 2/3/11. | AA87: 1 | AB87: 1391.2 | AC87: 1391.2 | AD87: 1391.2 | AE87: 2011 | AF87: 1600.691135 | AG87: Home water Purifiers and Filters (www.home-water-purifiers-and-filters.com). Sterilight Platinum NSF Certified UV Systems, Model SPV-200, 2.6 gpm. Prices online; accessed 2/3/11. | AH87: 1 | BA87: Vendor 1 | BB87: Vendor 2 | BC87: Vendor 3 | BD87: Vendor 4
B88: 501 | C88: 1000 | D88: 1364.398771 | E88: 10 | F88: 10 | G88: 1059 | H88: =G88 -> 1059 | I88: 1059 | J88: 2011 | K88: 1218.467447 | L88: RO Water Systems, Inc. (www.rosystems.com). Sterilight Platinum NSF Certified UV Systems, Model SPV-200, 2.6 gpm. Prices online; accessed on 2/3/11. | M88: =$M$67 -> 1 | N88: 1128 | O88: 1128 | P88: 1128 | Q88: 2011 | R88: 1297.857677 | S88: Excel Water Technologies Inc.(www.excelwater.com). Sterilight Platinum NSF Certified UV Systems, Model SPV-2.5, 2.5 gpm. Prices online; ccessed 2/2/11. | T88: 1 | U88: 1165.13 | V88: 1165.13 | W88: 1165.13 | X88: 2011 | Y88: 1340.578826 | Z88: Freshwater Systems (www.freshwatersystems.com). Sterilight Platinum NSF Certified UV Systems, Model SPV-200, 2.6 gpm. Prices online; accessed 2/3/11. | AA88: 1 | AB88: 1391.2 | AC88: 1391.2 | AD88: 1391.2 | AE88: 2011 | AF88: 1600.691135 | AG88: Home water Purifiers and Filters (www.home-water-purifiers-and-filters.com). Sterilight Platinum NSF Certified UV Systems, Model SPV-200, 2.6 gpm. Prices online; accessed 2/3/11. | AH88: 1 | BA88: Vendor 1 | BB88: Vendor 2 | BC88: Vendor 3 | BD88: Vendor 4
B89: POU Ultraviolet Replacement Parts
A90: pou_uv_parts | B90: UV Lamp | D90: =IF(AVERAGE(K90,R90,Y90,AF90,AM90,AT90)=0,"contact vendor",AVERAGE(K90,R90,Y90,AF90,AM90,AT90)) -> 87.95056811 | E90: N/A | F90: N/A | G90: 72.03 | H90: =G90 -> 72.03 | I90: 72.03 | J90: 2011 | K90: =I90*VLOOKUP(J90,cci_table,3,FALSE) -> 82.87649687 | L90: RO Water Systems, Inc. (www.rosystems.com). UV Lamp replacement, Model S200RL-HO, for Sterilight Platinum NSF Certified UV Systems, Model SPV-200, 2.6 gpm. Prices online; accessed on 2/3/11. | M90: 1 | U90: 71.69 | V90: 71.69 | W90: 71.69 | X90: 2011 | Y90: =W90*VLOOKUP(X90,cci_table,3,FALSE) -> 82.48529864 | Z90: Freshwater Systems (www.freshwatersystems.com). UV Lamp replacement, Model S200RL-HO, for Sterilight Platinum NSF Certified UV Systems, Model SPV-200, 2.6 gpm. Prices online; accessed 2/3/11. | AA90: 1 | AB90: 85.6 | AC90: 85.6 | AD90: 85.6 | AE90: 2011 | AF90: =AD90*VLOOKUP(AE90,cci_table,3,FALSE) -> 98.48990882 | AG90: Home water Purifiers and Filters (www.home-water-purifiers-and-filters.com). UV Lamp replacement, Model S200RL, for Sterilight Platinum NSF Certified UV Systems, Model SPV-200, 2.6 gpm. Prices online; accessed 2/3/11. | AH90: 1 | BA90: Vendor 1 | BC90: Vendor 3 | BD90: Vendor 4
B91: UV Quartz Sleeve | D91: =IF(AVERAGE(K91,R91,Y91,AF91,AM91,AT91)=0,"contact vendor",AVERAGE(K91,R91,Y91,AF91,AM91,AT91)) -> 43.83721409 | E91: N/A | F91: N/A | G91: 37.8 | H91: =G91 -> 37.8 | I91: 37.8 | J91: 2011 | K91: =I91*VLOOKUP(J91,cci_table,3,FALSE) -> 43.49203918 | L91: RO Water Systems, Inc. (www.rosystems.com). UV Quartz Sleeve replacement, Model QS-200, for Sterilight Platinum NSF Certified UV Systems, Model SPV-200, 2.6 gpm. Prices online; accessed on 2/3/11. | M91: 1 | N91: 43 | O91: =N91 -> 43 | P91: =O91 -> 43 | Q91: 2011 | R91: =P91*VLOOKUP(Q91,cci_table,3,FALSE) -> 49.47507102 | S91: Excel Water Technologies Inc.(www.excelwater.com). UV Quartz Sleeve replacement, Model QS-150, for Sterilight Platinum NSF Certified UV Systems, Model SPV-2.5, 2.5 gpm. Prices online; ccessed 2/2/11. | T91: 1 | U91: 33.5 | V91: 33.5 | W91: 33.5 | X91: 2011 | Y91: =W91*VLOOKUP(X91,cci_table,3,FALSE) -> 38.54453207 | Z91: Freshwater Systems (www.freshwatersystems.com). UV Quartz Sleeve replacement, Model QS-200, for Sterilight Platinum NSF Certified UV Systems, Model SPV-200, 2.6 gpm. Prices online; accessed 2/3/11. | AA91: 1 | BA91: Vendor 1 | BB91: Vendor 2 | BC91: Vendor 3
B93: POE Adsorptive Equipment
B94: Number Households | C94: Number Households | D94: Avg. Unit Cost | E94: Useful Life (large) | F94: Useful Life (small) | G94: Original Vendor Quote | H94: Quote+Inst | I94: Quote+Inst+Trans | J94: Year of Original Quote | K94: Adjusted Cost, including installation and transportation | L94: Source | M94: Installation Multiplier | N94: Unit cost | O94: Unit cost + Inst | P94: Unit cost+Inst+Trans | Q94: Year | R94: Adjusted Cost, including installation and transportation | S94: Source | T94: Installation Multiplier | U94: Unit cost | V94: Unit cost + Inst | W94: Unit cost+Inst+Trans | X94: Year | Y94: Adjusted Cost, including installation and transportation | Z94: Source | AA94: Installation Multiplier | AB94: Unit cost | AC94: Unit cost + Inst | AD94: Unit cost+Inst+Trans | AE94: Year | AF94: Adjusted Cost, including installation and transportation | AG94: Source | AH94: Installation Multiplier | AI94: Unit cost | AJ94: Unit cost + Inst | AK94: Unit cost+Inst+Trans | AL94: Year | AM94: Adjusted Cost, including installation and transportation | AN94: Source | AO94: Installation Multiplier | AP94: Unit cost | AQ94: Unit cost + Inst | AR94: Unit cost+Inst+Trans | AS94: Year | AT94: Adjusted Cost, including installation and transportation | AU94: Source | AV94: Installation multiplier | BA94: Source | BB94: Source | BC94: Source | BD94: Source | BE94: Source | BF94: Source
A95: poe_ads_equipment | B95: 0 | C95: 4 | D95: 0 | E95: 10 | F95: 10
B96: 5 | C96: 15 | D96: 0 | E96: 10 | F96: 10
B97: 16 | C97: 24 | D97: 0 | E97: 10 | F97: 10
B98: 25 | C98: 50 | D98: 0 | E98: 10 | F98: 10
B99: 51 | C99: 100 | D99: 0 | E99: 10 | F99: 10
B100: 101 | C100: 500 | D100: 0 | E100: 10 | F100: 10
B101: 501 | C101: 1000 | D101: 0 | E101: 10 | F101: 10
B102: POU Adsorptive Media Replacement Parts
A103: poe_ads_parts | B103: Sediment Pre-Filter | D103: 0 | E103: N/A | F103: N/A
BA104: =IF(L104="Source",L104,IF(ISBLANK(L104),"","Vendor 1")) ->  | BB104: =IF(S104="Source",S104,IF(ISBLANK(S104),"","Vendor 2")) ->  | BC104: =IF(Z104="Source",Z104,IF(ISBLANK(Z104),"","Vendor 3")) ->  | BD104: =IF(AG104="Source",AG104,IF(ISBLANK(AG104),"","Vendor 4")) ->  | BE104: =IF(AN104="Source",AN104,IF(ISBLANK(AN104),"","Vendor 5")) ->  | BF104: =IF(AU104="Source",AU104,IF(ISBLANK(AU104),"","Vendor 6")) -> 
B105: POE Anion Exchange Equipment
B106: Number Households | C106: Number Households | D106: Avg. Unit Cost | E106: Useful Life (large) | F106: Useful Life (small) | G106: Original Vendor Quote | H106: Quote+Inst | I106: Quote+Inst+Trans | J106: Year of Original Quote | K106: Adjusted Cost, including installation and transportation | L106: Source | M106: Installation Multiplier | N106: Unit cost | O106: Unit cost + Inst | P106: Unit cost+Inst+Trans | Q106: Year | R106: Adjusted Cost, including installation and transportation | S106: Source | T106: Installation Multiplier | U106: Unit cost | V106: Unit cost + Inst | W106: Unit cost+Inst+Trans | X106: Year | Y106: Adjusted Cost, including installation and transportation | Z106: Source | AA106: Installation Multiplier | AB106: Unit cost | AC106: Unit cost + Inst | AD106: Unit cost+Inst+Trans | AE106: Year | AF106: Adjusted Cost, including installation and transportation | AG106: Source | AH106: Installation Multiplier | AI106: Unit cost | AJ106: Unit cost + Inst | AK106: Unit cost+Inst+Trans | AL106: Year | AM106: Adjusted Cost, including installation and transportation | AN106: Source | AO106: Installation Multiplier | AP106: Unit cost | AQ106: Unit cost + Inst | AR106: Unit cost+Inst+Trans | AS106: Year | AT106: Adjusted Cost, including installation and transportation | AU106: Source | AV106: Installation multiplier | BA106: Source | BB106: Source | BC106: Source | BD106: Source | BE106: Source | BF106: Source
A107: poe_ax_equipment | B107: 0 | C107: 4 | D107: 0 | E107: 10 | F107: 10
B108: 5 | C108: 15 | D108: 0 | E108: 10 | F108: 10
B109: 16 | C109: 24 | D109: 0 | E109: 10 | F109: 10
B110: 25 | C110: 50 | D110: 0 | E110: 10 | F110: 10
B111: 51 | C111: 100 | D111: 0 | E111: 10 | F111: 10
B112: 101 | C112: 500 | D112: 0 | E112: 10 | F112: 10
B113: 501 | C113: 1000 | D113: 0 | E113: 10 | F113: 10
B114: POE Anion Exchange Replacement Parts
A115: poe_ax_parts | B115: Sediment Pre-Filter | D115: 0 | E115: N/A | F115: N/A
B117: POE Cation Exchange Equipment
B118: Number Households | C118: Number Households | D118: Avg. Unit Cost | E118: Useful Life (large) | F118: Useful Life (small) | G118: Original Vendor Quote | H118: Quote+Inst | I118: Quote+Inst+Trans | J118: Year of Original Quote | K118: Adjusted Cost, including installation and transportation | L118: Source | M118: Installation Multiplier | N118: Unit cost | O118: Unit cost + Inst | P118: Unit cost+Inst+Trans | Q118: Year | R118: Adjusted Cost, including installation and transportation | S118: Source | T118: Installation Multiplier | U118: Unit cost | V118: Unit cost + Inst | W118: Unit cost+Inst+Trans | X118: Year | Y118: Adjusted Cost, including installation and transportation | Z118: Source | AA118: Installation Multiplier | AB118: Unit cost | AC118: Unit cost + Inst | AD118: Unit cost+Inst+Trans | AE118: Year | AF118: Adjusted Cost, including installation and transportation | AG118: Source | AH118: Installation Multiplier | AI118: Unit cost | AJ118: Unit cost + Inst | AK118: Unit cost+Inst+Trans | AL118: Year | AM118: Adjusted Cost, including installation and transportation | AN118: Source | AO118: Installation Multiplier | AP118: Unit cost | AQ118: Unit cost + Inst | AR118: Unit cost+Inst+Trans | AS118: Year | AT118: Adjusted Cost, including installation and transportation | AU118: Source | AV118: Installation multiplier | BA118: Source | BB118: Source | BC118: Source | BD118: Source | BE118: Source | BF118: Source
A119: poe_cx_equipment | B119: 0 | C119: 4 | D119: =IF(AVERAGE(K119,R119,Y119,AF119,AM119,AT119)=0,"contact vendor",AVERAGE(K119,R119,Y119,AF119,AM119,AT119)) -> 826.5366729 | E119: 10 | F119: 10 | G119: 488.97 | H119: =G119*M119 -> 488.97 | I119: =H119 -> 488.97 | J119: 2011 | K119: =I119*VLOOKUP(J119,cci_table,3,FALSE) -> 562.6005925 | L119: Wal Mart (www.walmart.com) Morton System Saver Demand Water Softener, Model MSD34C. 34,000 grain capacity, 8 gpm. Prices online; accessed on 2/4/11. $0.97 shipping cost. | M119: 1 | N119: 1199 | O119: =N119*T119 -> 1199 | P119: =O119 -> 1199 | Q119: 2011 | R119: =P119*VLOOKUP(Q119,cci_table,3,FALSE) -> 1379.549073 | S119: Premiere Sales (www.premieresales.com). GE ProSeries Performa LOGIX Water Softener, 25 gpm capacity; $2.99 shipping costs. Prices online; accessed on 2/4/11. | T119: 1 | U119: =AVERAGE(453,518,548) -> 506.3333333 | V119: =U119*AA119 -> 506.3333333 | W119: =V119 -> 506.3333333 | X119: 2011 | Y119: =W119*VLOOKUP(X119,cci_table,3,FALSE) -> 582.5785494 | Z119: The Home Depot (www.homedepot.com). Waterboss ( www.waterboss.com) Water Softeners: Models 700, 900, and 950: (1) Model 700=$453; 70 grains per gallon, 16 gpm, 2.5 lbs of salt per regeneration, 19.5 minutes for regen, 16.4 gal used per regen; (2) Model 900=$518; 90 grains per gallon, 10gpm, 6 lbs of salt per regeneration, 20 minutes for regen, 14 gal used per regen; and (3) Model 950=$548; 35 grains per gallon, 8 gpm, 2.5 lbs of salt per regeneration, 17 minutes for regen, 14 gal used per regen. | AA119: 1 | AB119: 679.15 | AC119: =AB119*AH119 -> 679.15 | AD119: =AC119 -> 679.15 | AE119: 2011 | AF119: =AD119*VLOOKUP(AE119,cci_table,3,FALSE) -> 781.4184763 | AG119: Sears, Roebuck and Co. (http://www.sears.com). Kenmore Elite 420 Searies Water Softener, Model M38426, 9.5 gpm, High resin capacity- 1.20, valve fits 1-1/4" plumbing, salt efficiency- 5,010 grains at 2.5 lbs. salt, electronic demand initiated regeneration. Prices online; accessed on 2/4/11. | AH119: 1 | BA119: Vendor 1 | BB119: Vendor 2 | BC119: Vendor 3 | BD119: Vendor 4
B120: 5 | C120: 15 | D120: 826.5366729 | E120: 10 | F120: 10 | G120: 488.97 | H120: 488.97 | I120: 488.97 | J120: 2011 | K120: 562.6005925 | L120: Wal Mart (www.walmart.com) Morton System Saver Demand Water Softener, Model MSD34C. 34,000 grain capacity, 8 gpm. Prices online; accessed on 2/4/11. $0.97 shipping cost. | M120: 1 | N120: 1199 | O120: 1199 | P120: 1199 | Q120: 2011 | R120: 1379.549073 | S120: Premiere Sales (www.premieresales.com). GE ProSeries Performa LOGIX Water Softener, 25 gpm capacity; $2.99 shipping costs. Prices online; accessed on 2/4/11. | T120: 1 | U120: 506.3333333 | V120: 506.3333333 | W120: 506.3333333 | X120: 2011 | Y120: 582.5785494 | Z120: The Home Depot (www.homedepot.com). Waterboss ( www.waterboss.com) Water Softeners: Models 700, 900, and 950: (1) Model 700=$453; 70 grains per gallon, 16 gpm, 2.5 lbs of salt per regeneration, 19.5 minutes for regen, 16.4 gal used per regen; (2) Model 900=$518; 90 grains per gallon, 10gpm, 6 lbs of salt per regeneration, 20 minutes for regen, 14 gal used per regen; and (3) Model 950=$548; 35 grains per gallon, 8 gpm, 2.5 lbs of salt per regeneration, 17 minutes for regen, 14 gal used per regen. | AA120: 1 | AB120: 679.15 | AC120: 679.15 | AD120: 679.15 | AE120: 2011 | AF120: 781.4184763 | AG120: Sears, Roebuck and Co. (http://www.sears.com). Kenmore Elite 420 Searies Water Softener, Model M38426, 9.5 gpm, High resin capacity- 1.20, valve fits 1-1/4" plumbing, salt efficiency- 5,010 grains at 2.5 lbs. salt, electronic demand initiated regeneration. Prices online; accessed on 2/4/11. | AH120: 1 | BA120: Vendor 1 | BB120: Vendor 2 | BC120: Vendor 3 | BD120: Vendor 4
B121: 16 | C121: 24 | D121: 826.5366729 | E121: 10 | F121: 10 | G121: 488.97 | H121: 488.97 | I121: 488.97 | J121: 2011 | K121: 562.6005925 | L121: Wal Mart (www.walmart.com) Morton System Saver Demand Water Softener, Model MSD34C. 34,000 grain capacity, 8 gpm. Prices online; accessed on 2/4/11. $0.97 shipping cost. | M121: =$M$67 -> 1 | N121: 1199 | O121: 1199 | P121: 1199 | Q121: 2011 | R121: 1379.549073 | S121: Premiere Sales (www.premieresales.com). GE ProSeries Performa LOGIX Water Softener, 25 gpm capacity; $2.99 shipping costs. Prices online; accessed on 2/4/11. | T121: 1 | U121: 506.3333333 | V121: 506.3333333 | W121: 506.3333333 | X121: 2011 | Y121: 582.5785494 | Z121: The Home Depot (www.homedepot.com). Waterboss ( www.waterboss.com) Water Softeners: Models 700, 900, and 950: (1) Model 700=$453; 70 grains per gallon, 16 gpm, 2.5 lbs of salt per regeneration, 19.5 minutes for regen, 16.4 gal used per regen; (2) Model 900=$518; 90 grains per gallon, 10gpm, 6 lbs of salt per regeneration, 20 minutes for regen, 14 gal used per regen; and (3) Model 950=$548; 35 grains per gallon, 8 gpm, 2.5 lbs of salt per regeneration, 17 minutes for regen, 14 gal used per regen. | AA121: 1 | AB121: 679.15 | AC121: 679.15 | AD121: 679.15 | AE121: 2011 | AF121: 781.4184763 | AG121: Sears, Roebuck and Co. (http://www.sears.com). Kenmore Elite 420 Searies Water Softener, Model M38426, 9.5 gpm, High resin capacity- 1.20, valve fits 1-1/4" plumbing, salt efficiency- 5,010 grains at 2.5 lbs. salt, electronic demand initiated regeneration. Prices online; accessed on 2/4/11. | AH121: 1 | BA121: Vendor 1 | BB121: Vendor 2 | BC121: Vendor 3 | BD121: Vendor 4
B122: 25 | C122: 50 | D122: 826.5366729 | E122: 10 | F122: 10 | G122: 488.97 | H122: 488.97 | I122: 488.97 | J122: 2011 | K122: 562.6005925 | L122: Wal Mart (www.walmart.com) Morton System Saver Demand Water Softener, Model MSD34C. 34,000 grain capacity, 8 gpm. Prices online; accessed on 2/4/11. $0.97 shipping cost. | M122: =$M$67 -> 1 | N122: 1199 | O122: 1199 | P122: 1199 | Q122: 2011 | R122: 1379.549073 | S122: Premiere Sales (www.premieresales.com). GE ProSeries Performa LOGIX Water Softener, 25 gpm capacity; $2.99 shipping costs. Prices online; accessed on 2/4/11. | T122: 1 | U122: 506.3333333 | V122: 506.3333333 | W122: 506.3333333 | X122: 2011 | Y122: 582.5785494 | Z122: The Home Depot (www.homedepot.com). Waterboss ( www.waterboss.com) Water Softeners: Models 700, 900, and 950: (1) Model 700=$453; 70 grains per gallon, 16 gpm, 2.5 lbs of salt per regeneration, 19.5 minutes for regen, 16.4 gal used per regen; (2) Model 900=$518; 90 grains per gallon, 10gpm, 6 lbs of salt per regeneration, 20 minutes for regen, 14 gal used per regen; and (3) Model 950=$548; 35 grains per gallon, 8 gpm, 2.5 lbs of salt per regeneration, 17 minutes for regen, 14 gal used per regen. | AA122: 1 | AB122: 679.15 | AC122: 679.15 | AD122: 679.15 | AE122: 2011 | AF122: 781.4184763 | AG122: Sears, Roebuck and Co. (http://www.sears.com). Kenmore Elite 420 Searies Water Softener, Model M38426, 9.5 gpm, High resin capacity- 1.20, valve fits 1-1/4" plumbing, salt efficiency- 5,010 grains at 2.5 lbs. salt, electronic demand initiated regeneration. Prices online; accessed on 2/4/11. | AH122: 1 | BA122: Vendor 1 | BB122: Vendor 2 | BC122: Vendor 3 | BD122: Vendor 4
B123: 51 | C123: 100 | D123: 826.5366729 | E123: 10 | F123: 10 | G123: 488.97 | H123: 488.97 | I123: 488.97 | J123: 2011 | K123: 562.6005925 | L123: Wal Mart (www.walmart.com) Morton System Saver Demand Water Softener, Model MSD34C. 34,000 grain capacity, 8 gpm. Prices online; accessed on 2/4/11. $0.97 shipping cost. | M123: =$M$67 -> 1 | N123: 1199 | O123: 1199 | P123: 1199 | Q123: 2011 | R123: 1379.549073 | S123: Premiere Sales (www.premieresales.com). GE ProSeries Performa LOGIX Water Softener, 25 gpm capacity; $2.99 shipping costs. Prices online; accessed on 2/4/11. | T123: 1 | U123: 506.3333333 | V123: 506.3333333 | W123: 506.3333333 | X123: 2011 | Y123: 582.5785494 | Z123: The Home Depot (www.homedepot.com). Waterboss ( www.waterboss.com) Water Softeners: Models 700, 900, and 950: (1) Model 700=$453; 70 grains per gallon, 16 gpm, 2.5 lbs of salt per regeneration, 19.5 minutes for regen, 16.4 gal used per regen; (2) Model 900=$518; 90 grains per gallon, 10gpm, 6 lbs of salt per regeneration, 20 minutes for regen, 14 gal used per regen; and (3) Model 950=$548; 35 grains per gallon, 8 gpm, 2.5 lbs of salt per regeneration, 17 minutes for regen, 14 gal used per regen. | AA123: 1 | AB123: 679.15 | AC123: 679.15 | AD123: 679.15 | AE123: 2011 | AF123: 781.4184763 | AG123: Sears, Roebuck and Co. (http://www.sears.com). Kenmore Elite 420 Searies Water Softener, Model M38426, 9.5 gpm, High resin capacity- 1.20, valve fits 1-1/4" plumbing, salt efficiency- 5,010 grains at 2.5 lbs. salt, electronic demand initiated regeneration. Prices online; accessed on 2/4/11. | AH123: 1 | BA123: Vendor 1 | BB123: Vendor 2 | BC123: Vendor 3 | BD123: Vendor 4
B124: 101 | C124: 500 | D124: 826.5366729 | E124: 10 | F124: 10 | G124: 488.97 | H124: 488.97 | I124: 488.97 | J124: 2011 | K124: 562.6005925 | L124: Wal Mart (www.walmart.com) Morton System Saver Demand Water Softener, Model MSD34C. 34,000 grain capacity, 8 gpm. Prices online; accessed on 2/4/11. $0.97 shipping cost. | M124: =$M$67 -> 1 | N124: 1199 | O124: 1199 | P124: 1199 | Q124: 2011 | R124: 1379.549073 | S124: Premiere Sales (www.premieresales.com). GE ProSeries Performa LOGIX Water Softener, 25 gpm capacity; $2.99 shipping costs. Prices online; accessed on 2/4/11. | T124: 1 | U124: 506.3333333 | V124: 506.3333333 | W124: 506.3333333 | X124: 2011 | Y124: 582.5785494 | Z124: The Home Depot (www.homedepot.com). Waterboss ( www.waterboss.com) Water Softeners: Models 700, 900, and 950: (1) Model 700=$453; 70 grains per gallon, 16 gpm, 2.5 lbs of salt per regeneration, 19.5 minutes for regen, 16.4 gal used per regen; (2) Model 900=$518; 90 grains per gallon, 10gpm, 6 lbs of salt per regeneration, 20 minutes for regen, 14 gal used per regen; and (3) Model 950=$548; 35 grains per gallon, 8 gpm, 2.5 lbs of salt per regeneration, 17 minutes for regen, 14 gal used per regen. | AA124: 1 | AB124: 679.15 | AC124: 679.15 | AD124: 679.15 | AE124: 2011 | AF124: 781.4184763 | AG124: Sears, Roebuck and Co. (http://www.sears.com). Kenmore Elite 420 Searies Water Softener, Model M38426, 9.5 gpm, High resin capacity- 1.20, valve fits 1-1/4" plumbing, salt efficiency- 5,010 grains at 2.5 lbs. salt, electronic demand initiated regeneration. Prices online; accessed on 2/4/11. | AH124: 1 | BA124: Vendor 1 | BB124: Vendor 2 | BC124: Vendor 3 | BD124: Vendor 4
B125: 501 | C125: 1000 | D125: 699.9725377 | E125: 10 | F125: 10 | G125: 48.97 | H125: 48.97 | I125: 48.97 | J125: 2011 | K125: 56.34405181 | L125: Wal Mart (www.walmart.com) Morton System Saver Demand Water Softener, Model MSD34C. 34,000 grain capacity, 8 gpm. Prices online; accessed on 2/4/11. $0.97 shipping cost. | M125: =$M$67 -> 1 | N125: 1199 | O125: 1199 | P125: 1199 | Q125: 2011 | R125: 1379.549073 | S125: Premiere Sales (www.premieresales.com). GE ProSeries Performa LOGIX Water Softener, 25 gpm capacity; $2.99 shipping costs. Prices online; accessed on 2/4/11. | T125: 1 | U125: 506.3333333 | V125: 506.3333333 | W125: 506.3333333 | X125: 2011 | Y125: 582.5785494 | Z125: The Home Depot (www.homedepot.com). Waterboss ( www.waterboss.com) Water Softeners: Models 700, 900, and 950: (1) Model 700=$453; 70 grains per gallon, 16 gpm, 2.5 lbs of salt per regeneration, 19.5 minutes for regen, 16.4 gal used per regen; (2) Model 900=$518; 90 grains per gallon, 10gpm, 6 lbs of salt per regeneration, 20 minutes for regen, 14 gal used per regen; and (3) Model 950=$548; 35 grains per gallon, 8 gpm, 2.5 lbs of salt per regeneration, 17 minutes for regen, 14 gal used per regen. | AA125: 1 | AB125: 679.15 | AC125: 679.15 | AD125: 679.15 | AE125: 2011 | AF125: 781.4184763 | AG125: Sears, Roebuck and Co. (http://www.sears.com). Kenmore Elite 420 Searies Water Softener, Model M38426, 9.5 gpm, High resin capacity- 1.20, valve fits 1-1/4" plumbing, salt efficiency- 5,010 grains at 2.5 lbs. salt, electronic demand initiated regeneration. Prices online; accessed on 2/4/11. | AH125: 1 | BA125: Vendor 1 | BB125: Vendor 2 | BC125: Vendor 3 | BD125: Vendor 4
B126: POE Cation Exchange Replacement Parts
A127: poe_cx_parts | B127: Sodium Chloride | C127: $/lb | D127: =IF(AVERAGE(K127,R127,Y127,AF127,AM127,AT127)=0,"contact vendor",AVERAGE(K127,R127,Y127,AF127,AM127,AT127)) -> 0.1511099068 | E127: N/A | F127: N/A | G127: =7.49/40 -> 0.18725 | H127: =G127*M127 -> 0.18725 | I127: =H127 -> 0.18725 | J127: 2011 | K127: =I127*VLOOKUP(J127,cci_table,3,FALSE) -> 0.2154466755 | L127: Ace Hardware, Diamond Crystal Pellets sold in 40-lb bags for $7.49/bag online at http://www.acehardware.com/family/index.jsp?categoryId=1367182&cp=1254884. Prices online; accessed on 2/4/11. | M127: 1 | N127: =4.38/40 -> 0.1095 | O127: =N127*T127 -> 0.1095 | P127: =O127 -> 0.1095 | Q127: 2011 | R127: =P127*VLOOKUP(Q127,cci_table,3,FALSE) -> 0.1259888436 | S127: Sam's Club (www.samsclub.com). Morton System Saver Pellets, sold in 40 pound bags. Prices online; accessed on 2/4/11. | T127: 1 | U127: =3.89/40 -> 0.09725 | V127: =U127*AA127 -> 0.09725 | W127: =V127 -> 0.09725 | X127: 2011 | Y127: =W127*VLOOKUP(X127,cci_table,3,FALSE) -> 0.1118942013 | Z127: The Home Depot (www.homedepot.com). Morton Salt System Saver II Water Softener Pellets. Sold in 40 pound bags. Prices online; accessed 2/4/11. | AA127: 1 | BA127: Vendor 1 | BB127: Vendor 2 | BC127: Vendor 3
B129: POE Aeration Equipment
B130: Number Households | C130: Number Households | D130: Avg. Unit Cost | E130: Useful Life (large) | F130: Useful Life (small) | G130: Original Vendor Quote | H130: Quote+Inst | I130: Quote+Inst+Trans | J130: Year of Original Quote | K130: Adjusted Cost, including installation and transportation | L130: Source | M130: Installation Multiplier | N130: Unit cost | O130: Unit cost + Inst | P130: Unit cost+Inst+Trans | Q130: Year | R130: Adjusted Cost, including installation and transportation | S130: Source | T130: Installation Multiplier | U130: Unit cost | V130: Unit cost + Inst | W130: Unit cost+Inst+Trans | X130: Year | Y130: Adjusted Cost, including installation and transportation | Z130: Source | AA130: Installation Multiplier | AB130: Unit cost | AC130: Unit cost + Inst | AD130: Unit cost+Inst+Trans | AE130: Year | AF130: Adjusted Cost, including installation and transportation | AG130: Source | AH130: Installation Multiplier | AI130: Unit cost | AJ130: Unit cost + Inst | AK130: Unit cost+Inst+Trans | AL130: Year | AM130: Adjusted Cost, including installation and transportation | AN130: Source | AO130: Installation Multiplier | AP130: Unit cost | AQ130: Unit cost + Inst | AR130: Unit cost+Inst+Trans | AS130: Year | AT130: Adjusted Cost, including installation and transportation | AU130: Source | AV130: Installation multiplier | BA130: Source | BB130: Source | BC130: Source | BD130: Source | BE130: Source | BF130: Source
A131: poe_aer_equipment | B131: 0 | C131: 4 | D131: 0 | E131: 10 | F131: 10
B132: 5 | C132: 15 | D132: 0 | E132: 10 | F132: 10
B133: 16 | C133: 24 | D133: 0 | E133: 10 | F133: 10
B134: 25 | C134: 50 | D134: 0 | E134: 10 | F134: 10
B135: 51 | C135: 100 | D135: 0 | E135: 10 | F135: 10
B136: 101 | C136: 500 | D136: 0 | E136: 10 | F136: 10 | BA136: =IF(L136="Source",L136,IF(ISBLANK(L136),"","Vendor 1")) ->  | BB136: =IF(S136="Source",S136,IF(ISBLANK(S136),"","Vendor 2")) ->  | BC136: =IF(Z136="Source",Z136,IF(ISBLANK(Z136),"","Vendor 3")) ->  | BD136: =IF(AG136="Source",AG136,IF(ISBLANK(AG136),"","Vendor 4")) ->  | BE136: =IF(AN136="Source",AN136,IF(ISBLANK(AN136),"","Vendor 5")) ->  | BF136: =IF(AU136="Source",AU136,IF(ISBLANK(AU136),"","Vendor 6")) -> 
B137: 501 | C137: 1000 | D137: 0 | E137: 10 | F137: 10
B138: POU Aeration Replacement Parts
A139: poe_aer_parts | B139: Sediment Pre-Filter | D139: 0 | E139: N/A | F139: N/A
B140: Air Filter | D140: 0 | E140: N/A | F140: N/A
B142: POE Granular Activated Carbon w/ Backwash Equipment
B143: Number Households | C143: Number Households | D143: Avg. Unit Cost | E143: Useful Life (large) | F143: Useful Life (small) | G143: Original Vendor Quote | H143: Quote+Inst | I143: Quote+Inst+Trans | J143: Year of Original Quote | K143: Adjusted Cost, including installation and transportation | L143: Source | M143: Installation Multiplier | N143: Unit cost | O143: Unit cost + Inst | P143: Unit cost+Inst+Trans | Q143: Year | R143: Adjusted Cost, including installation and transportation | S143: Source | T143: Installation Multiplier | U143: Unit cost | V143: Unit cost + Inst | W143: Unit cost+Inst+Trans | X143: Year | Y143: Adjusted Cost, including installation and transportation | Z143: Source | AA143: Installation Multiplier | AB143: Unit cost | AC143: Unit cost + Inst | AD143: Unit cost+Inst+Trans | AE143: Year | AF143: Adjusted Cost, including installation and transportation | AG143: Source | AH143: Installation Multiplier | AI143: Unit cost | AJ143: Unit cost + Inst | AK143: Unit cost+Inst+Trans | AL143: Year | AM143: Adjusted Cost, including installation and transportation | AN143: Source | AO143: Installation Multiplier | AP143: Unit cost | AQ143: Unit cost + Inst | AR143: Unit cost+Inst+Trans | AS143: Year | AT143: Adjusted Cost, including installation and transportation | AU143: Source | AV143: Installation multiplier | BA143: Source | BB143: Source | BC143: Source | BD143: Source | BE143: Source | BF143: Source
A144: poe_gac_bw_equipment | B144: 0 | C144: 4 | D144: 0 | E144: 10 | F144: 10
B145: 5 | C145: 15 | D145: 0 | E145: 10 | F145: 10
B146: 16 | C146: 24 | D146: 0 | E146: 10 | F146: 10
B147: 25 | C147: 50 | D147: 0 | E147: 10 | F147: 10
B148: 51 | C148: 100 | D148: 0 | E148: 10 | F148: 10
B149: 101 | C149: 500 | D149: 0 | E149: 10 | F149: 10
B150: 501 | C150: 1000 | D150: 0 | E150: 10 | F150: 10
B151: POE Granular Activated Carbon w/ Backwash Replacement Parts
A152: poe_gac_bw_parts | B152: Sediment Pre-Filter | D152: 0 | E152: N/A | F152: N/A
B153: Media Cartridge | D153: 0 | E153: N/A | F153: N/A
B155: POE Granular Activated Carbon Equipment
B156: Number Households | C156: Number Households | D156: Avg. Unit Cost | E156: Useful Life (large) | F156: Useful Life (small) | G156: Original Vendor Quote | H156: Quote+Inst | I156: Quote+Inst+Trans | J156: Year of Original Quote | K156: Adjusted Cost, including installation and transportation | L156: Source | M156: Installation Multiplier | N156: Unit cost | O156: Unit cost + Inst | P156: Unit cost+Inst+Trans | Q156: Year | R156: Adjusted Cost, including installation and transportation | S156: Source | T156: Installation Multiplier | U156: Unit cost | V156: Unit cost + Inst | W156: Unit cost+Inst+Trans | X156: Year | Y156: Adjusted Cost, including installation and transportation | Z156: Source | AA156: Installation Multiplier | AB156: Unit cost | AC156: Unit cost + Inst | AD156: Unit cost+Inst+Trans | AE156: Year | AF156: Adjusted Cost, including installation and transportation | AG156: Source | AH156: Installation Multiplier | AI156: Unit cost | AJ156: Unit cost + Inst | AK156: Unit cost+Inst+Trans | AL156: Year | AM156: Adjusted Cost, including installation and transportation | AN156: Source | AO156: Installation Multiplier | AP156: Unit cost | AQ156: Unit cost + Inst | AR156: Unit cost+Inst+Trans | AS156: Year | AT156: Adjusted Cost, including installation and transportation | AU156: Source | AV156: Installation multiplier | BA156: Source | BB156: Source | BC156: Source | BD156: Source | BE156: Source | BF156: Source
A157: poe_gac_equipment | B157: 0 | C157: 4 | D157: 0 | E157: 10 | F157: 10
B158: 5 | C158: 15 | D158: 0 | E158: 10 | F158: 10
B159: 16 | C159: 24 | D159: 0 | E159: 10 | F159: 10
B160: 25 | C160: 50 | D160: 0 | E160: 10 | F160: 10
B161: 51 | C161: 100 | D161: 0 | E161: 10 | F161: 10
B162: 101 | C162: 500 | D162: 0 | E162: 10 | F162: 10
B163: 501 | C163: 1000 | D163: 0 | E163: 10 | F163: 10
B164: POE Granular Activated Carbon Replacement Parts
A165: poe_gac_parts | B165: Sediment Pre-Filter | D165: 0 | E165: N/A | F165: N/A
B166: Media Cartridge | D166: 0 | E166: N/A | F166: N/A
B168: POE Ultraviolet Equipment | BA168: =IF(L168="Source",L168,IF(ISBLANK(L168),"","Vendor 1")) ->  | BB168: =IF(S168="Source",S168,IF(ISBLANK(S168),"","Vendor 2")) ->  | BC168: =IF(Z168="Source",Z168,IF(ISBLANK(Z168),"","Vendor 3")) ->  | BD168: =IF(AG168="Source",AG168,IF(ISBLANK(AG168),"","Vendor 4")) ->  | BE168: =IF(AN168="Source",AN168,IF(ISBLANK(AN168),"","Vendor 5")) ->  | BF168: =IF(AU168="Source",AU168,IF(ISBLANK(AU168),"","Vendor 6")) -> 
B169: Number Households | C169: Number Households | D169: Avg. Unit Cost | E169: Useful Life (large) | F169: Useful Life (small) | G169: Original Vendor Quote | H169: Quote+Inst | I169: Quote+Inst+Trans | J169: Year of Original Quote | K169: Adjusted Cost, including installation and transportation | L169: Source | M169: Installation Multiplier | N169: Unit cost | O169: Unit cost + Inst | P169: Unit cost+Inst+Trans | Q169: Year | R169: Adjusted Cost, including installation and transportation | S169: Source | T169: Installation Multiplier | U169: Unit cost | V169: Unit cost + Inst | W169: Unit cost+Inst+Trans | X169: Year | Y169: Adjusted Cost, including installation and transportation | Z169: Source | AA169: Installation Multiplier | AB169: Unit cost | AC169: Unit cost + Inst | AD169: Unit cost+Inst+Trans | AE169: Year | AF169: Adjusted Cost, including installation and transportation | AG169: Source | AH169: Installation Multiplier | AI169: Unit cost | AJ169: Unit cost + Inst | AK169: Unit cost+Inst+Trans | AL169: Year | AM169: Adjusted Cost, including installation and transportation | AN169: Source | AO169: Installation Multiplier | AP169: Unit cost | AQ169: Unit cost + Inst | AR169: Unit cost+Inst+Trans | AS169: Year | AT169: Adjusted Cost, including installation and transportation | AU169: Source | AV169: Installation multiplier | BA169: Source | BB169: Source | BC169: Source | BD169: Source | BE169: Source | BF169: Source
A170: poe_uv_equipment | B170: 0 | C170: 4 | D170: =IF(AVERAGE(K170,R170,Y170,AF170,AM170,AT170)=0,"contact vendor",AVERAGE(K170,R170,Y170,AF170,AM170,AT170)) -> 1599.318106 | E170: 10 | F170: 10 | G170: 1529 | H170: =G170*M170 -> 1529 | I170: =H170 -> 1529 | J170: 2011 | K170: =I170*VLOOKUP(J170,cci_table,3,FALSE) -> 1759.241479 | L170: Pump Store USA (www.pumpstoreusa.com). Hallett 13 NSF certified UV System, 13.3 gpm. Prices online; accessed on 2/4/11. | M170: 1 | N170: 1518.89 | O170: =N170*T170 -> 1518.89 | P170: =O170 -> 1518.89 | Q170: 2011 | R170: =P170*VLOOKUP(Q170,cci_table,3,FALSE) -> 1747.609084 | S170: Fresh Water Systems (www.freshwatersystems.com). Trojan UVMax Pro10 NSF certifiec UV system, 10 gpm. Prices online; accessed on 2/4/11. | T170: 1 | U170: 1237.1 | V170: =U170*AA170 -> 1237.1 | W170: =V170 -> 1237.1 | X170: 2011 | Y170: =W170*VLOOKUP(X170,cci_table,3,FALSE) -> 1423.386287 | Z170: RO Water Systems, Inc. (www.rosystems.com). Sterilight Platinum NSF Certified UV Systems, Model SPV-740, 11.2 gpm. Prices online; accessed on 2/4/11. | AA170: 1 | AB170: 1427.1 | AC170: =AB170*AH170 -> 1427.1 | AD170: =AC170 -> 1427.1 | AE170: 2011 | AF170: =AD170*VLOOKUP(AE170,cci_table,3,FALSE) -> 1641.997066 | AG170: Freshwater Systems (www.freshwatersystems.com). Sterilight Platinum NSF Certified UV Systems, Model SPV-740, 11.2 gpm. Prices online; accessed 2/4/11. | AH170: 1 | AI170: 1348 | AJ170: =AI170*AO170 -> 1348 | AK170: =AJ170 -> 1348 | AL170: 2011 | AM170: =AK170*VLOOKUP(AL170,cci_table,3,FALSE) -> 1550.985947 | AN170: Excel Water Technologies Inc.(www.excelwater.com). Sterilight Platinum NSF Certified UV Systems, Model SPV-12, 12 gpm. Prices online; ccessed 2/4/11. | AO170: 1 | AP170: 1279.95 | AQ170: =AP170*AV170 -> 1279.95 | AR170: =AQ170 -> 1279.95 | AS170: 2011 | AT170: =AR170*VLOOKUP(AS170,cci_table,3,FALSE) -> 1472.688771 | AU170: RO Water Systems, Inc. (www.rosystems.com). Trojan UVMax Pro10 NSF certifiec UV system, 10 gpm. Prices online; accessed on 2/4/11. | AV170: 1 | BA170: Vendor 1 | BB170: Vendor 2 | BC170: Vendor 3 | BD170: Vendor 4 | BE170: Vendor 5 | BF170: Vendor 6
B171: 5 | C171: 15 | D171: 1599.318106 | E171: 10 | F171: 10 | G171: 1529 | H171: 1529 | I171: 1529 | J171: 2011 | K171: 1759.241479 | L171: Pump Store USA (www.pumpstoreusa.com). Hallett 13 NSF certified UV System, 13.3 gpm. Prices online; accessed on 2/4/11. | M171: 1 | N171: 1518.89 | O171: 1518.89 | P171: 1518.89 | Q171: 2011 | R171: 1747.609084 | S171: Fresh Water Systems (www.freshwatersystems.com). Trojan UVMax Pro10 NSF certifiec UV system, 10 gpm. Prices online; accessed on 2/4/11. | T171: 1 | U171: 1237.1 | V171: 1237.1 | W171: 1237.1 | X171: 2011 | Y171: 1423.386287 | Z171: RO Water Systems, Inc. (www.rosystems.com). Sterilight Platinum NSF Certified UV Systems, Model SPV-740, 11.2 gpm. Prices online; accessed on 2/4/11. | AA171: 1 | AB171: 1427.1 | AC171: 1427.1 | AD171: 1427.1 | AE171: 2011 | AF171: 1641.997066 | AG171: Freshwater Systems (www.freshwatersystems.com). Sterilight Platinum NSF Certified UV Systems, Model SPV-740, 11.2 gpm. Prices online; accessed 2/4/11. | AH171: 1 | AI171: 1348 | AJ171: 1348 | AK171: 1348 | AL171: 2011 | AM171: 1550.985947 | AN171: Excel Water Technologies Inc.(www.excelwater.com). Sterilight Platinum NSF Certified UV Systems, Model SPV-12, 12 gpm. Prices online; ccessed 2/4/11. | AO171: 1 | AP171: 1279.95 | AQ171: 1279.95 | AR171: 1279.95 | AS171: 2011 | AT171: 1472.688771 | AU171: RO Water Systems, Inc. (www.rosystems.com). Trojan UVMax Pro10 NSF certifiec UV system, 10 gpm. Prices online; accessed on 2/4/11. | AV171: 1 | BA171: Vendor 1 | BB171: Vendor 2 | BC171: Vendor 3 | BD171: Vendor 4 | BE171: Vendor 5 | BF171: Vendor 6
B172: 16 | C172: 24 | D172: 1599.318106 | E172: 10 | F172: 10 | G172: 1529 | H172: 1529 | I172: 1529 | J172: 2011 | K172: 1759.241479 | L172: Pump Store USA (www.pumpstoreusa.com). Hallett 13 NSF certified UV System, 13.3 gpm. Prices online; accessed on 2/4/11. | M172: =$M$67 -> 1 | N172: 1518.89 | O172: 1518.89 | P172: 1518.89 | Q172: 2011 | R172: 1747.609084 | S172: Fresh Water Systems (www.freshwatersystems.com). Trojan UVMax Pro10 NSF certifiec UV system, 10 gpm. Prices online; accessed on 2/4/11. | T172: =$M$67 -> 1 | U172: 1237.1 | V172: 1237.1 | W172: 1237.1 | X172: 2011 | Y172: 1423.386287 | Z172: RO Water Systems, Inc. (www.rosystems.com). Sterilight Platinum NSF Certified UV Systems, Model SPV-740, 11.2 gpm. Prices online; accessed on 2/4/11. | AA172: 1 | AB172: 1427.1 | AC172: 1427.1 | AD172: 1427.1 | AE172: 2011 | AF172: 1641.997066 | AG172: Freshwater Systems (www.freshwatersystems.com). Sterilight Platinum NSF Certified UV Systems, Model SPV-740, 11.2 gpm. Prices online; accessed 2/4/11. | AH172: 1 | AI172: 1348 | AJ172: 1348 | AK172: 1348 | AL172: 2011 | AM172: 1550.985947 | AN172: Excel Water Technologies Inc.(www.excelwater.com). Sterilight Platinum NSF Certified UV Systems, Model SPV-12, 12 gpm. Prices online; ccessed 2/4/11. | AO172: 1 | AP172: 1279.95 | AQ172: 1279.95 | AR172: 1279.95 | AS172: 2011 | AT172: 1472.688771 | AU172: RO Water Systems, Inc. (www.rosystems.com). Trojan UVMax Pro10 NSF certifiec UV system, 10 gpm. Prices online; accessed on 2/4/11. | AV172: 1 | BA172: Vendor 1 | BB172: Vendor 2 | BC172: Vendor 3 | BD172: Vendor 4 | BE172: Vendor 5 | BF172: Vendor 6
B173: 25 | C173: 50 | D173: 1599.318106 | E173: 10 | F173: 10 | G173: 1529 | H173: 1529 | I173: 1529 | J173: 2011 | K173: 1759.241479 | L173: Pump Store USA (www.pumpstoreusa.com). Hallett 13 NSF certified UV System, 13.3 gpm. Prices online; accessed on 2/4/11. | M173: =$M$67 -> 1 | N173: 1518.89 | O173: 1518.89 | P173: 1518.89 | Q173: 2011 | R173: 1747.609084 | S173: Fresh Water Systems (www.freshwatersystems.com). Trojan UVMax Pro10 NSF certifiec UV system, 10 gpm. Prices online; accessed on 2/4/11. | T173: =$M$67 -> 1 | U173: 1237.1 | V173: 1237.1 | W173: 1237.1 | X173: 2011 | Y173: 1423.386287 | Z173: RO Water Systems, Inc. (www.rosystems.com). Sterilight Platinum NSF Certified UV Systems, Model SPV-740, 11.2 gpm. Prices online; accessed on 2/4/11. | AA173: 1 | AB173: 1427.1 | AC173: 1427.1 | AD173: 1427.1 | AE173: 2011 | AF173: 1641.997066 | AG173: Freshwater Systems (www.freshwatersystems.com). Sterilight Platinum NSF Certified UV Systems, Model SPV-740, 11.2 gpm. Prices online; accessed 2/4/11. | AH173: 1 | AI173: 1348 | AJ173: 1348 | AK173: 1348 | AL173: 2011 | AM173: 1550.985947 | AN173: Excel Water Technologies Inc.(www.excelwater.com). Sterilight Platinum NSF Certified UV Systems, Model SPV-12, 12 gpm. Prices online; ccessed 2/4/11. | AO173: 1 | AP173: 1279.95 | AQ173: 1279.95 | AR173: 1279.95 | AS173: 2011 | AT173: 1472.688771 | AU173: RO Water Systems, Inc. (www.rosystems.com). Trojan UVMax Pro10 NSF certifiec UV system, 10 gpm. Prices online; accessed on 2/4/11. | AV173: 1 | BA173: Vendor 1 | BB173: Vendor 2 | BC173: Vendor 3 | BD173: Vendor 4 | BE173: Vendor 5 | BF173: Vendor 6
B174: 51 | C174: 100 | D174: 1599.318106 | E174: 10 | F174: 10 | G174: 1529 | H174: 1529 | I174: 1529 | J174: 2011 | K174: 1759.241479 | L174: Pump Store USA (www.pumpstoreusa.com). Hallett 13 NSF certified UV System, 13.3 gpm. Prices online; accessed on 2/4/11. | M174: =$M$67 -> 1 | N174: 1518.89 | O174: 1518.89 | P174: 1518.89 | Q174: 2011 | R174: 1747.609084 | S174: Fresh Water Systems (www.freshwatersystems.com). Trojan UVMax Pro10 NSF certifiec UV system, 10 gpm. Prices online; accessed on 2/4/11. | T174: =$M$67 -> 1 | U174: 1237.1 | V174: 1237.1 | W174: 1237.1 | X174: 2011 | Y174: 1423.386287 | Z174: RO Water Systems, Inc. (www.rosystems.com). Sterilight Platinum NSF Certified UV Systems, Model SPV-740, 11.2 gpm. Prices online; accessed on 2/4/11. | AA174: 1 | AB174: 1427.1 | AC174: 1427.1 | AD174: 1427.1 | AE174: 2011 | AF174: 1641.997066 | AG174: Freshwater Systems (www.freshwatersystems.com). Sterilight Platinum NSF Certified UV Systems, Model SPV-740, 11.2 gpm. Prices online; accessed 2/4/11. | AH174: 1 | AI174: 1348 | AJ174: 1348 | AK174: 1348 | AL174: 2011 | AM174: 1550.985947 | AN174: Excel Water Technologies Inc.(www.excelwater.com). Sterilight Platinum NSF Certified UV Systems, Model SPV-12, 12 gpm. Prices online; ccessed 2/4/11. | AO174: 1 | AP174: 1279.95 | AQ174: 1279.95 | AR174: 1279.95 | AS174: 2011 | AT174: 1472.688771 | AU174: RO Water Systems, Inc. (www.rosystems.com). Trojan UVMax Pro10 NSF certifiec UV system, 10 gpm. Prices online; accessed on 2/4/11. | AV174: 1 | BA174: Vendor 1 | BB174: Vendor 2 | BC174: Vendor 3 | BD174: Vendor 4 | BE174: Vendor 5 | BF174: Vendor 6
B175: 101 | C175: 500 | D175: 1599.318106 | E175: 10 | F175: 10 | G175: 1529 | H175: 1529 | I175: 1529 | J175: 2011 | K175: 1759.241479 | L175: Pump Store USA (www.pumpstoreusa.com). Hallett 13 NSF certified UV System, 13.3 gpm. Prices online; accessed on 2/4/11. | M175: =$M$67 -> 1 | N175: 1518.89 | O175: 1518.89 | P175: 1518.89 | Q175: 2011 | R175: 1747.609084 | S175: Fresh Water Systems (www.freshwatersystems.com). Trojan UVMax Pro10 NSF certifiec UV system, 10 gpm. Prices online; accessed on 2/4/11. | T175: =$M$67 -> 1 | U175: 1237.1 | V175: 1237.1 | W175: 1237.1 | X175: 2011 | Y175: 1423.386287 | Z175: RO Water Systems, Inc. (www.rosystems.com). Sterilight Platinum NSF Certified UV Systems, Model SPV-740, 11.2 gpm. Prices online; accessed on 2/4/11. | AA175: 1 | AB175: 1427.1 | AC175: 1427.1 | AD175: 1427.1 | AE175: 2011 | AF175: 1641.997066 | AG175: Freshwater Systems (www.freshwatersystems.com). Sterilight Platinum NSF Certified UV Systems, Model SPV-740, 11.2 gpm. Prices online; accessed 2/4/11. | AH175: 1 | AI175: 1348 | AJ175: 1348 | AK175: 1348 | AL175: 2011 | AM175: 1550.985947 | AN175: Excel Water Technologies Inc.(www.excelwater.com). Sterilight Platinum NSF Certified UV Systems, Model SPV-12, 12 gpm. Prices online; ccessed 2/4/11. | AO175: 1 | AP175: 1279.95 | AQ175: 1279.95 | AR175: 1279.95 | AS175: 2011 | AT175: 1472.688771 | AU175: RO Water Systems, Inc. (www.rosystems.com). Trojan UVMax Pro10 NSF certifiec UV system, 10 gpm. Prices online; accessed on 2/4/11. | AV175: 1 | BA175: Vendor 1 | BB175: Vendor 2 | BC175: Vendor 3 | BD175: Vendor 4 | BE175: Vendor 5 | BF175: Vendor 6
B176: 501 | C176: 1000 | D176: 1599.318106 | E176: 10 | F176: 10 | G176: 1529 | H176: 1529 | I176: 1529 | J176: 2011 | K176: 1759.241479 | L176: Pump Store USA (www.pumpstoreusa.com). Hallett 13 NSF certified UV System, 13.3 gpm. Prices online; accessed on 2/4/11. | M176: =$M$67 -> 1 | N176: 1518.89 | O176: 1518.89 | P176: 1518.89 | Q176: 2011 | R176: 1747.609084 | S176: Fresh Water Systems (www.freshwatersystems.com). Trojan UVMax Pro10 NSF certifiec UV system, 10 gpm. Prices online; accessed on 2/4/11. | T176: =$M$67 -> 1 | U176: 1237.1 | V176: 1237.1 | W176: 1237.1 | X176: 2011 | Y176: 1423.386287 | Z176: RO Water Systems, Inc. (www.rosystems.com). Sterilight Platinum NSF Certified UV Systems, Model SPV-740, 11.2 gpm. Prices online; accessed on 2/4/11. | AA176: 1 | AB176: 1427.1 | AC176: 1427.1 | AD176: 1427.1 | AE176: 2011 | AF176: 1641.997066 | AG176: Freshwater Systems (www.freshwatersystems.com). Sterilight Platinum NSF Certified UV Systems, Model SPV-740, 11.2 gpm. Prices online; accessed 2/4/11. | AH176: 1 | AI176: 1348 | AJ176: 1348 | AK176: 1348 | AL176: 2011 | AM176: 1550.985947 | AN176: Excel Water Technologies Inc.(www.excelwater.com). Sterilight Platinum NSF Certified UV Systems, Model SPV-12, 12 gpm. Prices online; ccessed 2/4/11. | AO176: 1 | AP176: 1279.95 | AQ176: 1279.95 | AR176: 1279.95 | AS176: 2011 | AT176: 1472.688771 | AU176: RO Water Systems, Inc. (www.rosystems.com). Trojan UVMax Pro10 NSF certifiec UV system, 10 gpm. Prices online; accessed on 2/4/11. | AV176: 1 | BA176: Vendor 1 | BB176: Vendor 2 | BC176: Vendor 3 | BD176: Vendor 4 | BE176: Vendor 5 | BF176: Vendor 6
B177: POE Ultraviolet Replacement Parts | E177: Useful Life (large) | F177: Useful Life (small) | AE177: 2011
A178: poe_uv_parts | B178: UV Lamp | D178: =IF(AVERAGE(K178,R178,Y178,AF178,AM178,AT178)=0,"contact vendor",AVERAGE(K178,R178,Y178,AF178,AM178,AT178)) -> 127.9707229 | E178: N/A | F178: N/A | G178: 100 | H178: =G178*M178 -> 100 | I178: =H178 -> 100 | J178: 2011 | K178: =I178*VLOOKUP(J178,cci_table,3,FALSE) -> 115.0583047 | L178: Ultraviolet Supply Co. (www.ultravioletsupply.com). Hallett 13 UV system replacement lamps. Prices online; accessed on 2/4/11. | M178: 1 | N178: 152.09 | O178: =N178*T178 -> 152.09 | P178: =O178 -> 152.09 | Q178: 2011 | R178: =P178*VLOOKUP(Q178,cci_table,3,FALSE) -> 174.9921756 | S178: Fresh Water Systems (www.freshwatersystems.com). Replacement UV Lamp, Model# 602854, for Trojan UVMax Pro10 NSF certifiec UV system, 10 gpm. Prices online; accessed on 2/4/11. | T178: 1 | U178: 96.99 | V178: =U178*AA178 -> 96.99 | W178: =V178 -> 96.99 | X178: 2011 | Y178: =W178*VLOOKUP(X178,cci_table,3,FALSE) -> 111.5950497 | Z178: RO Water Systems, Inc. (www.rosystems.com). Replacement UV Lamp, Model S740RL-HO, for Sterilight Platinum NSF Certified UV Systems, Model SPV-740, 11.2 gpm. Prices online; accessed on 2/4/11. | AA178: 1 | AB178: 95.81 | AC178: =AB178*AH178 -> 95.81 | AD178: =AC178 -> 95.81 | AE178: 2011 | AF178: =AD178*VLOOKUP(AE178,cci_table,3,FALSE) -> 110.2373617 | AG178: Freshwater Systems (www.freshwatersystems.com). Replacement UV Lamp, Model S740RL-HO, for Sterilight Platinum NSF Certified UV Systems, Model SPV-740, 11.2 gpm. Prices online; accessed 2/4/11. | AH178: 1 | BA178: Vendor 1 | BB178: Vendor 2 | BC178: Vendor 3 | BD178: Vendor 4
B179: UV Quartz Sleeve | D179: =IF(AVERAGE(K179,R179,Y179,AF179,AM179,AT179)=0,"contact vendor",AVERAGE(K179,R179,Y179,AF179,AM179,AT179)) -> 62.09409059 | E179: N/A | F179: N/A | M179: 1 | N179: 42.88 | O179: =N179*T179 -> 42.88 | P179: =O179 -> 42.88 | Q179: 2011 | R179: =P179*VLOOKUP(Q179,cci_table,3,FALSE) -> 49.33700105 | S179: Fresh Water Systems (www.freshwatersystems.com). Replacement Quartz Sleeve, Model# 602974, for Trojan UVMax Pro10 NSF certifiec UV system, 10 gpm. Prices online; accessed on 2/4/11. | T179: 1 | U179: 52.05 | V179: =U179*AA179 -> 52.05 | W179: =V179 -> 52.05 | X179: 2011 | Y179: =W179*VLOOKUP(X179,cci_table,3,FALSE) -> 59.88784759 | Z179: RO Water Systems, Inc. (www.rosystems.com). Replacement Quartz Sleeve, Model QS-740, for Sterilight Platinum NSF Certified UV Systems, Model SPV-740, 11.2 gpm. Prices online; accessed on 2/4/11. | AA179: 1 | AB179: 54.94 | AC179: =AB179*AH179 -> 54.94 | AD179: =AC179 -> 54.94 | AE179: 2011 | AF179: =AD179*VLOOKUP(AE179,cci_table,3,FALSE) -> 63.2130326 | AG179: Freshwater Systems (www.freshwatersystems.com). Replacement Quartz Sleeve, Model QS-740, for Sterilight Platinum NSF Certified UV Systems, Model SPV-740, 11.2 gpm. Prices online; accessed 2/4/11. | AH179: 1 | AI179: 66 | AJ179: =AI179*AO179 -> 66 | AK179: =AJ179 -> 66 | AL179: 2011 | AM179: =AK179*VLOOKUP(AL179,cci_table,3,FALSE) -> 75.9384811 | AN179: Excel Water Technologies Inc.(www.excelwater.com). Replacement Qaurtz Sleeve, Model QS-600, for Sterilight Platinum NSF Certified UV Systems, Model SPV-12, 12 gpm. Prices online; ccessed 2/4/11. | AO179: 1 | BB179: Vendor 2 | BC179: Vendor 3 | BD179: Vendor 4 | BE179: Vendor 5
A181: Labor Costs
B182: Average Hourly cost for Installation | G182: Original Vendor Quote | H182: Quote+Inst | I182: Quote+Inst+Trans | J182: Year of Original Quote | K182: Adjusted Cost, including installation and transportation | L182: Source | M182: Installation Multiplier | N182: Unit cost | O182: Unit cost + Inst | P182: Unit cost+Inst+Trans | Q182: Year | R182: Adjusted Cost, including installation and transportation | S182: Source | T182: Installation Multiplier | BC182: =IF(Z182="Source",Z182,IF(ISBLANK(Z182),"","Vendor 3")) ->  | BD182: =IF(AG182="Source",AG182,IF(ISBLANK(AG182),"","Vendor 4")) ->  | BE182: =IF(AN182="Source",AN182,IF(ISBLANK(AN182),"","Vendor 5")) ->  | BF182: =IF(AU182="Source",AU182,IF(ISBLANK(AU182),"","Vendor 6")) -> 
A183: install_rate | D183: =IF(AVERAGE(K183,R183,Y183,AF183,AM183,AT183)=0,"contact vendor",AVERAGE(K183,R183,Y183,AF183,AM183,AT183)) -> 42.746 | E183: N/A | F183: N/A | G183: =29.59*1.45 -> 42.9055 | H183: =G183 -> 42.9055 | I183: =G183 -> 42.9055 | J183: 2020 | K183: =I183*VLOOKUP(J183,eci_table,3,FALSE) -> 42.9055 | L183: Comprises mean hourly wage for electricians (SOC 47-2111) http://www.bls.gov/oes/current/oes472111.htm and benefits multiplier of 1.45 (May 2020 BLS data). | M183: 1 | N183: =29.37*1.45 -> 42.5865 | O183: =N183 -> 42.5865 | P183: =N183 -> 42.5865 | Q183: 2020 | R183: =P183*VLOOKUP(Q183,eci_table,3,FALSE) -> 42.5865 | S183: Comprises mean hourly wage for plumbers (SOC 47-2152) http://www.bls.gov/oes/current/oes472152.htm and benefits multiplier of 1.45 (May 2020 BLS data). | T183: 1 | BC183: =IF(Z183="Source",Z183,IF(ISBLANK(Z183),"","Vendor 3")) ->  | BD183: =IF(AG183="Source",AG183,IF(ISBLANK(AG183),"","Vendor 4")) ->  | BE183: =IF(AN183="Source",AN183,IF(ISBLANK(AN183),"","Vendor 5")) ->  | BF183: =IF(AU183="Source",AU183,IF(ISBLANK(AU183),"","Vendor 6")) -> 
A184: tech_rate | D184: =IF(AVERAGE(K184,R184,Y184,AF184,AM184,AT184)=0,"contact vendor",AVERAGE(K184,R184,Y184,AF184,AM184,AT184)) -> 33.2651621 | E184: N/A | F184: N/A | I184: 32.51 | J184: 2019 | K184: =I184*VLOOKUP(J184,eci_table,3,FALSE) -> 33.2651621 | L184: The base wage for systems serving 25-100, Source: EPA, 2020. Labor Costs for National Drinking Water Rules. Prepared for EPA OGWDW by Abt. October. | M184: 1 | BC184: =IF(Z184="Source",Z184,IF(ISBLANK(Z184),"","Vendor 3")) ->  | BD184: =IF(AG184="Source",AG184,IF(ISBLANK(AG184),"","Vendor 4")) ->  | BE184: =IF(AN184="Source",AN184,IF(ISBLANK(AN184),"","Vendor 5")) ->  | BF184: =IF(AU184="Source",AU184,IF(ISBLANK(AU184),"","Vendor 6")) -> 
A185: clerical_rate | D185: =IF(AVERAGE(K185,R185,Y185,AF185,AM185,AT185)=0,"contact vendor",AVERAGE(K185,R185,Y185,AF185,AM185,AT185)) -> 32.03728777 | E185: N/A | F185: N/A | I185: 31.31 | J185: 2019 | K185: =I185*VLOOKUP(J185,eci_table,3,FALSE) -> 32.03728777 | L185: The base wage for systems serving 25-100, Source: EPA, 2020. Labor Costs for National Drinking Water Rules. Prepared for EPA OGWDW by Abt. October. | M185: 1 | BC185: =IF(Z185="Source",Z185,IF(ISBLANK(Z185),"","Vendor 3")) ->  | BD185: =IF(AG185="Source",AG185,IF(ISBLANK(AG185),"","Vendor 4")) ->  | BE185: =IF(AN185="Source",AN185,IF(ISBLANK(AN185),"","Vendor 5")) ->  | BF185: =IF(AU185="Source",AU185,IF(ISBLANK(AU185),"","Vendor 6")) -> 
A187: Monitoring Costs
A188: Mention of a vendor or product does not constitute an endorsement.
B189: Laboratory Analysis Costs | G189: Original Vendor Quote | H189: Quote+Inst | I189: Quote+Inst+Trans | J189: Year of Original Quote | K189: Adjusted Cost, including installation and transportation | L189: Source | M189: Installation Multiplier | N189: Unit cost | O189: Unit cost + Inst | P189: Unit cost+Inst+Trans | Q189: Year | R189: Adjusted Cost, including installation and transportation | S189: Source | T189: Installation Multiplier | U189: Unit cost | V189: Unit cost + Inst | W189: Unit cost+Inst+Trans | X189: Year | Y189: Adjusted Cost, including installation and transportation | Z189: Source | AA189: Installation Multiplier | AB189: Unit cost | AC189: Unit cost + Inst | AD189: Unit cost+Inst+Trans | AE189: Year | AF189: Adjusted Cost, including installation and transportation | AG189: Source | AH189: Installation Multiplier | AI189: Unit cost | AJ189: Unit cost + Inst | AK189: Unit cost+Inst+Trans | AL189: Year | AM189: Adjusted Cost, including installation and transportation | AN189: Source | AO189: Installation Multiplier | AP189: Unit cost | AQ189: Unit cost + Inst | AR189: Unit cost+Inst+Trans | AS189: Year | AT189: Adjusted Cost, including installation and transportation | AU189: Source | AV189: Installation multiplier | BA189: Source | BB189: Source | BC189: Source | BD189: Source | BE189: Source | BF189: Source
A190: lab_analysis_cost | B190: Radium | D190: =IF(AVERAGE(K190,R190,Y190,AF190,AM190,AT190)=0,"contact vendor",AVERAGE(K190,R190,Y190,AF190,AM190,AT190)) -> 373.8739819 | E190: N/A | F190: N/A | M190: 1 | U190: 315 | V190: =U190*AA190 -> 315 | W190: =V190 -> 315 | X190: 2010 | Y190: =W190*VLOOKUP(X190,cci_table,3,FALSE) -> 373.8739819 | Z190: UMPQUA Research Company, Drinking Water and Environmental Analytical Services, Fee Schedule 2008. Downloaded from http://www.chemlab.cc/price.pdf on 10/5/2010. | AA190: 1 | BC190: Vendor 3
B191: Arsenic | D191: 29.67253825 | E191: N/A | F191: N/A | G191: 21 | H191: =G191*M191 -> 21 | I191: =H191 -> 21 | J191: 2010 | K191: =I191*VLOOKUP(J191,cci_table,3,FALSE) -> 24.92493213 | L191: Sierra Environmental Monitoring, Inc., Joe Nava (jnava@sem-analytical.com). Price List mailed to D. Fortney on 10/8/2010. | M191: 1 | N191: 22 | O191: =N191*T191 -> 22 | P191: =O191 -> 22 | Q191: 2010 | R191: =P191*VLOOKUP(Q191,cci_table,3,FALSE) -> 26.11183366 | S191: Water Analysis, Training, Education & Research Services (WATERS), Price list emailed from Gretchen Grover to Danielle Fortney 10/15/2010. | T191: 1 | U191: 32 | V191: 32 | W191: 32 | X191: 2010 | Y191: 37.98084896 | Z191: UMPQUA Research Company, Drinking Water and Environmental Analytical Services, Fee Schedule 2008. Downloaded from http://www.chemlab.cc/price.pdf on 10/5/2010. | AA191: 1 | BA191: Vendor 1 | BB191: Vendor 2 | BC191: Vendor 3
B192: VOCs | D192: 267.0528442 | E192: N/A | F192: N/A | M192: 1 | T192: 1 | U192: 225 | V192: 225 | W192: 225 | X192: 2010 | Y192: 267.0528442 | Z192: UMPQUA Research Company, Drinking Water and Environmental Analytical Services, Fee Schedule 2008. Downloaded from http://www.chemlab.cc/price.pdf on 10/5/2010. | AA192: 1 | BC192: Vendor 3
B193: SOCs | D193: 201.7732601 | E193: N/A | F193: N/A | M193: 1 | T193: 1 | U193: 170 | V193: 170 | W193: 170 | X193: 2010 | Y193: 201.7732601 | Z193: UMPQUA Research Company, Drinking Water and Environmental Analytical Services, Fee Schedule 2008. Downloaded from http://www.chemlab.cc/price.pdf on 10/5/2010. | AA193: 1 | BC193: Vendor 3
B194: Nitrate | D194: 32.44197515 | E194: N/A | F194: N/A | G194: 17 | H194: =G194*M194 -> 17 | I194: =H194 -> 17 | J194: 2010 | K194: =I194*VLOOKUP(J194,cci_table,3,FALSE) -> 20.17732601 | L194: Sierra Environmental Monitoring, Inc., Joe Nava (jnava@sem-analytical.com). Price List mailed to D. Fortney on 10/8/2010. | M194: 1 | N194: 20 | O194: =N194*T194 -> 20 | P194: =O194 -> 20 | Q194: 2010 | R194: =P194*VLOOKUP(Q194,cci_table,3,FALSE) -> 23.7380306 | S194: Water Analysis, Training, Education & Research Services (WATERS), Price list emailed from Gretchen Grover to Danielle Fortney 10/15/2010. | T194: 1 | U194: 45 | V194: 45 | W194: 45 | X194: 2010 | Y194: 53.41056884 | Z194: UMPQUA Research Company, Drinking Water and Environmental Analytical Services, Fee Schedule 2008. Downloaded from http://www.chemlab.cc/price.pdf on 10/5/2010. | AA194: 1 | BA194: Vendor 1 | BB194: Vendor 2 | BC194: Vendor 3
B195: Copper | D195: 27.29873519 | E195: N/A | F195: N/A | G195: 21 | H195: 21 | I195: 21 | J195: 2010 | K195: 24.92493213 | L195: Sierra Environmental Monitoring, Inc., Joe Nava (jnava@sem-analytical.com). Price List mailed to D. Fortney on 10/8/2010. | M195: 1 | N195: 22 | O195: 22 | P195: 22 | Q195: 2010 | R195: 26.11183366 | S195: Water Analysis, Training, Education & Research Services (WATERS), Price list emailed from Gretchen Grover to Danielle Fortney 10/15/2010. | T195: 1 | U195: 26 | V195: 26 | W195: 26 | X195: 2010 | Y195: 30.85943978 | Z195: UMPQUA Research Company, Drinking Water and Environmental Analytical Services, Fee Schedule 2008. Downloaded from http://www.chemlab.cc/price.pdf on 10/5/2010. | AA195: 1 | BA195: Vendor 1 | BB195: Vendor 2 | BC195: Vendor 3
B196: Barium | D196: 32.04634131 | E196: N/A | F196: N/A | G196: 21 | H196: 21 | I196: 21 | J196: 2010 | K196: 24.92493213 | L196: Sierra Environmental Monitoring, Inc., Joe Nava (jnava@sem-analytical.com). Price List mailed to D. Fortney on 10/8/2010. | M196: 1 | N196: 22 | O196: 22 | P196: 22 | Q196: 2010 | R196: 26.11183366 | S196: Water Analysis, Training, Education & Research Services (WATERS), Price list emailed from Gretchen Grover to Danielle Fortney 10/15/2010. | T196: 1 | U196: 38 | V196: 38 | W196: 38 | X196: 2010 | Y196: 45.10225814 | Z196: UMPQUA Research Company, Drinking Water and Environmental Analytical Services, Fee Schedule 2008. Downloaded from http://www.chemlab.cc/price.pdf on 10/5/2010. | AA196: 1 | BA196: Vendor 1 | BB196: Vendor 2 | BC196: Vendor 3
B197: Cadmium | D197: 29.67253825 | E197: N/A | F197: N/A | G197: 21 | H197: 21 | I197: 21 | J197: 2010 | K197: 24.92493213 | L197: Sierra Environmental Monitoring, Inc., Joe Nava (jnava@sem-analytical.com). Price List mailed to D. Fortney on 10/8/2010. | M197: 1 | N197: 22 | O197: 22 | P197: 22 | Q197: 2010 | R197: 26.11183366 | S197: Water Analysis, Training, Education & Research Services (WATERS), Price list emailed from Gretchen Grover to Danielle Fortney 10/15/2010. | T197: 1 | U197: 32 | V197: 32 | W197: 32 | X197: 2010 | Y197: 37.98084896 | Z197: UMPQUA Research Company, Drinking Water and Environmental Analytical Services, Fee Schedule 2008. Downloaded from http://www.chemlab.cc/price.pdf on 10/5/2010. | AA197: 1 | BA197: Vendor 1 | BB197: Vendor 2 | BC197: Vendor 3
B198: Chromium | D198: 29.67253825 | E198: N/A | F198: N/A | G198: 21 | H198: 21 | I198: 21 | J198: 2010 | K198: 24.92493213 | L198: Sierra Environmental Monitoring, Inc., Joe Nava (jnava@sem-analytical.com). Price List mailed to D. Fortney on 10/8/2010. | M198: 1 | N198: 22 | O198: 22 | P198: 22 | Q198: 2010 | R198: 26.11183366 | S198: Water Analysis, Training, Education & Research Services (WATERS), Price list emailed from Gretchen Grover to Danielle Fortney 10/15/2010. | T198: 1 | U198: 32 | V198: 32 | W198: 32 | X198: 2010 | Y198: 37.98084896 | Z198: UMPQUA Research Company, Drinking Water and Environmental Analytical Services, Fee Schedule 2008. Downloaded from http://www.chemlab.cc/price.pdf on 10/5/2010. | AA198: 1 | BA198: Vendor 1 | BB198: Vendor 2 | BC198: Vendor 3
B199: Fluoride | D199: 28.09000287 | E199: N/A | F199: N/A | G199: 17 | H199: 17 | I199: 17 | J199: 2010 | K199: 20.17732601 | L199: Sierra Environmental Monitoring, Inc., Joe Nava (jnava@sem-analytical.com). Price List mailed to D. Fortney on 10/8/2010. | M199: 1 | N199: 22 | O199: 22 | P199: 22 | Q199: 2010 | R199: 26.11183366 | S199: Water Analysis, Training, Education & Research Services (WATERS), Price list emailed from Gretchen Grover to Danielle Fortney 10/15/2010. | T199: 1 | U199: 32 | V199: 32 | W199: 32 | X199: 2010 | Y199: 37.98084896 | Z199: UMPQUA Research Company, Drinking Water and Environmental Analytical Services, Fee Schedule 2008. Downloaded from http://www.chemlab.cc/price.pdf on 10/5/2010. | AA199: 1 | BA199: Vendor 1 | BB199: Vendor 2 | BC199: Vendor 3
B200: Lead | D200: 29.67253825 | E200: N/A | F200: N/A | G200: 21 | H200: 21 | I200: 21 | J200: 2010 | K200: 24.92493213 | L200: Sierra Environmental Monitoring, Inc., Joe Nava (jnava@sem-analytical.com). Price List mailed to D. Fortney on 10/8/2010. | M200: 1 | N200: 22 | O200: 22 | P200: 22 | Q200: 2010 | R200: 26.11183366 | S200: Water Analysis, Training, Education & Research Services (WATERS), Price list emailed from Gretchen Grover to Danielle Fortney 10/15/2010. | T200: 1 | U200: 32 | V200: 32 | W200: 32 | X200: 2010 | Y200: 37.98084896 | Z200: UMPQUA Research Company, Drinking Water and Environmental Analytical Services, Fee Schedule 2008. Downloaded from http://www.chemlab.cc/price.pdf on 10/5/2010. | AA200: 1 | BA200: Vendor 1 | BB200: Vendor 2 | BC200: Vendor 3
B201: Mercury | D201: 51.82803347 | E201: N/A | F201: N/A | G201: 43 | H201: 43 | I201: 43 | J201: 2010 | K201: 51.03676578 | L201: Sierra Environmental Monitoring, Inc., Joe Nava (jnava@sem-analytical.com). Price List mailed to D. Fortney on 10/8/2010. | M201: 1 | N201: 35 | O201: 35 | P201: 35 | Q201: 2010 | R201: 41.54155355 | S201: Water Analysis, Training, Education & Research Services (WATERS), Price list emailed from Gretchen Grover to Danielle Fortney 10/15/2010. | T201: 1 | U201: 53 | V201: 53 | W201: 53 | X201: 2010 | Y201: 62.90578108 | Z201: UMPQUA Research Company, Drinking Water and Environmental Analytical Services, Fee Schedule 2008. Downloaded from http://www.chemlab.cc/price.pdf on 10/5/2010. | AA201: 1 | BA201: =IF(L201="Source",L201,IF(ISBLANK(L201),"","Vendor 1")) -> Vendor 1 | BB201: =IF(S201="Source",S201,IF(ISBLANK(S201),"","Vendor 2")) -> Vendor 2 | BC201: =IF(Z201="Source",Z201,IF(ISBLANK(Z201),"","Vendor 3")) -> Vendor 3 | BD201: =IF(AG201="Source",AG201,IF(ISBLANK(AG201),"","Vendor 4")) ->  | BE201: =IF(AN201="Source",AN201,IF(ISBLANK(AN201),"","Vendor 5")) ->  | BF201: =IF(AU201="Source",AU201,IF(ISBLANK(AU201),"","Vendor 6")) -> 
B202: Perchlorate | D202: 115.3686538 | E202: N/A | F202: N/A | M202: 1 | N202: 124 | O202: 124 | P202: 124 | Q202: 2011 | R202: 142.6722978 | S202: Exova - EPA 314 (IC) for perchlorate to 4 ppb | T202: 1 | U202: 73 | V202: 73 | W202: 73 | X202: 2009 | Y202: 88.06500977 | Z202: Test America GSA price list for Method 314 | AA202: 1 | BB202: Vendor 2 | BC202: Vendor 3
B203: PFAS | D203: =IF(AVERAGE(K203,R203,Y203,AF203,AM203,AT203)=0,"contact vendor",AVERAGE(K203,R203,Y203,AF203,AM203,AT203)) -> 302 | E203: N/A | F203: N/A | G203: 302 | H203: =G203*M203 -> 302 | I203: =H203 -> 302 | J203: 2021 | K203: =I203*VLOOKUP(J203,cci_table,3,FALSE) -> 302 | L203: Cost for Method 537.1. Information Collection Request for the Final Unregulated Contaminant Monitoring Rule (UCMR5). Retrieved from https://www.regulations.gov/document/EPA-HQ-OW-2020-0530-0141 | M203: 1
B204: Total Coliform | D204: 28.88127056 | E204: N/A | F204: N/A | G204: 20 | H204: =G204*M204 -> 20 | I204: =H204 -> 20 | J204: 2010 | K204: =I204*VLOOKUP(J204,cci_table,3,FALSE) -> 23.7380306 | L204: Sierra Environmental Monitoring, Inc., Joe Nava (jnava@sem-analytical.com). Price List mailed to D. Fortney on 10/8/2010. | M204: 1 | N204: 15 | O204: 15 | P204: 15 | Q204: 2010 | R204: 17.80352295 | S204: Water Analysis, Training, Education & Research Services (WATERS), Price list emailed from Gretchen Grover to Danielle Fortney 10/15/2010. | T204: 1 | U204: 38 | V204: 38 | W204: 38 | X204: 2010 | Y204: 45.10225814 | Z204: UMPQUA Research Company, Drinking Water and Environmental Analytical Services, Fee Schedule 2008. Downloaded from http://www.chemlab.cc/price.pdf on 10/5/2010. | AA204: 1 | BA204: Vendor 1 | BB204: Vendor 2 | BC204: Vendor 3
B205: Uranium | D205: 101.4800808 | E205: N/A | F205: N/A | G205: 21 | H205: =G205*M205 -> 21 | I205: =H205 -> 21 | J205: 2010 | K205: =I205*VLOOKUP(J205,cci_table,3,FALSE) -> 24.92493213 | L205: Sierra Environmental Monitoring, Inc., Joe Nava (jnava@sem-analytical.com). Price List mailed to D. Fortney on 10/8/2010. | M205: 1 | T205: 1 | U205: 150 | V205: 150 | W205: 150 | X205: 2010 | Y205: 178.0352295 | Z205: UMPQUA Research Company, Drinking Water and Environmental Analytical Services, Fee Schedule 2008. Downloaded from http://www.chemlab.cc/price.pdf on 10/5/2010. | AA205: 1 | BA205: Vendor 1 | BC205: Vendor 3
A207: Other Annual Costs
A208: Mention of a vendor or product does not constitute an endorsement.
B209: Printed Educational Materials | E209: Useful Life (large) | F209: Useful Life (small) | G209: Original Vendor Quote | H209: Quote+Inst | I209: Quote+Inst+Trans | J209: Year of Original Quote | K209: Adjusted Cost, including installation and transportation | L209: Source | M209: Installation Multiplier | N209: Unit cost | O209: Unit cost + Inst | P209: Unit cost+Inst+Trans | Q209: Year | R209: Adjusted Cost, including installation and transportation | S209: Source | T209: Installation Multiplier | U209: Unit cost | V209: Unit cost + Inst | W209: Unit cost+Inst+Trans | X209: Year | Y209: Adjusted Cost, including installation and transportation | Z209: Source | AA209: Installation Multiplier | AB209: Unit cost | AC209: Unit cost + Inst | AD209: Unit cost+Inst+Trans | AE209: Year | AF209: Adjusted Cost, including installation and transportation | AG209: Source | AH209: Installation Multiplier | AI209: Unit cost | AJ209: Unit cost + Inst | AK209: Unit cost+Inst+Trans | AL209: Year | AM209: Adjusted Cost, including installation and transportation | AN209: Source | AO209: Installation Multiplier | AP209: Unit cost | AQ209: Unit cost + Inst | AR209: Unit cost+Inst+Trans | AS209: Year | AT209: Adjusted Cost, including installation and transportation | AU209: Source | AV209: Installation multiplier | BA209: =IF(L209="Source",L209,IF(ISBLANK(L209),"","Vendor 1")) -> Source | BB209: =IF(S209="Source",S209,IF(ISBLANK(S209),"","Vendor 2")) -> Source | BC209: =IF(Z209="Source",Z209,IF(ISBLANK(Z209),"","Vendor 3")) -> Source | BD209: =IF(AG209="Source",AG209,IF(ISBLANK(AG209),"","Vendor 4")) -> Source | BE209: =IF(AN209="Source",AN209,IF(ISBLANK(AN209),"","Vendor 5")) -> Source | BF209: =IF(AU209="Source",AU209,IF(ISBLANK(AU209),"","Vendor 6")) -> Source
A210: printed_material_cost | B210: Meeting flyers | C210: ($/flyer) | D210: =IF(AVERAGE(K210,R210,Y210,AF210,AM210,AT210)=0,"contact vendor",AVERAGE(K210,R210,Y210,AF210,AM210,AT210)) -> 1.756666667 | E210: N/A | F210: N/A | G210: 2.27 | H210: =G210*M210 -> 2.27 | I210: =H210 -> 2.27 | J210: 2021 | K210: =I210*VLOOKUP(J210,cci_table,3,FALSE) -> 2.27 | L210: FedEx Office Print Online (www.fedex.com/us/office/). Price for a one-sheet, single-sided, full color flyer printed on Professional quality laser (60 lb) paper. Price calculated online on 1/4/22. https://www.fedex.com/apps/printonline/#!preview/pid%3D1447174746733%7C%7CisUF%3D0 | M210: 1 | N210: 2.24 | O210: =N210*T210 -> 2.24 | P210: =O210 -> 2.24 | Q210: 2021 | R210: =P210*VLOOKUP(Q210,cci_table,3,FALSE) -> 2.24 | S210: UPS Printing Services (https://www.theupsstore.com/print) Price for a one-sheet, single-sided, full color flyer printed on Glossy text (100 lb) paper (default for Premium Flyers). Minimum 100 quantity. Price calculated online. https://store5146.upsstoreprintshop.com/DSF/SmartStore.aspx?6xni2of2cF31QISx6T4SkLWU3ls9b/U9IfQhAf/CYf/NZ1NPgzDM5K8N8mQkXYqt#!/CategoryHome/37 | T210: 1 | U210: 0.76 | V210: =U210*AA210 -> 0.76 | W210: =V210 -> 0.76 | X210: 2021 | Y210: =W210*VLOOKUP(X210,cci_table,3,FALSE) -> 0.76 | Z210: Staples (https://www.staples.com/services/printing) Price for a one-sheet, single-sided, full color flyer printed on gloss stock. Less options than other sources. Minimum 25 quantity. Price calculated online. https://www.staples.com/services/printing/AddFinishings/group/266961843/266961842 | AA210: 1 | AH210: 1 | BA210: Vendor 1 | BB210: Vendor 2 | BC210: Vendor 3
B211: Meeting ads | C211: ($/ad) | D211: =IF(AVERAGE(K211,R211,Y211,AF211,AM211,AT211)=0,"contact vendor",AVERAGE(K211,R211,Y211,AF211,AM211,AT211)) -> 68.875 | E211: N/A | F211: N/A | G211: 59 | H211: =G211*M211 -> 59 | I211: =H211 -> 59 | J211: 2021 | K211: =I211*VLOOKUP(J211,cci_table,3,FALSE) -> 59 | L211: Roanoke Times (ads.roanoke.com), local newspaper for Roanoke, VA. Cost for a 7-day announcement in the local newspaper based on a 25-line announcement ad | M211: 1 | N211: 37.5 | O211: =N211*T211 -> 37.5 | P211: =O211 -> 37.5 | Q211: 2021 | R211: =P211*VLOOKUP(Q211,cci_table,3,FALSE) -> 37.5 | S211: The Woodstock Independent (https://www.thewoodstockindependent.com/advertise/#) , local newspaper for Woodstock, IL. Cost for a 7-day, 1 print announcement in the local newspaper based on a 25-line announcement ad, at $1.50 per line. | T211: 1 | U211: 55 | V211: =U211*AA211 -> 55 | W211: =V211 -> 55 | X211: 2021 | Y211: =W211*VLOOKUP(X211,cci_table,3,FALSE) -> 55 | Z211: Floyd Press (ads.heraldcourier.com.com), local newspaper for Floyd, VA. Cost for a 7-day announcement in the local newspaper based on a 25-line announcement ad | AA211: 1 | AB211: 124 | AC211: =AB211*AH211 -> 124 | AD211: =AC211 -> 124 | AE211: 2021 | AF211: =AD211*VLOOKUP(AE211,cci_table,3,FALSE) -> 124 | AG211: Portland Press Herald (http://www.masthead.me/) local newspaper for Portland, ME. Cost for single press public notice is $4.96/line, using 25 lines | AH211: 1 | BA211: Vendor 1 | BB211: Vendor 2 | BC211: Vendor 3 | BD211: Vendor 4
B212: Nitrate awareness flyers | C212: ($/flyer) | D212: =IF(AVERAGE(K212,R212,Y212,AF212,AM212,AT212)=0,"contact vendor",AVERAGE(K212,R212,Y212,AF212,AM212,AT212)) -> 1.756666667 | E212: N/A | F212: N/A | G212: 2.27 | H212: =G212*M212 -> 2.27 | I212: =H212 -> 2.27 | J212: 2021 | K212: =I212*VLOOKUP(J212,cci_table,3,FALSE) -> 2.27 | L212: FedEx Office Print Online (www.fedex.com/us/office/). Price for a one-sheet, single-sided, full color flyer printed on Professional quality laser (60 lb) paper. Price calculated online. https://www.fedex.com/apps/printonline/#!preview/pid%3D1447174746733%7C%7CisUF%3D0 | M212: 1 | N212: 2.24 | O212: =N212*T212 -> 2.24 | P212: =O212 -> 2.24 | Q212: 2021 | R212: =P212*VLOOKUP(Q212,cci_table,3,FALSE) -> 2.24 | S212: UPS Printing Services (https://www.theupsstore.com/print) Price for a one-sheet, single-sided, full color flyer printed on Glossy text (100 lb) paper (default for Premium Flyers). Minimum 100 quantity. Price calculated online. https://store5146.upsstoreprintshop.com/DSF/SmartStore.aspx?6xni2of2cF31QISx6T4SkLWU3ls9b/U9IfQhAf/CYf/NZ1NPgzDM5K8N8mQkXYqt#!/CategoryHome/37 | T212: 1 | U212: 0.76 | V212: =U212*AA212 -> 0.76 | W212: =V212 -> 0.76 | X212: 2021 | Y212: =W212*VLOOKUP(X212,cci_table,3,FALSE) -> 0.76 | Z212: Staples (https://www.staples.com/services/printing) Price for a one-sheet, single-sided, full color flyer printed on gloss stock. Less options than other sources. Minimum 25 quantity. Price calculated online https://www.staples.com/services/printing/AddFinishings/group/266961843/266961842 | AA212: 1 | AH212: 1 | BA212: Vendor 1 | BB212: Vendor 2 | BC212: Vendor 3
B213: Meeting handouts | C213: ($/page) | D213: =IF(AVERAGE(K213,R213,Y213,AF213,AM213,AT213)=0,"contact vendor",AVERAGE(K213,R213,Y213,AF213,AM213,AT213)) -> 0.1733333333 | E213: N/A | F213: N/A | G213: 0.15 | H213: =G213*M213 -> 0.15 | I213: =H213 -> 0.15 | J213: 2021 | K213: =I213*VLOOKUP(J213,cci_table,3,FALSE) -> 0.15 | L213: FedEx Office Print Online (www.fedex.com/us/office/). Price for a one-sheet, single-sided, black & white copy printed on laser (32 lb) paper. Price calculated online. | M213: 1 | N213: 0.2 | O213: =N213*T213 -> 0.2 | P213: =O213 -> 0.2 | Q213: 2021 | R213: =P213*VLOOKUP(Q213,cci_table,3,FALSE) -> 0.2 | S213: UPS Printing Services (https://www.theupsstore.com/print) Price for a one-sheet, single-sided, black and white copy printed on standard laser (20 lb) paper. Price calculated online. | T213: 1 | U213: 0.17 | V213: =U213*AA213 -> 0.17 | W213: =V213 -> 0.17 | X213: 2021 | Y213: =W213*VLOOKUP(X213,cci_table,3,FALSE) -> 0.17 | Z213: Staples (https://www.staples.com/services/printing) Price for a one-sheet, single-sided, black and white copy printed on basic (24 lb) paper. Price calculated online | AA213: 1 | AH213: 1 | BA213: Vendor 1 | BB213: Vendor 2 | BC213: Vendor 3
B214: Billing mailers | C214: ($/page) | D214: =IF(AVERAGE(K214,R214,Y214,AF214,AM214,AT214)=0,"contact vendor",AVERAGE(K214,R214,Y214,AF214,AM214,AT214)) -> 0.1733333333 | E214: N/A | F214: N/A | G214: 0.15 | H214: =G214*M214 -> 0.15 | I214: =H214 -> 0.15 | J214: 2021 | K214: =I214*VLOOKUP(J214,cci_table,3,FALSE) -> 0.15 | L214: FedEx Office Print Online (www.fedex.com/us/office/). Price for a one-sheet, single-sided, black & white copy printed on laser (32 lb) paper. Price calculated online. | M214: 1 | N214: 0.2 | O214: =N214*T214 -> 0.2 | P214: =O214 -> 0.2 | Q214: 2021 | R214: =P214*VLOOKUP(Q214,cci_table,3,FALSE) -> 0.2 | S214: UPS Printing Services (https://www.theupsstore.com/print) Price for a one-sheet, single-sided, black and white copy printed on standard laser (20 lb) paper. Price calculated online. | T214: 1 | U214: 0.17 | V214: =U214*AA214 -> 0.17 | W214: =V214 -> 0.17 | X214: 2021 | Y214: =W214*VLOOKUP(X214,cci_table,3,FALSE) -> 0.17 | Z214: Staples (https://www.staples.com/services/printing) Price for a one-sheet, single-sided, black and white copy printed on basic (24 lb) paper. Price calculated online | AA214: 1 | AH214: 1 | BA214: Vendor 1 | BB214: Vendor 2 | BC214: Vendor 3
A216: Escalation Factors
... 319 more rows

Sheet Capital Assumptions
A1: Critical Design Assumptions
A2: Instructions: Do not revise information in gray cells.
A3: Average Household Size | B3: hh_size | C3: people/household | D3: 2.53
A4: Average Per Capita Consumption (gal/day) | B4: daily_use | C4: gallons/person/day | D4: 100
C5: Units | D5: POU RO Rental | E5: POU Adsorptive Media NSF53 | F5: POU Anion Exchange | G5: POU Cation Exchange | H5: POU GAC | I5: POU Reverse Osmosis | J5: POE Adsorptive Media | K5: POE Anion Exchange | L5: POE Cation Exchange | M5: POE Aeration | N5: POE GAC with Auto-Backwash | O5: POE GAC w/out Auto-Backwash | P5: User-Defined System
A6: Equipment Installation
A7: POU/POE Installation | B7: install_hours | C7: hrs/household | D7: 0 | E7: 2 | F7: 2 | G7: 2 | H7: 2 | I7: 2 | J7: 2 | K7: 2 | L7: 2 | M7: 2 | N7: 2 | O7: 2 | P7: =IF(user_install="",VLOOKUP(A7,install_hours,user_treat_select+3,FALSE),user_install) -> 2
A8: Scheduling Time | B8: install_hours | C8: hrs/household | D8: 0 | E8: 0.5 | F8: 0.5 | G8: 0.5 | H8: 0.5 | I8: 0.5 | J8: 0.5 | K8: 0.5 | L8: 0.5 | M8: 0.5 | N8: 0.5 | O8: 0.5 | P8: =IF(user_install_sched="",VLOOKUP(A8,install_hours,user_treat_select+3,FALSE),user_install_sched) -> 0.5
A9: UV Installation | B9: install_hours | C9: hrs/household | D9: 0 | E9: 0 | F9: 1 | G9: 1 | H9: 1 | I9: 1 | J9: 2 | K9: 2 | L9: 2 | M9: 2 | N9: 2 | O9: 2 | P9: =IF(user_uv_install="",VLOOKUP(A9,install_hours,user_treat_select+3,FALSE),user_uv_install) -> 1
A11: Public Education Program
A12: Develop materials | B12: tech_labor | C12: hrs | D12: 10 | E12: 10 | F12: 10 | G12: 10 | H12: 10 | I12: 10 | J12: 10 | K12: 10 | L12: 10 | M12: 10 | N12: 10 | O12: 10 | P12: =IF(user_dev_tech="",VLOOKUP(A12,tech_labor,user_treat_select+3,FALSE),user_dev_tech) -> 10
A13: Nitrate health effects | B13: tech_labor | C13: hrs | D13: 5 | E13: 5 | F13: 5 | G13: 5 | H13: 5 | I13: 5 | J13: 5 | K13: 5 | L13: 5 | M13: 5 | N13: 5 | O13: 5 | P13: =IF(user_dev_nit="",VLOOKUP(A13,tech_labor,user_treat_select+3,FALSE),user_dev_nit) -> 5
A14: Meetings | B14: tech_labor | C14: hrs | D14: 2 | E14: 2 | F14: 2 | G14: 2 | H14: 2 | I14: 2 | J14: 2 | K14: 2 | L14: 2 | M14: 2 | N14: 2 | O14: 2 | P14: =IF(user_meet_tech="",VLOOKUP(A14,tech_labor,user_treat_select+3,FALSE),user_meet_tech) -> 2
A15: Post-meeting | B15: tech_labor | C15: hrs | D15: 2 | E15: 2 | F15: 2 | G15: 2 | H15: 2 | I15: 2 | J15: 2 | K15: 2 | L15: 2 | M15: 2 | N15: 2 | O15: 2 | P15: =IF(user_post_tech="",VLOOKUP(A15,tech_labor,user_treat_select+3,FALSE),user_post_tech) -> 2
A16: Develop materials | B16: clerical_labor | C16: hrs | D16: 6 | E16: 6 | F16: 6 | G16: 6 | H16: 6 | I16: 6 | J16: 6 | K16: 6 | L16: 6 | M16: 6 | N16: 6 | O16: 6 | P16: =IF(user_dev_cler="",VLOOKUP(A16,clerical_labor,user_treat_select+3,FALSE),user_dev_cler) -> 6
A17: Nitrate health effects | B17: clerical_labor | C17: hrs | D17: 5 | E17: 5 | F17: 5 | G17: 5 | H17: 5 | I17: 5 | J17: 5 | K17: 5 | L17: 5 | M17: 5 | N17: 5 | O17: 5 | P17: =IF(user_nitr_cler="",VLOOKUP(A17,clerical_labor,user_treat_select+3,FALSE),user_nitr_cler) -> 5
A18: Meetings | B18: clerical_labor | C18: hrs | D18: 2 | E18: 2 | F18: 2 | G18: 2 | H18: 2 | I18: 2 | J18: 2 | K18: 2 | L18: 2 | M18: 2 | N18: 2 | O18: 2 | P18: =IF(user_meet_cler="",VLOOKUP(A18,clerical_labor,user_treat_select+3,FALSE),user_meet_cler) -> 2
A19: Post-meeting | B19: clerical_labor | C19: hrs | D19: 2 | E19: 2 | F19: 2 | G19: 2 | H19: 2 | I19: 2 | J19: 2 | K19: 2 | L19: 2 | M19: 2 | N19: 2 | O19: 2 | P19: =IF(user_post_cler="",VLOOKUP(A19,clerical_labor,user_treat_select+3,FALSE),user_post_cler) -> 2
A20: Meeting flyers | B20: ed_material | C20: flyers | D20: 10 | E20: 10 | F20: 10 | G20: 10 | H20: 10 | I20: 10 | J20: 10 | K20: 10 | L20: 10 | M20: 10 | N20: 10 | O20: 10 | P20: =IF(user_flyers="",VLOOKUP(A20,ed_material,user_treat_select+3,FALSE),user_flyers) -> 10
A21: Meeting ads | B21: ed_material | C21: ads | D21: 1 | E21: 1 | F21: 1 | G21: 1 | H21: 1 | I21: 1 | J21: 1 | K21: 1 | L21: 1 | M21: 1 | N21: 1 | O21: 1 | P21: =IF(user_ads="",VLOOKUP(A21,ed_material,user_treat_select+3,FALSE),user_ads) -> 1
A22: Nitrate awareness flyers | B22: ed_material | C22: flyers | D22: 10 | E22: 10 | F22: 10 | G22: 10 | H22: 10 | I22: 10 | J22: 10 | K22: 10 | L22: 10 | M22: 10 | N22: 10 | O22: 10 | P22: =IF(user_nitr_flyers="",VLOOKUP(A22,ed_material,user_treat_select+3,FALSE),user_nitr_flyers) -> 10
A23: Meeting handouts | B23: ed_material | C23: pages/household | D23: 3 | E23: 3 | F23: 3 | G23: 3 | H23: 3 | I23: 3 | J23: 3 | K23: 3 | L23: 3 | M23: 3 | N23: 3 | O23: 3 | P23: =IF(user_handout="",VLOOKUP(A23,ed_material,user_treat_select+3,FALSE),user_handout) -> 3
A24: Billing mailers | B24: ed_material | C24: pages/household | D24: 2 | E24: 2 | F24: 2 | G24: 2 | H24: 2 | I24: 2 | J24: 2 | K24: 2 | L24: 2 | M24: 2 | N24: 2 | O24: 2 | P24: =IF(user_mailers="",VLOOKUP(A24,ed_material,user_treat_select+3,FALSE),user_mailers) -> 2
A26: Laboratory Analyses
A27: Sampling time | B27: initial_sample | C27: hrs/sample | D27: 0.25 | E27: 0.25 | F27: 0.25 | G27: 0.25 | H27: 0.25 | I27: 0.25 | J27: 0.25 | K27: 0.25 | L27: 0.25 | M27: 0.25 | N27: 0.25 | O27: 0.25 | P27: =IF(user_samp_time="",VLOOKUP(A27,initial_sample,user_treat_select+3,FALSE),user_samp_time) -> 0.25
A28: Sampling scheduling time | B28: initial_sample | C28: hrs/sample | D28: 0 | E28: 0 | F28: 0 | G28: 0 | H28: 0 | I28: 0 | J28: 0 | K28: 0 | L28: 0 | M28: 0 | N28: 0 | O28: 0 | P28: =IF(user_samp_sched="",VLOOKUP(A28,initial_sample,user_treat_select+3,FALSE),user_samp_sched) -> 0
A29: Analysis | B29: initial_sample | C29: samples/household | D29: 1 | E29: 1 | F29: 1 | G29: 1 | H29: 1 | I29: 1 | J29: 1 | K29: 1 | L29: 1 | M29: 1 | N29: 1 | O29: 1 | P29: =IF(user_analysis="",VLOOKUP(A29,initial_sample,user_treat_select+3,FALSE),user_analysis) -> 1
A30: Frequency | B30: initial_sample | C30: % households sampled | D30: 1 | E30: 1 | F30: 1 | G30: 1 | H30: 1 | I30: 1 | J30: 1 | K30: 1 | L30: 1 | M30: 1 | N30: 1 | O30: 1 | P30: =IF(user_hh_sampled="",VLOOKUP(A30,initial_sample,user_treat_select+3,FALSE),user_hh_sampled) -> 1
A33: Indirect Cost Multipliers
A34: Permitting | B34: indirect_cost | C34: applied to base capital cost only | D34: 0.03 | E34: 0.03 | F34: 0.03 | G34: 0.03 | H34: 0.03 | I34: 0.03 | J34: 0.03 | K34: 0.03 | L34: 0.03 | M34: 0.03 | N34: 0.03 | O34: 0.03 | P34: =IF(user_permitting="",VLOOKUP(A34,indirect_cost,user_treat_select+3,FALSE),IF('User Input'!D68="% installed equipment cost",user_permitting/100,user_permitting)) -> 0.03
A35: Pilot Testing | B35: indirect_cost | C35: applied to base capital cost only | D35: 0.03 | E35: 0.03 | F35: 0.03 | G35: 0.03 | H35: 0.03 | I35: 0.03 | J35: 0.03 | K35: 0.03 | L35: 0.03 | M35: 0.03 | N35: 0.03 | O35: 0.03 | P35: =IF(user_pilot="",VLOOKUP(A35,indirect_cost,user_treat_select+3,FALSE),IF('User Input'!D69="% installed equipment cost",user_pilot/100,user_pilot)) -> 0.03
A36: Legal | B36: indirect_cost | C36: applied to base capital cost only | D36: 0.03 | E36: 0.03 | F36: 0.03 | G36: 0.03 | H36: 0.03 | I36: 0.03 | J36: 0.03 | K36: 0.03 | L36: 0.03 | M36: 0.03 | N36: 0.03 | O36: 0.03 | P36: =IF(user_legal="",VLOOKUP(A36,indirect_cost,user_treat_select+3,FALSE),IF('User Input'!D70="% installed equipment cost",user_legal/100,user_legal)) -> 0.03
A37: Engineering | B37: indirect_cost | C37: applied to base capital cost only | D37: 0.15 | E37: 0.15 | F37: 0.15 | G37: 0.15 | H37: 0.15 | I37: 0.15 | J37: 0.15 | K37: 0.15 | L37: 0.15 | M37: 0.15 | N37: 0.15 | O37: 0.15 | P37: =IF(user_eng="",VLOOKUP(A37,indirect_cost,user_treat_select+3,FALSE),IF('User Input'!D71="% installed equipment cost",user_eng/100,user_eng)) -> 0.15
A38: Contingency | B38: indirect_cost | C38: applied to base capital cost only | D38: 0.1 | E38: 0.1 | F38: 0.1 | G38: 0.1 | H38: 0.1 | I38: 0.1 | J38: 0.1 | K38: 0.1 | L38: 0.1 | M38: 0.1 | N38: 0.1 | O38: 0.1 | P38: =IF(user_cont="",VLOOKUP(A38,indirect_cost,user_treat_select+3,FALSE),IF('User Input'!D72="% installed equipment cost",user_cont/100,user_cont)) -> 0.1
A40: Annualization Rate
A41: Discount rate used to annualize capital over discount period | B41: discount_rate | C41: percent | D41: 0.07 | E41: Set equal to financing rate.
A42: Discount period | B42: discount_period | C42: years | D42: 10 | E42: Set equal to expected life of equipment or financing period.
A44: Complexity Factor
A45: Complexity | B45: complexity_rng | C45: used to calculate contingency | D45: 1 | E45: 1 | F45: 1 | G45: 1 | H45: 1 | I45: 1 | J45: 1 | K45: 1 | L45: 1 | M45: 1 | N45: 1 | O45: 1 | P45: 1

Sheet Indirect Assumptions (hidden)
A1: Assumptions for calculating indirect and add-on costs
A2: Contingency
A3: Technology complexity factor | B3: complexity | C3: =VLOOKUP(B3,complexity_rng,treat_select+3,FALSE) -> 1 | E3: Technology-specific factor. See Appendices for details. Low complexity = 0.5; Average complexity = 1.0; High complexity = 1.5; Very high complexity = 2.0.

Sheet O&M Assumptions
A1: Critical Design Assumptions for O&M
A2: Instructions: Do not revise information in gray cells.
C3: Units | D3: POU RO Rental | E3: POU Adsorptive Media NSF53 | F3: POU Anion Exchange | G3: POU Cation Exchange | H3: POU GAC | I3: POU Reverse Osmosis | J3: POE Adsorptive Media | K3: POE Anion Exchange | L3: POE Cation Exchange | M3: POE Aeration | N3: POE GAC with Auto-Backwash | O3: POE GAC w/out Auto-Backwash | P3: User-Defined System
A4: Equipment Maintenance
A5: POU/POE maintenance | B5: maint_time | C5: hrs/visit | D5: 0 | E5: 0.5 | F5: 0.5 | G5: 0.5 | H5: 0.5 | I5: 0.5 | J5: 0.5 | K5: 0.5 | L5: 0.5 | M5: 0.5 | N5: 0.5 | O5: 0.5 | P5: =IF(user_maint="",INDEX(maint_time,user_treat_select),user_maint) -> 0.5
A6: POU/POE replacement frequency | B6: maint_frequency | C6: visits/hh/yr | D6: 0 | E6: 1 | F6: 1 | G6: 1 | H6: 1 | I6: 1.3 | J6: 1 | K6: 1 | L6: 1 | M6: 1 | N6: 1 | O6: 1 | P6: =IF(user_repl_freq="",INDEX(maint_frequency,user_treat_select),user_repl_freq) -> 1
A7: UV maintenance | B7: UV_maint_time | C7: hrs/visit | D7: 0 | E7: 0.5 | F7: 0.5 | G7: 0.5 | H7: 0.5 | I7: 0.5 | J7: 0.5 | K7: 0.5 | L7: 0.5 | M7: 0.5 | N7: 0.5 | O7: 0.5 | P7: =IF(user_uv_maint="",INDEX(UV_maint_time,user_treat_select),user_uv_maint) -> 0.5
A8: UV maintenance frequency | B8: UV_maint_frequency | C8: visits/hh/yr | D8: 0 | E8: 1 | F8: 1 | G8: 1 | H8: 1 | I8: 1 | J8: 1 | K8: 1 | L8: 1 | M8: 1 | N8: 1 | O8: 1 | P8: =IF(user_uv_freq="",INDEX(UV_maint_frequency,user_treat_select),user_uv_freq) -> 1
A9: Scheduling time | B9: maint_scheduling | C9: hrs/visit | D9: 0 | E9: 0.5 | F9: 0.5 | G9: 0.5 | H9: 0.5 | I9: 0.5 | J9: 0.5 | K9: 0.5 | L9: 0.5 | M9: 0.5 | N9: 0.5 | O9: 0.5 | P9: =IF(user_maint_sched="",INDEX(maint_scheduling,user_treat_select),user_maint_sched) -> 0.5
A11: Public Education Program
A12: Information updates | B12: tech_labor_om | C12: hrs | D12: 12 | E12: 12 | F12: 12 | G12: 12 | H12: 12 | I12: 12 | J12: 12 | K12: 12 | L12: 12 | M12: 12 | N12: 12 | O12: 12 | P12: =IF(user_updates_tech="",VLOOKUP(A12,tech_labor_om,user_treat_select+3,FALSE),user_updates_tech) -> 12
A13: Nitrate information updates | B13: tech_labor_om | C13: hrs | D13: 20 | E13: 20 | F13: 20 | G13: 20 | H13: 20 | I13: 20 | J13: 20 | K13: 20 | L13: 20 | M13: 20 | N13: 20 | O13: 20 | P13: =IF(user_nitr_updates_tech="",VLOOKUP(A13,tech_labor_om,user_treat_select+3,FALSE),user_nitr_updates_tech) -> 20
A14: Information updates | B14: clerical_labor_om | C14: hrs | D14: 12 | E14: 12 | F14: 12 | G14: 12 | H14: 12 | I14: 12 | J14: 12 | K14: 12 | L14: 12 | M14: 12 | N14: 12 | O14: 12 | P14: =IF(user_info_cler="",VLOOKUP(A14,clerical_labor_om,user_treat_select+3,FALSE),user_info_cler) -> 12
A15: Nitrate information updates | B15: clerical_labor_om | C15: hrs | D15: 20 | E15: 20 | F15: 20 | G15: 20 | H15: 20 | I15: 20 | J15: 20 | K15: 20 | L15: 20 | M15: 20 | N15: 20 | O15: 20 | P15: =IF(user_nitr_updates_cler="",VLOOKUP(A15,clerical_labor_om,user_treat_select+3,FALSE),user_nitr_updates_cler) -> 20
A16: Nitrate awareness flyers | B16: ed_material_om | C16: flyers | D16: 10 | E16: 10 | F16: 10 | G16: 10 | H16: 10 | I16: 10 | J16: 10 | K16: 10 | L16: 10 | M16: 10 | N16: 10 | O16: 10 | P16: =IF(user_om_flyer="",VLOOKUP(A16,ed_material_om,user_treat_select+3,FALSE),user_om_flyer) -> 10
A17: Billing mailers | B17: ed_material_om | C17: pages/household | D17: 3 | E17: 3 | F17: 3 | G17: 3 | H17: 3 | I17: 3 | J17: 3 | K17: 3 | L17: 3 | M17: 3 | N17: 3 | O17: 3 | P17: =IF(user_om_billing="",VLOOKUP(A17,ed_material_om,user_treat_select+3,FALSE),user_om_billing) -> 3
A19: Laboratory Analyses
A20: Sampling time | B20: lab_analysis | C20: hrs/sample | D20: 0.25 | E20: 0.25 | F20: 0.25 | G20: 0.25 | H20: 0.25 | I20: 0.25 | J20: 0.25 | K20: 0.25 | L20: 0.25 | M20: 0.25 | N20: 0.25 | O20: 0.25 | P20: =IF(user_om_samp="",VLOOKUP(A20,lab_analysis,user_treat_select+3,FALSE),user_om_samp) -> 0.25
A21: Sampling scheduling time | B21: lab_analysis | C21: hrs/sample | D21: 0 | E21: 0 | F21: 0 | G21: 0 | H21: 0 | I21: 0 | J21: 0 | K21: 0 | L21: 0 | M21: 0 | N21: 0 | O21: 0 | P21: =IF(user_om_sched="",VLOOKUP(A21,lab_analysis,user_treat_select+3,FALSE),user_om_sched) -> 0
A22: Analysis | B22: lab_analysis | C22: sample/hh | D22: 1 | E22: 1 | F22: 1 | G22: 1 | H22: 1 | I22: 1 | J22: 1 | K22: 1 | L22: 1 | M22: 1 | N22: 1 | O22: 1 | P22: =IF(user_om_analysis="",VLOOKUP(A22,lab_analysis,user_treat_select+3,FALSE),user_om_analysis) -> 1
A23: Frequency | B23: lab_analysis | C23: % hh/yr | D23: 0.333 | E23: 0.333 | F23: 0.333 | G23: 0.333 | H23: 0.333 | I23: 0.333 | J23: 0.333 | K23: 0.333 | L23: 0.333 | M23: 0.333 | N23: 0.333 | O23: 0.333 | P23: =IF(user_om_shipping="",VLOOKUP(A23,lab_analysis,user_treat_select+3,FALSE),user_om_shipping) -> 0.333
A26: Equipment Replacement Schedule
A27: Component | B27: Replacement Frequency
A29: POU RO Rental | B29: pou_rorental_replace
A30: Annual Rental Cost | B30: 1 | C30: units/year
A31: NA | B31: 0 | C31: units/year
A32: NA | B32: 0 | C32: units/year
A33: NA | B33: 0 | C33: units/year
A35: POU Adsorptive Media NSF53 | B35: pou_ads_nsf53_replace
A36: Media Cartridge | B36: 1 | C36: units/year
A37: NA | B37: 0 | C37: units/year
A38: NA | B38: 0 | C38: units/year
A39: NA | B39: 0 | C39: units/year
A41: POU Anion Exchange | B41: pou_ax_replace
A42: Media Cartridge | B42: 1 | C42: units/year
A43: NA | B43: 0 | C43: units/year
A44: NA | B44: 0 | C44: units/year
A45: NA | B45: 0 | C45: units/year
A47: POU Cation Exchange | B47: pou_cx_replace
A48: NA | B48: 0 | C48: units/year
A49: NA | B49: 0 | C49: units/year
A50: NA | B50: 0 | C50: units/year
A51: NA | B51: 0 | C51: units/year
A53: POU GAC | B53: pou_gac_replace
A54: Media Cartridge | B54: 1 | C54: units/year
A55: NA | B55: 0 | C55: units/year
A56: NA | B56: 0 | C56: units/year
A57: NA | B57: 0 | C57: units/year
A59: POU RO Equipment | B59: pou_ro_replace
A60: Sediment Pre-Filter | B60: 1.3 | C60: units/year
A61: Pre-GAC Filter Cartridge | B61: 1.3 | C61: units/year
A62: Post-GAC Filter Cartridge | B62: 1 | C62: units/year
A63: RO Membrane | B63: =1/3 -> 0.3333333333 | C63: units/year
A65: POU UV Replacement Schedule | B65: pou_uv_replace
A66: UV Lamp | B66: 1 | C66: units/year
A67: UV Quartz Sleeve | B67: 0.2 | C67: units/year
A69: POE Adsorptive Media | B69: poe_ads_replace
A70: Media Cartridge | B70: 0.33 | C70: units/year
A71: NA | B71: 0 | C71: units/year
A72: NA | B72: 0 | C72: units/year
A73: NA | B73: 0 | C73: units/year
A75: POE Anion Exchange | B75: poe_ax_replace
A76: Media Cartridge | B76: 0.2 | C76: units/year
A77: NA | B77: 0 | C77: units/year
A78: NA | B78: 0 | C78: units/year
A79: NA | B79: 0 | C79: units/year
A81: POE Cation Exchange | B81: poe_cx_replace
A82: Sodium Chloride | B82: 15 | C82: pounds/year
A83: NA | B83: 0 | C83: units/year
A84: NA | B84: 0 | C84: units/year
A85: NA | B85: 0 | C85: units/year
A87: POE Aeration | B87: POE_aer_replace
A88: NA | B88: 0 | C88: units/year
A89: NA | B89: 0 | C89: units/year
A90: NA | B90: 0 | C90: units/year
A91: NA | B91: 0 | C91: units/year
A93: POE GAC with Auto-Backwash | B93: poe_gac_bw_replace
A94: NA | B94: 0 | C94: units/year
A95: NA | B95: 0 | C95: units/year
A96: NA | B96: 0 | C96: units/year
A97: NA | B97: 0 | C97: units/year
A99: POE GAC w/out Auto-Backwash | B99: poe_gac_replace
A100: NA | B100: 0 | C100: units/year
A101: NA | B101: 0 | C101: units/year
A102: NA | B102: 0 | C102: units/year
A103: NA | B103: 0 | C103: units/year
A105: POE UV Replacement Schedule | B105: poe_uv_replace
A106: UV Lamp | B106: 1 | C106: units/year
A107: UV Quartz Sleeve | B107: 0.2 | C107: units/year
